Workbook

Sheet Startseite
A2: Berechnung der Sanierungsdauer
A3: Bodenluftabsaugung
A5: Version 1.0
A26: Excel-Version | B26: =INFO("version") -> 16.0

Sheet Schadstoffbelastung (hidden)
B1: Schadstoff | D1: MB + 2 σ [mg/m2OS] | E1: Inventar [kg] | H1: Geometrie des Schadensherdes | J1: Einheit | K1: Wert | M1: Schadstoffstatistik | O1: Einheit | P1: LCKW | Q1: AKW | R1: n-Alkane | V1: Ci [µg/L] | W1: Grenzkonz. Boden [mg/kg] | X1: Mittlere Konz. Boden [mg/kg] | Y1: Residualphase [mg/kg]
B3: Tetrachlorethen | C3: PCE | D3: 7808.936852 | E3: 0.49209758 | H3: Mittlere Länge (Schadensherd) | J3: m | K3: 10.4 | N3: Minimum | O3: mg/kg OS | P3: 0 | Q3: 30.22 | R3: 0 | V3: =IF(Ergebnisse!AG11<>"",Ergebnisse!AH11*(Ergebnisse!AF11/Ergebnisse!$AF$24)*Ergebnisse!AD11,"") -> 4418.168567 | W3: =IF(V3<>"",((V3/(1000))/Bodencharakterisierung!$E$10)*((Stoffdatenbank!E4*foc*Bodencharakterisierung!$E$10)+n),"") -> 16.86778019 | X3: =(E3/$K$11)*1000 -> 6.066291667 | Y3: =IF(X3<W3,0,X3-W3) -> 0
B4: Trichlorethen | C4: TCE | D4: 12919.79684 | E4: 0.8401666 | H4: Mittlere Breite (Schadensherd) | J4: m | K4: 10.4 | N4: Maximum | O4: mg/kg OS | P4: 0 | Q4: 910.21 | R4: 0 | V4: =IF(Ergebnisse!AG12<>"",Ergebnisse!AH12*(Ergebnisse!AF12/Ergebnisse!$AF$24)*Ergebnisse!AD12,"") -> 37204.8613 | W4: =IF(V4<>"",((V4/(1000))/Bodencharakterisierung!$E$10)*((Stoffdatenbank!E5*foc*Bodencharakterisierung!$E$10)+n),"") -> 56.47034888 | X4: 10.35708333 | Y4: =IF(X4<W4,0,X4-W4) -> 0
B5: cis-1,2-Dichlorethen | C5: cDCE | D5: 18198.08798 | E5: 0.8452075996 | H5: Fläche der Belastung | J5: m² | K5: =K3*K4 -> 108.16 | N5: Median | O5: mg/kg OS | Q5: 253.85 | V5: =IF(Ergebnisse!AG13<>"",Ergebnisse!AH13*(Ergebnisse!AF13/Ergebnisse!$AF$24)*Ergebnisse!AD13,"") -> 96998.75354 | W5: =IF(V5<>"",((V5/(1000))/Bodencharakterisierung!$E$10)*((Stoffdatenbank!E6*foc*Bodencharakterisierung!$E$10)+n),"") -> 69.62781814 | X5: 10.41922583 | Y5: 0
B6: trans-1,2-Dichlorethen | C6: tDCE | D6: 154142.1939 | E6: 3.75674494 | H6: Oberkante der Belastung | J6: m u. GOK | K6: 2 | N6: Mittlere Konzentration (arithm.) | O6: mg/kg OS | Q6: 362.0325 | V6: =IF(Ergebnisse!AG14<>"",Ergebnisse!AH14*(Ergebnisse!AF14/Ergebnisse!$AF$24)*Ergebnisse!AD14,"") -> 776045.1256 | W6: =IF(V6<>"",((V6/(1000))/Bodencharakterisierung!$E$10)*((Stoffdatenbank!E7*foc*Bodencharakterisierung!$E$10)+n),"") -> 634.6666077 | X6: 46.31095833 | Y6: 0
B7: 1,1-Dichlorethen | C7: 11DCE | D7: 120560.1041 | E7: 3.13262118 | H7: Unterkante der Belastung | J7: m u. GOK | K7: 2.5 | N7: Standardabweichung | O7: mg/kg OS | Q7: 419.0634074 | V7: =IF(Ergebnisse!AG15<>"",Ergebnisse!AH15*(Ergebnisse!AF15/Ergebnisse!$AF$24)*Ergebnisse!AD15,"") -> 256792.6591 | W7: =IF(V7<>"",((V7/(1000))/Bodencharakterisierung!$E$10)*((Stoffdatenbank!E8*foc*Bodencharakterisierung!$E$10)+n),"") -> 236.9995386 | X7: 38.617125 | Y7: 0
B8: Vinylchlorid | C8: VC | D8: 363615.3506 | E8: 8.7617374 | H8: Mittlere Mächtigkeit (Schadensherd) | J8: m | K8: =K7-K6 -> 0.5 | N8: MW + 2 s | O8: mg/kg OS | Q8: 1200.159315 | V8: =IF(Ergebnisse!AG16<>"",Ergebnisse!AH16*(Ergebnisse!AF16/Ergebnisse!$AF$24)*Ergebnisse!AD16,"") -> 205251.5516 | W8: =IF(V8<>"",((V8/(1000))/Bodencharakterisierung!$E$10)*((Stoffdatenbank!E9*foc*Bodencharakterisierung!$E$10)+n),"") -> 167.8591897 | X8: 108.0095833 | Y8: 0
B9: Tetrachlormethan | C9: CT | D9: 364008.95 | E9: 8.639313124 | H9: Bodenlagerungsdichte | J9: kg/L | K9: 1.5 | N9: Schadstoffinventar (mittelwertbezogen) | O9: kg | P9: 118.7311813 | Q9: 151.5572819 | R9: 95.46466291 | V9: =IF(Ergebnisse!AG17<>"",Ergebnisse!AH17*(Ergebnisse!AF17/Ergebnisse!$AF$24)*Ergebnisse!AD17,"") -> 359793.1613 | W9: =IF(V9<>"",((V9/(1000))/Bodencharakterisierung!$E$10)*((Stoffdatenbank!E10*foc*Bodencharakterisierung!$E$10)+n),"") -> 1105.940056 | X9: 106.5004083 | Y9: 0
B10: Trichlormethan | C10: CF | D10: 13871.09375 | E10: 0.3000595 | H10: Volumen kontaminierter Boden | J10: m³ | K10: =K8*K5 -> 54.08 | N10: Schadstoffinventar (flächengewichtet) | O10: kg | P10: 27.68973071 | Q10: 43.32163042 | R10: 22.68545839 | V10: =IF(Ergebnisse!AG18<>"",Ergebnisse!AH18*(Ergebnisse!AF18/Ergebnisse!$AF$24)*Ergebnisse!AD18,"") -> 98976.29132 | W10: =IF(V10<>"",((V10/(1000))/Bodencharakterisierung!$E$10)*((Stoffdatenbank!E11*foc*Bodencharakterisierung!$E$10)+n),"") -> 72.24495096 | X10: 3.698958333 | Y10: 0
B11: Dichlormethan | C11: DCM | D11: 13871.09375 | E11: 0.3000595 | J11: t | K11: =K10*K9 -> 81.12 | N11: Residualphase | O11: kg | P11: =Y16 -> 0 | Q11: =Y34 -> 15.1226441 | R11: =Y41 -> 168.7900973 | V11: =IF(Ergebnisse!AG19<>"",Ergebnisse!AH19*(Ergebnisse!AF19/Ergebnisse!$AF$24)*Ergebnisse!AD19,"") -> 153456.3597 | W11: =IF(V11<>"",((V11/(1000))/Bodencharakterisierung!$E$10)*((Stoffdatenbank!E12*foc*Bodencharakterisierung!$E$10)+n),"") -> 52.07108546 | X11: 3.698958333 | Y11: 0
B12: 1,1,1-Trichlorethan | C12: 111TCA | D12: 6658.125 | E12: 0.14402856 | H12: Grundwasserflurabstand | J12: m u. GOK | K12: 5 | V12: =IF(Ergebnisse!AG20<>"",Ergebnisse!AH20*(Ergebnisse!AF20/Ergebnisse!$AF$24)*Ergebnisse!AD20,"") -> 8443.525207 | W12: =IF(V12<>"",((V12/(1000))/Bodencharakterisierung!$E$10)*((Stoffdatenbank!E13*foc*Bodencharakterisierung!$E$10)+n),"") -> 13.99786001 | X12: 1.7755 | Y12: 0
B13: 1,1,2-Trichlorethan | C13: 112TCA | D13: 8211.6875 | E13: 0.177635224 | V13: =IF(Ergebnisse!AG21<>"",Ergebnisse!AH21*(Ergebnisse!AF21/Ergebnisse!$AF$24)*Ergebnisse!AD21,"") -> 36047.35761 | W13: =IF(V13<>"",((V13/(1000))/Bodencharakterisierung!$E$10)*((Stoffdatenbank!E14*foc*Bodencharakterisierung!$E$10)+n),"") -> 23.58296654 | X13: 2.189783333 | Y13: 0
B14: 1,1-Dichlorethan | C14: 11DCA | D14: 13871.09375 | E14: 0.3000595 | V14: =IF(Ergebnisse!AG22<>"",Ergebnisse!AH22*(Ergebnisse!AF22/Ergebnisse!$AF$24)*Ergebnisse!AD22,"") -> 87226.77703 | W14: =IF(V14<>"",((V14/(1000))/Bodencharakterisierung!$E$10)*((Stoffdatenbank!E15*foc*Bodencharakterisierung!$E$10)+n),"") -> 50.17474214 | X14: 3.698958333 | Y14: 0
B15: 1,2-Dichlorethan | C15: 12DCA | E15: 0 | V15: =IF(Ergebnisse!AG23<>"",Ergebnisse!AH23*(Ergebnisse!AF23/Ergebnisse!$AF$24)*Ergebnisse!AD23,"") ->  | W15: =IF(V15<>"",((V15/(1000))/Bodencharakterisierung!$E$10)*((Stoffdatenbank!E16*foc*Bodencharakterisierung!$E$10)+n),"") ->  | X15: 0 | Y15: 0
B16: LCKW | D16: 993476.7647 | E16: 27.68973071 | X16: 341.3428342 | Y16: =SUM(Y3:Y15) -> 0
B17: Benzol | C17: B | E17: 0 | V17: =IF(Ergebnisse!AG28<>"",Ergebnisse!AH28*(Ergebnisse!AF28/Ergebnisse!$AF$45)*Ergebnisse!AD28,"") ->  | W17: =IF(V17<>"",((V17/(1000))/Bodencharakterisierung!$E$10)*((Stoffdatenbank!E18*foc*Bodencharakterisierung!$E$10)+n),"") ->  | X17: =(E17/$K$11)*1000 -> 0 | Y17: 0
B18: Toluol | C18: T | D18: 892.3532652 | E18: 0.0247249028 | V18: =IF(Ergebnisse!AG29<>"",Ergebnisse!AH29*(Ergebnisse!AF29/Ergebnisse!$AF$45)*Ergebnisse!AD29,"") -> 251.0493336 | W18: =IF(V18<>"",((V18/(1000))/Bodencharakterisierung!$E$10)*((Stoffdatenbank!E19*foc*Bodencharakterisierung!$E$10)+n),"") -> 0.8078320139 | X18: 0.3047941667 | Y18: 0
B19: Ethylbenzol | C19: ETBE | D19: 166382.4611 | E19: 5.49709004 | V19: =IF(Ergebnisse!AG30<>"",Ergebnisse!AH30*(Ergebnisse!AF30/Ergebnisse!$AF$45)*Ergebnisse!AD30,"") -> 21024.27101 | W19: =IF(V19<>"",((V19/(1000))/Bodencharakterisierung!$E$10)*((Stoffdatenbank!E20*foc*Bodencharakterisierung!$E$10)+n),"") -> 235.8465253 | X19: 67.76491667 | Y19: 0
B20: o-Xylol | C20: oX | D20: 141169.4518 | E20: 4.995390556 | V20: =IF(Ergebnisse!AG31<>"",Ergebnisse!AH31*(Ergebnisse!AF31/Ergebnisse!$AF$45)*Ergebnisse!AD31,"") -> 20229.3127 | W20: =IF(V20<>"",((V20/(1000))/Bodencharakterisierung!$E$10)*((Stoffdatenbank!E21*foc*Bodencharakterisierung!$E$10)+n),"") -> 172.3096804 | X20: 61.58025833 | Y20: 0
B21: m-Xylol | C21: mX | D21: 380674.7763 | E21: 12.1224038 | V21: =IF(Ergebnisse!AG32<>"",Ergebnisse!AH32*(Ergebnisse!AF32/Ergebnisse!$AF$45)*Ergebnisse!AD32,"") -> 47454.47453 | W21: =IF(V21<>"",((V21/(1000))/Bodencharakterisierung!$E$10)*((Stoffdatenbank!E22*foc*Bodencharakterisierung!$E$10)+n),"") -> 475.3904687 | X21: 149.4379167 | Y21: 0
B22: p-Xylol | C22: pX | D22: 380674.7763 | E22: 12.1224038 | V22: =IF(Ergebnisse!AG33<>"",Ergebnisse!AH33*(Ergebnisse!AF33/Ergebnisse!$AF$45)*Ergebnisse!AD33,"") -> 54545.37303 | W22: =IF(V22<>"",((V22/(1000))/Bodencharakterisierung!$E$10)*((Stoffdatenbank!E23*foc*Bodencharakterisierung!$E$10)+n),"") -> 491.880453 | X22: 149.4379167 | Y22: 0
B23: n-Propylbenzol | C23: nPB | E23: 0 | V23: =IF(Ergebnisse!AG34<>"",Ergebnisse!AH34*(Ergebnisse!AF34/Ergebnisse!$AF$45)*Ergebnisse!AD34,"") ->  | W23: =IF(V23<>"",((V23/(1000))/Bodencharakterisierung!$E$10)*((Stoffdatenbank!E24*foc*Bodencharakterisierung!$E$10)+n),"") ->  | X23: 0 | Y23: 0
B24: Isopropylbenzol | C24: iPB | E24: 0 | V24: =IF(Ergebnisse!AG35<>"",Ergebnisse!AH35*(Ergebnisse!AF35/Ergebnisse!$AF$45)*Ergebnisse!AD35,"") ->  | W24: =IF(V24<>"",((V24/(1000))/Bodencharakterisierung!$E$10)*((Stoffdatenbank!E25*foc*Bodencharakterisierung!$E$10)+n),"") ->  | X24: 0 | Y24: 0
B25: o-Ethyltoluol | C25: oET | E25: 0 | V25: =IF(Ergebnisse!AG36<>"",Ergebnisse!AH36*(Ergebnisse!AF36/Ergebnisse!$AF$45)*Ergebnisse!AD36,"") ->  | W25: =IF(V25<>"",((V25/(1000))/Bodencharakterisierung!$E$10)*((Stoffdatenbank!E26*foc*Bodencharakterisierung!$E$10)+n),"") ->  | X25: =(E25/$K$11)*1000 -> 0 | Y25: 0
B26: m-Ethyltoluol | C26: oET | E26: 0 | V26: =IF(Ergebnisse!AG37<>"",Ergebnisse!AH37*(Ergebnisse!AF37/Ergebnisse!$AF$45)*Ergebnisse!AD37,"") ->  | W26: =IF(V26<>"",((V26/(1000))/Bodencharakterisierung!$E$10)*((Stoffdatenbank!E27*foc*Bodencharakterisierung!$E$10)+n),"") ->  | X26: 0 | Y26: 0
B27: p-Ethyltoluol | C27: pET | E27: 0 | V27: =IF(Ergebnisse!AG38<>"",Ergebnisse!AH38*(Ergebnisse!AF38/Ergebnisse!$AF$45)*Ergebnisse!AD38,"") ->  | W27: =IF(V27<>"",((V27/(1000))/Bodencharakterisierung!$E$10)*((Stoffdatenbank!E28*foc*Bodencharakterisierung!$E$10)+n),"") ->  | X27: 0 | Y27: 0
B28: 1,2-Diethylbenzol | C28: 12DEB | E28: 0 | V28: =IF(Ergebnisse!AG39<>"",Ergebnisse!AH39*(Ergebnisse!AF39/Ergebnisse!$AF$45)*Ergebnisse!AD39,"") ->  | W28: =IF(V28<>"",((V28/(1000))/Bodencharakterisierung!$E$10)*((Stoffdatenbank!E29*foc*Bodencharakterisierung!$E$10)+n),"") ->  | X28: 0 | Y28: 0
B29: 1,3-Diethylbenzol | C29: 13DEB | E29: 0 | V29: =IF(Ergebnisse!AG40<>"",Ergebnisse!AH40*(Ergebnisse!AF40/Ergebnisse!$AF$45)*Ergebnisse!AD40,"") ->  | W29: =IF(V29<>"",((V29/(1000))/Bodencharakterisierung!$E$10)*((Stoffdatenbank!E30*foc*Bodencharakterisierung!$E$10)+n),"") ->  | X29: 0 | Y29: 0
B30: 1,4-Diethylbenzol | C30: 14DEB | E30: 0 | V30: =IF(Ergebnisse!AG41<>"",Ergebnisse!AH41*(Ergebnisse!AF41/Ergebnisse!$AF$45)*Ergebnisse!AD41,"") ->  | W30: =IF(V30<>"",((V30/(1000))/Bodencharakterisierung!$E$10)*((Stoffdatenbank!E31*foc*Bodencharakterisierung!$E$10)+n),"") ->  | X30: 0 | Y30: 0
B31: 1,2,3-Trimethylbenzol | C31: 123TMB | D31: 42415.33678 | E31: 1.170472098 | V31: =IF(Ergebnisse!AG42<>"",Ergebnisse!AH42*(Ergebnisse!AF42/Ergebnisse!$AF$45)*Ergebnisse!AD42,"") -> 2235.820241 | W31: =IF(V31<>"",((V31/(1000))/Bodencharakterisierung!$E$10)*((Stoffdatenbank!E32*foc*Bodencharakterisierung!$E$10)+n),"") -> 19.93864645 | X31: 14.42889667 | Y31: 0
B32: 1,2,4-Trimethylbenzol | C32: 124TMB | D32: 220656.118 | E32: 5.671364598 | V32: =IF(Ergebnisse!AG43<>"",Ergebnisse!AH43*(Ergebnisse!AF43/Ergebnisse!$AF$45)*Ergebnisse!AD43,"") -> 8666.692209 | W32: =IF(V32<>"",((V32/(1000))/Bodencharakterisierung!$E$10)*((Stoffdatenbank!E33*foc*Bodencharakterisierung!$E$10)+n),"") -> 87.68804721 | X32: 69.91327167 | Y32: 0
B33: 1,3,5-Trimethylbenzol | C33: 135TMB | D33: 68366.99294 | E33: 1.717780626 | V33: =IF(Ergebnisse!AG44<>"",Ergebnisse!AH44*(Ergebnisse!AF44/Ergebnisse!$AF$45)*Ergebnisse!AD44,"") -> 875.0084574 | W33: =IF(V33<>"",((V33/(1000))/Bodencharakterisierung!$E$10)*((Stoffdatenbank!E34*foc*Bodencharakterisierung!$E$10)+n),"") -> 6.053152566 | X33: 21.17579667 | Y33: 15.1226441
B34: AKW | D34: 1383465.525 | E34: 43.32163042 | X34: 534.0437675 | Y34: =SUM(Y17:Y33) -> 15.1226441
B35: n-Pentan | C35: nC5 | E35: 0 | V35: =IF(Ergebnisse!AG49<>"",Ergebnisse!AH49*(Ergebnisse!AF49/Ergebnisse!$AF$55)*Ergebnisse!AD49,"") ->  | W35: =IF(V35<>"",((V35/(1000))/Bodencharakterisierung!$E$10)*((Stoffdatenbank!E36*foc*Bodencharakterisierung!$E$10)+n),"") ->  | X35: 0 | Y35: 0
B36: n-Hexan | C36: nC6 | D36: 220656.118 | E36: 5.671364598 | V36: =IF(Ergebnisse!AG50<>"",Ergebnisse!AH50*(Ergebnisse!AF50/Ergebnisse!$AF$55)*Ergebnisse!AD50,"") -> 2009.345794 | W36: =IF(V36<>"",((V36/(1000))/Bodencharakterisierung!$E$10)*((Stoffdatenbank!E37*foc*Bodencharakterisierung!$E$10)+n),"") -> 41.42833349 | X36: 69.91327167 | Y36: 28.48493818
B37: n-Heptan | C37: nC7 | D37: 220656.118 | E37: 5.671364598 | V37: =IF(Ergebnisse!AG51<>"",Ergebnisse!AH51*(Ergebnisse!AF51/Ergebnisse!$AF$55)*Ergebnisse!AD51,"") -> 514.0186916 | W37: =IF(V37<>"",((V37/(1000))/Bodencharakterisierung!$E$10)*((Stoffdatenbank!E38*foc*Bodencharakterisierung!$E$10)+n),"") -> 27.09794578 | X37: 69.91327167 | Y37: 42.81532589
B38: n-Octan | C38: nC8 | D38: 220656.118 | E38: 5.671364598 | V38: =IF(Ergebnisse!AG52<>"",Ergebnisse!AH52*(Ergebnisse!AF52/Ergebnisse!$AF$55)*Ergebnisse!AD52,"") -> 186.4485981 | W38: =IF(V38<>"",((V38/(1000))/Bodencharakterisierung!$E$10)*((Stoffdatenbank!E39*foc*Bodencharakterisierung!$E$10)+n),"") -> 32.44537892 | X38: 69.91327167 | Y38: 37.46789275
B39: n-Nonan | C39: nC9 | D39: 220656.118 | E39: 5.671364598 | V39: =IF(Ergebnisse!AG53<>"",Ergebnisse!AH53*(Ergebnisse!AF53/Ergebnisse!$AF$55)*Ergebnisse!AD53,"") -> 35.88785047 | W39: =IF(V39<>"",((V39/(1000))/Bodencharakterisierung!$E$10)*((Stoffdatenbank!E40*foc*Bodencharakterisierung!$E$10)+n),"") -> 9.891331174 | X39: 69.91327167 | Y39: 60.02194049
B40: n-Decan | C40: nC10 | E40: 0 | V40: =IF(Ergebnisse!AG54<>"",Ergebnisse!AH54*(Ergebnisse!AF54/Ergebnisse!$AF$55)*Ergebnisse!AD54,"") ->  | W40: =IF(V40<>"",((V40/(1000))/Bodencharakterisierung!$E$10)*((Stoffdatenbank!E41*foc*Bodencharakterisierung!$E$10)+n),"") ->  | X40: 0 | Y40: 0
B41: n-Alkane | D41: 882624.4722 | E41: 22.68545839 | X41: 279.6530867 | Y41: =SUM(Y35:Y40) -> 168.7900973

Sheet X (hidden)
A1: Schadstoffbelastung
A2: Mittlere Schadstoffmasse im ungesättigten Boden (Einheitsfläche) (MB) [mg/m²]
A3: Sondierung | B3: 1 | C3: 2 | D3: 3 | E3: 4 | F3: 5 | G3: 6 | H3: 7 | I3: 8 | J3: 9 | K3: 10 | L3: 11 | M3: 12 | N3: 13 | O3: 14 | P3: 15 | Q3: 16 | R3: 17 | S3: 18 | T3: 19 | U3: 20 | V3: Summe | W3: Mittlere Flächen-Konz. (MB) [mg/m²] | X3: Standard-abweich. (MB) [mg/m²] | Y3: MB + 2 s [mg/m²] | Z3: Inventar (MB-bezogen) [kg] | AA3: Inventar (flächenbezogen) [kg]
B4: RKS11 | C4: RKS12 | D4: RKS18 | E4: P123 | AB4: Anzahl Sondierungen
A5: Flächenrepräsentanz [m²] | B5: 27.04 | C5: 27.04 | D5: 27.04 | E5: 27.04 | V5: =IF(SUM(B5:U5)=Schadstoffbelastung!$K$5,SUM(B5:U5),"Σ ≠ "&Schadstoffbelastung!$K$5&"!") -> 108.16
A6: Leichtflüchtige chlorierte Kohlenwasserstoffe (LCKW) | V6: kg
A7: Tetrachlorethen | C7: 5060.175 | D7: 6569.35 | E7: 6569.35 | V7: =SUMPRODUCT(B7:U7,$B$5:$U$5)/1000/1000 -> 0.49209758 | W7: =IF(SUM($B7:$U7)>0,AVERAGE($B7:$U7),"") -> 6066.291667 | X7: =IF(SUM($B7:$U7)>0,_xlfn.STDEV.S(B7:U7),"") -> 871.3225925 | Y7: =IF(SUM($B7:$U7)>0,W7+X7*2,"") -> 7808.936852 | Z7: =IF(SUM(B7:U7)>0,Y7*$V$5/1000/1000,"") -> 0.8446146099 | AA7: =V7 -> 0.49209758
A8: Trichlorethen | C8: 8877.5 | D8: 11096.875 | E8: 11096.875 | V8: 0.8401666 | W8: =IF(SUM($B8:$U8)>0,AVERAGE($B8:$U8),"") -> 10357.08333 | X8: =IF(SUM($B8:$U8)>0,_xlfn.STDEV.S(B8:U8),"") -> 1281.356754 | Y8: 12919.79684 | Z8: =IF(SUM(B8:U8)>0,Y8*$V$5/1000/1000,"") -> 1.397405226 | AA8: 0.8401666
A9: cis-1,2-Dichlorethen | B9: 186.4275 | C9: 8877.5 | D9: 11096.875 | E9: 11096.875 | V9: 0.8452075996 | W9: =IF(SUM($B9:$U9)>0,AVERAGE($B9:$U9),"") -> 7814.419375 | X9: 5191.834304 | Y9: 18198.08798 | Z9: 1.968305196 | AA9: 0.8452075996
A10: trans-1,2-Dichlorethen | B10: 124285 | C10: 3994.875 | D10: 5326.5 | E10: 5326.5 | V10: 3.75674494 | W10: 34733.21875 | X10: 59704.48759 | Y10: 154142.1939 | Z10: 16.6720197 | AA10: 3.75674494
A11: 1,1-Dichlorethen | B11: 97652.5 | C11: 5060.175 | D11: 6569.35 | E11: 6569.35 | V11: 3.13262118 | W11: 28962.84375 | X11: 45798.63016 | Y11: 120560.1041 | Z11: 13.03978086 | AA11: 3.13262118
A12: Vinylchlorid | B12: 292957.5 | C12: 8877.5 | D12: 11096.875 | E12: 11096.875 | V12: 8.7617374 | W12: 81007.1875 | X12: 141304.0815 | Y12: 363615.3506 | Z12: 39.32863632 | AA12: 8.7617374
A13: Tetrachlormethan | B13: 292957.5 | C13: 8877.5 | D13: 11096.875 | E13: 6569.35 | V13: 8.639313124 | W13: 79875.30625 | X13: 142066.8219 | Y13: 364008.95 | Z13: 39.37120803 | AA13: 8.639313124
A14: Trichlormethan | B14: 0 | C14: 0 | D14: 0 | E14: 11096.875 | V14: 0.3000595 | W14: 2774.21875 | X14: 5548.4375 | Y14: 13871.09375 | Z14: 1.5002975 | AA14: 0.3000595
A15: Dichlormethan | B15: 0 | C15: 0 | D15: 0 | E15: 11096.875 | V15: 0.3000595 | W15: 2774.21875 | X15: 5548.4375 | Y15: 13871.09375 | Z15: 1.5002975 | AA15: 0.3000595
A16: 1,1,1-Trichlorethan | B16: 0 | C16: 0 | D16: 0 | E16: 5326.5 | V16: 0.14402856 | W16: 1331.625 | X16: 2663.25 | Y16: 6658.125 | Z16: 0.7201428 | AA16: 0.14402856
A17: 1,1,2-Trichlorethan | B17: 0 | C17: 0 | D17: 0 | E17: 6569.35 | V17: 0.177635224 | W17: 1642.3375 | X17: 3284.675 | Y17: 8211.6875 | Z17: 0.88817612 | AA17: 0.177635224
A18: 1,1-Dichlorethan | B18: 0 | C18: 0 | D18: 0 | E18: 11096.875 | V18: 0.3000595 | W18: 2774.21875 | X18: 5548.4375 | Y18: 13871.09375 | Z18: 1.5002975 | AA18: 0.3000595
A19: 1,2-Dichlorethan | V19: 0 | W19: =IF(SUM($B19:$U19)>0,AVERAGE($B19:$U19),"") ->  | AA19: 0
A20: LCKW | B20: =IF(SUM(B7:B19)>0,SUM(B7:B19),"") -> 808038.9275 | C20: =IF(SUM(C7:C19)>0,SUM(C7:C19),"") -> 49625.225 | D20: 62852.7 | E20: 103511.65 | V20: =SUM(V7:V19) -> 27.68973071 | W20: 256007.1256 | X20: 368734.8195 | Y20: 993476.7647 | Z20: =SUM(Z7:Z19) -> 118.7311813 | AA20: 27.68973071 | AB20: =COUNTBLANK(B20:U20) -> 16
A21: (Mono)aromatische Kohlenwasserstoffe (AKW)
A22: Benzol | B22: 0 | C22: 0 | D22: 0 | E22: 0 | V22: =SUMPRODUCT(B22:U22,$B$5:$U$5)/1000/1000 -> 0 | W22: =IF(SUM($B22:$U22)>0,AVERAGE($B22:$U22),"") ->  | X22: =IF(SUM($B22:$U22)>0,_xlfn.STDEV.S(B22:U22),"") ->  | Y22: =IF(SUM($B22:$U22)>0,W22+X22*2,"") ->  | Z22: =IF(SUM(B22:U22)>0,Y22*$V$5/1000/1000,"") ->  | AA22: =V22 -> 0
A23: Toluol | B23: 186.4275 | C23: 17.755 | D23: 0 | E23: 710.2 | V23: 0.0247249028 | W23: 228.595625 | X23: 331.8788201 | Y23: 892.3532652 | Z23: =IF(SUM(B23:U23)>0,Y23*$V$5/1000/1000,"") -> 0.09651692917 | AA23: 0.0247249028
A24: Ethylbenzol | B24: 124285 | C24: 3994.875 | D24: 5326.5 | E24: 69688.375 | V24: 5.49709004 | W24: 50823.6875 | X24: 57779.38681 | Y24: 166382.4611 | Z24: 17.99592699 | AA24: 5.49709004
A25: o-Xylol | B25: 97652.5 | C25: 5060.175 | D25: 6569.35 | E25: 75458.75 | V25: 4.995390556 | W25: 46185.19375 | X25: 47492.129 | Y25: 141169.4518 | Z25: 15.2688879 | AA25: 4.995390556
A26: m-Xylol | B26: 292957.5 | C26: 8877.5 | D26: 11096.875 | E26: 135381.875 | V26: 12.1224038 | W26: 112078.4375 | X26: 134298.1694 | Y26: 380674.7763 | Z26: 41.17378381 | AA26: 12.1224038
A27: p-Xylol | B27: 292957.5 | C27: 8877.5 | D27: 11096.875 | E27: 135381.875 | V27: 12.1224038 | W27: 112078.4375 | X27: 134298.1694 | Y27: 380674.7763 | Z27: 41.17378381 | AA27: 12.1224038
A28: n-Propylbenzol | B28: 0 | C28: 0 | D28: 0 | E28: 0 | V28: 0 | AA28: 0
A29: Isopropylbenzol | B29: 0 | C29: 0 | D29: 0 | E29: 0 | V29: 0 | AA29: 0
A30: o-Ethyltoluol | B30: 0 | C30: 0 | D30: 0 | E30: 0 | V30: 0 | AA30: 0
A31: m-Ethyltoluol | B31: 0 | C31: 0 | D31: 0 | E31: 0 | V31: 0 | AA31: 0
A32: p-Ethyltoluol | B32: 0 | C32: 0 | D32: 0 | E32: 0 | V32: 0 | AA32: 0
A33: 1,2-Diethylbenzol | B33: 0 | C33: 0 | D33: 0 | E33: 0 | V33: 0 | AA33: 0
A34: 1,3-Diethylbenzol | B34: 0 | C34: 0 | D34: 0 | E34: 0 | V34: 0 | AA34: 0
A35: 1,4-Diethylbenzol | B35: 0 | C35: 0 | D35: 0 | E35: 0 | V35: 0 | AA35: 0
A36: 1,2,3-Trimethylbenzol | B36: 33734.5 | C36: 337.345 | D36: 337.345 | E36: 8877.5 | V36: 1.170472098 | W36: 10821.6725 | X36: 15796.83214 | Y36: 42415.33678 | Z36: =IF(SUM(B36:U36)>0,Y36*$V$5/1000/1000,"") -> 4.587642826 | AA36: 1.170472098
A37: 1,2,4-Trimethylbenzol | B37: 177550 | C37: 585.915 | D37: 5859.15 | E37: 25744.75 | V37: 5.671364598 | W37: 52434.95375 | X37: 84110.58215 | Y37: 220656.118 | Z37: 23.86616573 | AA37: 5.671364598
A38: 1,3,5-Trimethylbenzol | B38: 55040.5 | C38: 142.04 | D38: 1864.275 | E38: 6480.575 | V38: 1.717780626 | W38: 15881.8475 | X38: 26242.57272 | Y38: 68366.99294 | Z38: 7.394573957 | AA38: 1.717780626
A39: BTEX | B39: =IF(SUM(B22:B27)>0,SUM(B22:B27),"") -> 808038.9275 | C39: =IF(SUM(C22:C27)>0,SUM(C22:C27),"") -> 26827.805 | D39: 34089.6 | E39: 416621.075 | V39: =SUM(V22:V27) -> 34.7620131 | W39: 321394.3519 | X39: 372023.5399 | Y39: 1065441.432 | Z39: =SUM(Z22:Z27) -> 115.7088994 | AA39: 34.7620131
A40: AKW | B40: =IF(SUM(B22:B38)>0,SUM(B22:B38),"") -> 1074363.927 | C40: =IF(SUM(C22:C38)>0,SUM(C22:C38),"") -> 27893.105 | D40: 42150.37 | E40: 457723.9 | V40: =SUM(V22:V38) -> 43.32163042 | W40: 400532.8256 | X40: 491466.3497 | Y40: 1383465.525 | Z40: =SUM(Z22:Z38) -> 151.5572819 | AA40: 43.32163042 | AB40: =COUNTBLANK(B40:U40) -> 16
A41: n-Alkane
A42: n-Pentan | V42: =SUMPRODUCT(B42:U42,$B$5:$U$5)/1000/1000 -> 0 | W42: =IF(SUM($B42:$U42)>0,AVERAGE($B42:$U42),"") ->  | X42: =IF(SUM($B42:$U42)>0,_xlfn.STDEV.S(B42:U42),"") ->  | Y42: =IF(SUM($B42:$U42)>0,W42+X42*2,"") ->  | Z42: =IF(SUM(B42:U42)>0,Y42*$V$5/1000/1000,"") ->  | AA42: =V42 -> 0
A43: n-Hexan | B43: 177550 | C43: 585.915 | D43: 5859.15 | E43: 25744.75 | V43: 5.671364598 | W43: 52434.95375 | X43: 84110.58215 | Y43: 220656.118 | Z43: 23.86616573 | AA43: 5.671364598
A44: n-Heptan | B44: 177550 | C44: 585.915 | D44: 5859.15 | E44: 25744.75 | V44: 5.671364598 | W44: 52434.95375 | X44: 84110.58215 | Y44: 220656.118 | Z44: 23.86616573 | AA44: 5.671364598
A45: n-Octan | B45: 177550 | C45: 585.915 | D45: 5859.15 | E45: 25744.75 | V45: 5.671364598 | W45: 52434.95375 | X45: 84110.58215 | Y45: 220656.118 | Z45: 23.86616573 | AA45: 5.671364598
A46: n-Nonan | B46: 177550 | C46: 585.915 | D46: 5859.15 | E46: 25744.75 | V46: 5.671364598 | W46: 52434.95375 | X46: 84110.58215 | Y46: 220656.118 | Z46: 23.86616573 | AA46: 5.671364598
A47: n-Decan | V47: 0 | AA47: 0
A48: n-Alkane | B48: =IF(SUM(B42:B47)>0,SUM(B42:B47),"") -> 710200 | C48: =IF(SUM(C42:C47)>0,SUM(C42:C47),"") -> 2343.66 | D48: 23436.6 | E48: 102979 | V48: =SUM(V42:V46) -> 22.68545839 | W48: 209739.815 | X48: 336442.3286 | Y48: 882624.4722 | Z48: =SUM(Z42:Z47) -> 95.46466291 | AA48: 22.68545839 | AB48: =COUNTBLANK(B48:U48) -> 16
A49: Schadstoffkonzentrationen in Einzelproben [mg/m²]
A50: Sondierung | B50: 1 | C50: 2 | D50: 3 | E50: 4 | F50: 5 | G50: 6 | H50: 7 | I50: 8 | J50: 9 | K50: 10 | L50: 11 | M50: 12 | N50: 13 | O50: 14 | P50: 15 | Q50: 16 | R50: 17 | S50: 18 | T50: 19 | U50: 20 | W50: Minimum [mg/kg OS] | X50: Maximum [mg/kg OS] | Y50: Median [mg/kg OS] | Z50: Mittlere Konz. (MW) [mg/kg OS] | AA50: Standard-abweich. [mg/kg OS] | AB50: MW + 2 s [mg/kg OS] | AC50: Anzahl Sondierungen
AC51: LCKW
A52: Leichtflüchtige chlorierte Kohlenwasserstoffe (LCKW) [mg/kg OS]
A53: Tetrachlorethen | V53: =SUM(B53:U53) -> 0 | W53: =MIN(B53:U53) -> 0 | X53: =MAX($B53:$U53) -> 0 | Y53: =IFERROR(MEDIAN($B53:$U53),"") ->  | Z53: =IF(SUM($B53:$U53)>0,AVERAGE($B53:$U53),"") ->  | AA53: =IF(SUM($B53:$U53)>0,_xlfn.STDEV.S(B53:U53),"") ->  | AB53: =IF(SUM($B53:$U53)>0,Z53+AA53*2,"") -> 
A54: Trichlorethen | V54: =SUM(B54:U54) -> 0 | W54: =MIN(B54:U54) -> 0 | X54: =MAX($B54:$U54) -> 0 | Y54: =IFERROR(MEDIAN($B54:$U54),"") ->  | Z54: =IF(SUM($B54:$U54)>0,AVERAGE($B54:$U54),"") ->  | AA54: =IF(SUM($B54:$U54)>0,_xlfn.STDEV.S(B54:U54),"") ->  | AB54: =IF(SUM($B54:$U54)>0,Z54+AA54*2,"") -> 
A55: cis-1,2-Dichlorethen | V55: 0 | W55: 0 | X55: 0 | Z55: =IF(SUM($B55:$U55)>0,AVERAGE($B55:$U55),"") ->  | AB55: =IF(SUM($B55:$U55)>0,Z55+AA55*2,"") -> 
A56: trans-1,2-Dichlorethen | V56: 0 | W56: 0 | X56: 0
A57: 1,1-Dichlorethen | V57: 0 | W57: 0 | X57: 0
A58: Vinylchlorid | V58: 0 | W58: 0 | X58: 0
A59: Tetrachlormethan | V59: 0 | W59: 0 | X59: 0
A60: Trichlormethan | V60: 0 | W60: 0 | X60: 0
A61: Dichlormethan | V61: 0 | W61: 0 | X61: 0
A62: 1,1,1-Trichlorethan | V62: 0 | W62: 0 | X62: 0
A63: 1,1,2-Trichlorethan | V63: 0 | W63: 0 | X63: 0
A64: 1,1-Dichlorethan | V64: 0 | W64: 0 | X64: 0
A65: 1,2-Dichlorethan | V65: 0 | W65: 0 | X65: 0
A66: LCKW | B66: =IF(SUM(B53:B65)>0,SUM(B53:B65),"") ->  | C66: =IF(SUM(C53:C65)>0,SUM(C53:C65),"") ->  | V66: =SUM(B66:U66) -> 0 | W66: 0 | X66: 0 | AC66: =COUNTBLANK(B66:U66) -> 20
A67: (Mono)aromatische Kohlenwasserstoffe (AKW)
A68: Benzol | B68: 0 | C68: 0 | D68: 0 | E68: 0 | V68: =SUM(B68:U68) -> 0 | W68: =MIN(B68:U68) -> 0 | X68: =MAX($B68:$U68) -> 0 | Y68: =IFERROR(MEDIAN($B68:$U68),"") -> 0 | Z68: =IF(SUM($B68:$U68)>0,AVERAGE($B68:$U68),"") ->  | AA68: =IF(SUM($B68:$U68)>0,_xlfn.STDEV.S(B68:U68),"") ->  | AB68: =IF(SUM($B68:$U68)>0,Z68+AA68*2,"") -> 
A69: Toluol | B69: 0.21 | C69: 0.02 | D69: 0 | E69: 0.8 | V69: 1.03 | W69: 0 | X69: 0.8 | Y69: 0.115 | Z69: 0.2575 | AA69: 0.3738426585 | AB69: 1.005185317
A70: Ethylbenzol | B70: 140 | C70: 4.5 | D70: 6 | E70: 78.5 | V70: 229 | W70: 4.5 | X70: 140 | Y70: 42.25 | Z70: 57.25 | AA70: 65.08520057 | AB70: 187.4204011
A71: o-Xylol | B71: 110 | C71: 5.7 | D71: 7.4 | E71: 85 | V71: 208.1 | W71: 5.7 | X71: 110 | Y71: 46.2 | Z71: 52.025 | AA71: 53.4971884 | AB71: 159.0193768
A72: m-Xylol | B72: 330 | C72: 10 | D72: 12.5 | E72: 152.5 | V72: 505 | W72: 10 | X72: 330 | Y72: 82.5 | Z72: 126.25 | AA72: 151.2792671 | AB72: 428.8085343
A73: p-Xylol | B73: 330 | C73: 10 | D73: 12.5 | E73: 152.5 | V73: 505 | W73: 10 | X73: 330 | Y73: 82.5 | Z73: 126.25 | AA73: 151.2792671 | AB73: 428.8085343
A74: n-Propylbenzol | B74: 0 | C74: 0 | D74: 0 | E74: 0 | V74: 0 | W74: 0 | X74: 0 | Y74: 0
A75: Isopropylbenzol | B75: 0 | C75: 0 | D75: 0 | E75: 0 | V75: 0 | W75: 0 | X75: 0 | Y75: 0
A76: o-Ethyltoluol | B76: 0 | C76: 0 | D76: 0 | E76: 0 | V76: 0 | W76: 0 | X76: 0 | Y76: 0
A77: m-Ethyltoluol | B77: 0 | C77: 0 | D77: 0 | E77: 0 | V77: 0 | W77: 0 | X77: 0 | Y77: 0
A78: p-Ethyltoluol | B78: 0 | C78: 0 | D78: 0 | E78: 0 | V78: 0 | W78: 0 | X78: 0 | Y78: 0
A79: 1,2-Diethylbenzol | B79: 0 | C79: 0 | D79: 0 | E79: 0 | V79: 0 | W79: 0 | X79: 0 | Y79: 0
A80: 1,3-Diethylbenzol | B80: 0 | C80: 0 | D80: 0 | E80: 0 | V80: 0 | W80: 0 | X80: 0 | Y80: 0
A81: 1,4-Diethylbenzol | B81: 0 | C81: 0 | D81: 0 | E81: 0 | V81: 0 | W81: 0 | X81: 0 | Y81: 0
A82: 1,2,3-Trimethylbenzol | B82: 38 | C82: 0.38 | D82: 0.38 | E82: 10 | V82: 48.76 | W82: 0.38 | X82: 38 | Y82: 5.19 | Z82: 12.19 | AA82: 17.79423502 | AB82: 47.77847004
A83: 1,2,4-Trimethylbenzol | B83: 200 | C83: 0.66 | D83: 6.6 | E83: 29 | V83: 236.26 | W83: 0.66 | X83: 200 | Y83: 17.8 | Z83: 59.065 | AA83: 94.74579797 | AB83: 248.5565959
A84: 1,3,5-Trimethylbenzol | B84: 62 | C84: 0.16 | D84: 2.1 | E84: 7.3 | V84: 71.56 | W84: 0.16 | X84: 62 | Y84: 4.7 | Z84: 17.89 | AA84: 29.56076905 | AB84: 77.01153809
A85: BTEX | B85: =IF(SUM(B68:B73)>0,SUM(B68:B73),"") -> 910.21 | C85: 30.22 | D85: 38.4 | E85: 469.3 | H85: =IF(SUM(H68:H73)>0,SUM(H68:H73),"") ->  | V85: 1448.13 | W85: =MIN(B85:U85) -> 30.22 | X85: =MAX($B85:$U85) -> 910.21 | Y85: =IFERROR(MEDIAN($B85:$U85),"") -> 253.85 | Z85: =IF(SUM($B85:$U85)>0,AVERAGE($B85:$U85),"") -> 362.0325 | AA85: =IF(SUM($B85:$U85)>0,_xlfn.STDEV.S(B85:U85),"") -> 419.0634074 | AB85: =IF(SUM($B85:$U85)>0,Z85+AA85*2,"") -> 1200.159315
A86: AKW | B86: =IF(SUM(B68:B84)>0,SUM(B68:B84),"") -> 1210.21 | C86: 31.42 | D86: 47.48 | E86: 515.6 | H86: =IF(SUM(H68:H84)>0,SUM(H68:H84),"") ->  | V86: 1804.71 | W86: =MIN(B86:U86) -> 31.42 | X86: =MAX($B86:$U86) -> 1210.21 | Y86: =IFERROR(MEDIAN($B86:$U86),"") -> 281.54 | Z86: =IF(SUM($B86:$U86)>0,AVERAGE($B86:$U86),"") -> 451.1775 | AA86: =IF(SUM($B86:$U86)>0,_xlfn.STDEV.S(B86:U86),"") -> 553.6089549 | AB86: =IF(SUM($B86:$U86)>0,Z86+AA86*2,"") -> 1558.39541 | AC86: =COUNTBLANK(B86:U86) -> 16
A87: n-Alkane
A88: n-Pentan | V88: =SUM(B88:U88) -> 0 | W88: =MIN(B88:U88) -> 0 | X88: =MAX($B88:$U88) -> 0 | Y88: =IFERROR(MEDIAN($B88:$U88),"") ->  | Z88: =IF(SUM($B88:$U88)>0,AVERAGE($B88:$U88),"") ->  | AA88: =IF(SUM($B88:$U88)>0,_xlfn.STDEV.S(B88:U88),"") ->  | AB88: =IF(SUM($B88:$U88)>0,Z88+AA88*2,"") -> 
A89: n-Hexan | V89: 0 | W89: 0 | X89: 0
A90: n-Heptan | V90: 0 | W90: 0 | X90: 0
A91: n-Octan | V91: 0 | W91: 0 | X91: 0
A92: n-Nonan | V92: 0 | W92: 0 | X92: 0
A93: n-Decan | V93: 0 | W93: 0 | X93: 0
A94: n-Alkane | B94: =IF(SUM(B88:B93)>0,SUM(B88:B93),"") ->  | V94: 0 | W94: =MIN(B94:U94) -> 0 | X94: 0 | AC94: =COUNTBLANK(B94:U94) -> 20

Sheet Sanierungsdesign
B1: Parameter | D1: Einheit | E1: Wert
A3: Sanierungszielwert
B4: Sanierungszielwert | C4: LCKW | D4: mg/m3 | E4: 5
B5: Sanierungszielwert | C5: AKW | D5: mg/m3 | E5: 5
B6: Sanierungszielwert | C6: n-Alkane | D6: mg/m3 | E6: 5
A7: Ausführungsdesign
B8: Elektronenakzeptor | D8: - | E8: Sauerstoff
B10: Sanierungsfläche | D10: m | E10: =Schadstoffbelastung!K5 -> 108.16
B11: Brunnenradius | D11: m | E11: 0.1
B12: Rasterweite | D12: m | E12: =Rasterweite -> 8.297999432
B13: Anzahl Pegel | D13: - | E13: =Anzahl_Brunnen -> 2
B14: Filterstrecke | D14: m | E14: 0.5
B15: Unterdruck | D15: mbar | E15: 100
B16: Charakteristische Länge der Kontamination | C16: Lc | D16: m | E16: =4.2 -> 4.2
D17: Relevanter Schadstoff
B18: Betrachteter Schadstoff | D18: Summe n-Alkane
E19: 5

Sheet Bodencharakterisierung (hidden)
B1: Parameter | D1: Einheit | M1: Parameter | N1: Einheit | O1: Datenbank
E2: Grobsand | F2: Grobsand | O2: Grobsand | P2: Mittelsand | Q2: Feinsand | R2: Schluff | S2: Ton
B3: Relativer Anteil (geschätzt) | D3: % | E3: 100 | F3: =100-E3 -> 0
B4: Wassersättigung (ungesättigter Boden) | C4: SW | D4: - | E4: 0.26 | F4: 0.26 | M4: Wassersättigung (ungesättigter Boden) | N4: - | O4: 0.26 | P4: 0.26 | Q4: 0.26 | R4: 0.27 | S4: 0.29
B5: Durchlässigkeitsbeiwert (kf) | C5: kf | D5: m/s | E5: 0.0002 | F5: 0.0002 | H5: =F5/kf -> 1 | M5: Durchlässigkeitsbeiwert (kf) | N5: m/s | O5: 0.0002 | P5: 0.000275 | Q5: 1e-05 | R5: 1e-07 | S5: 1e-11
B6: Nutzbare Porosität (neff) | C6: neff | D6: - | E6: 0.2 | F6: 0.2 | M6: Nutzbare Porosität (neff) | N6: L/L | O6: 0.2 | P6: 0.125 | Q6: 0.1 | R6: 0.075 | S6: 0.035
B7: Gesamtporosität (Hohlraumvolumen) | C7: n | D7: - | E7: 0.33 | F7: 0.33 | M7: Gesamtporosität (Hohlraumvolumen) | N7: L/L | O7: 0.33 | P7: 0.33 | Q7: 0.33 | R7: 0.34 | S7: 0.35
B8: Organischer Kohlenstoffgehalt | C8: fOC | D8: - | E8: 0.01 | F8: 0.01 | M8: Organische Kohlenstoffgehalt | N8: g/g | O8: 0.01 | P8: 0.01 | Q8: 0.01 | R8: 0.01 | S8: 0.01
B9: Korndichte | C9: ρs | D9: kg/m³ | E9: 2650 | F9: 2650 | M9: Korndichte | N9: kg/m³ | O9: 2650 | P9: 2650 | Q9: 2650 | R9: 2690 | S9: 2700
B10: Lagerungsdichte | C10: d | D10: kg/L | E10: 1.515 | F10: 1.515 | M10: Schüttdichte | N10: kg/dm³ | O10: 1.515 | P10: 1.515 | Q10: 1.515 | R10: 1.43 | S10: 1.64
B11: Anteil (Bodenkorn) | C11: nM | D11: kg/m³ | E11: 1015.05 | F11: 1015.05 | M11: Anteil (Bodenkorn) | N11: kg/m³ | O11: =1000*(1-O7)*O10 -> 1015.05 | P11: =1000*(1-P7)*P10 -> 1015.05 | Q11: =1000*(1-Q7)*Q10 -> 1015.05 | R11: =1000*(1-R7)*R10 -> 943.8 | S11: =1000*(1-S7)*S10 -> 1066
B12: Mittlerer Kornradius (d50) | C12: d50 | D12: m | E12: 0.001315 | F12: 0.001315 | M12: Mittlerer Kornradius (d50) | N12: m | O12: 0.001315 | P12: 0.000415 | Q12: 0.0001315 | R12: 3.25e-05 | S12: 2e-06
B13: Tortouistät in der Wasserphase (tw) | C13: tw | D13: - | E13: 1.4 | F13: 5 | M13: Tortuoistät in der Wasserphase (tw) | N13: - | O13: =1/O6 -> 5 | P13: =1/P6 -> 8 | Q13: =1/Q6 -> 10 | R13: =1/R6 -> 13.33333333 | S13: =1/S6 -> 28.57142857
B14: Effektive Wassersättigung (Sew) | C14: Sew | D14: - | E14: 0.2210526316 | F14: 0.2210526316 | M14: effektive Wassersättigung (Sew) | N14: - | O14: =(Sw-O15)/(1-O15) -> 0.2210526316 | P14: =(Sw-P15)/(1-P15) -> 0.1294117647 | Q14: =(Sw-Q15)/(1-Q15) -> 0.09756097561 | R14: =(Sw-R15)/(1-R15) -> 0.09756097561 | S14: =(Sw-S15)/(1-S15) -> 0.09756097561
B15: Residualsättigung von Wasser(Swr) | C15: Swr | D15: 0.25 | E15: 0.05 | F15: 0.05 | M15: Residualsättigung von Wasser(Swr) | N15: - | O15: 0.05 | P15: 0.15 | Q15: 0.18 | R15: 0.18 | S15: 0.18
B16: Parameter nach Brooks und Corey (α) | C16: α | D16: - | E16: 2 | F16: 2 | M16: Parameter nach Brooks und Corey (α) | N16: - | O16: 2 | P16: 2.3 | Q16: 3.5 | R16: 3.5 | S16: 3.5
B17: Einflussradius der Bodenluftabsaugung(Rl) | C17: Rl | D17: m2 | E17: 50 | F17: 25 | M17: Einflussradius der Bodenluftabsaugung(Rl) | N17: m2 | O17: 25 | P17: 20 | Q17: 10 | R17: 5 | S17: 5
B18: Relative Permeabilität bezogen auf Phase(Kra) | C18: Kri | D18: m2 | E18: 0.5771101695 | F18: 0.5771101695 | M18: relative Permeabilität bezogen auf Phase(Kra) | N18: m2 | O18: =IF(O15<Sw,(1-O14)^2*(1-O14^((2+2)/2)),1) -> 0.5771101695 | P18: =IF(P15<Sw,(1-P14)^2*(1-P14^((2+2.3)/2.3)),1) -> 0.7413508187 | Q18: =IF(Q15<Sw,(1-Q14)^2*(1-Q14^((2+3.5)/3.5)),1) -> 0.7933799355 | R18: =IF(R15<Sw,(1-R14)^2*(1-R14^((2+3.5)/3.5)),1) -> 0.7933799355 | S18: =IF(S15<Sw,(1-S14)^2*(1-S14^((2+3.5)/3.5)),1) -> 0.7933799355
B19: Permeabilitätskoeffizient (K) | C19: K | D19: m2 | E19: 2.042813456e-11 | F19: 2.042813456e-11 | M19: Permeabilitätskoeffizient (K) | N19: m2 | O19: =O5*1002*10^-6/1000/9.81 -> 2.042813456e-11 | P19: =P5*1002*10^-6/1000/9.81 -> 2.808868502e-11 | Q19: =Q5*1002*10^-6/1000/9.81 -> 1.021406728e-12 | R19: =R5*1002*10^-6/1000/9.81 -> 1.021406728e-14 | S19: =S5*1002*10^-6/1000/9.81 -> 1.021406728e-18

Sheet Stoffdatenbank (hidden)
B1: Sättigungs-konzentration | C1: Ver-dampfungs-enthalpie | D1: Gemisch-siedetemp. mit Wasser | E1: Sorptions-koeffizient | F1: Henry-Koeffizient | G1: Diffusions-koeffizient (in Wasser) | H1: Diffusions-koeffizient (in Luft) | I1: Löslichkeit | J1: Dampfdruck | K1: Siede-punkt | L1: Dichte | M1: Molekular-gewicht | N1: Stöchiometrische Faktoren (mikrobieller Abbau) [g EA / g Schadstoff]
A2: Verbindung | B2: Csat [mg/L] | C2: ΔHv [kJ/kg] | D2: °C | E2: KOC [L/kg] | F2: H (15°C) [-] | G2: Dw (15°C) [m²/s] | H2: Da (15°C) [m²/s] | I2: Lw (20°C) [mg/L] | J2: Po (15°C) [Pa] | K2: °C | L2: ρO [kg/L] | M2: Mm [g/mol] | N2: O2 | O2: Nitrat | P2: Sulfat | Q2: Bemerkung
A3: Leichtflüchtige chlorierte Kohlenwasserstoffe (LCKW)
A4: Tetrachlorethen | B4: 400.536634 | C4: 239.22 | D4: 88.7 | E4: =0.36*1000 -> 360 | F4: 0.64 | G4: 7.49e-10 | H4: 6.62e-06 | I4: 160 | J4: 1479 | K4: 121.075 | L4: 1.624 | M4: 166
A5: Trichlorethen | B5: 933.7871698 | C5: 263.15 | D5: 73.5 | E5: 130 | F5: 0.33 | G5: 8.08e-10 | H5: 7.12e-06 | I5: 1000 | J5: 6064 | K5: 86.975 | L5: 1.4642 | M5: 131
A6: cis-1,2-Dichlorethen | B6: 1350.326415 | C6: 319.07 | D6: 55.3 | E6: 50 | F6: 0.2 | G6: 8.95e-10 | H6: 7.88e-06 | I6: 3500 | J6: 17284 | K6: 60.1875 | L6: 1.2837 | M6: 97 | Q6: LW (cDCE) bei 25 °C
A7: trans-1,2-Dichlorethen | B7: 2846.882038 | C7: 306.55 | D7: 45.3 | E7: 60 | F7: 0.19 | G7: 8.86e-10 | H7: 8.83e-06 | I7: 6300 | J7: 29294 | K7: 48.066 | L7: 1.2565 | M7: 97
A8: 1,1-Dichlorethen | B8: 1446.287783 | C8: 274.33 | D8: =D6 -> 55.3 | E8: 70.51 | F8: 0.8 | G8: 1.173e-09 | H8: 9.865e-06 | I8: 2500 | J8: 6792.77 | K8: 31.4 | L8: 1.218 | M8: 97
A9: Vinylchlorid | B9: 1165.07683 | C9: 364.6 | D9: -13 | E9: 60 | F9: 6.78 | G9: 5.78e-10 | H9: 5.94e-06 | I9: 1100 | J9: 285916 | K9: -13.758 | L9: 0.9121 | M9: 63 | N9: 1.27 | O9: 1.97 | P9: 1.9
A10: Tetrachlormethan | C10: 201.95 | D10: 66 | E10: 285.6 | F10: 1.153 | G10: 7.293e-10 | H10: 6.323e-06 | I10: 800 | J10: 11940 | K10: 76.76 | L10: 1.594 | M10: 154
A11: Trichlormethan | B11: -- | C11: 273.11 | D11: 56.1 | E11: 51.21 | F11: 0.185 | G11: 8.245e-10 | H11: 7.141e-06 | I11: 8200 | J11: 20900 | K11: 61.12 | L11: 1.485 | M11: 119
A12: Dichlormethan | B12: -- | C12: 343.36 | D12: 43.5 | E12: 12.15 | F12: 0.1159 | G12: 9.83e-10 | H12: 8.441e-06 | I12: 17799 | J12: 39156.78 | K12: 39.95 | L12: 1.328 | M12: 85
A13: 1,1,1-Trichlorethan | B13: -- | C13: 243.62 | D13: 86 | E13: 144 | F13: 1 | G13: 7.61e-10 | H13: 6.77e-06 | I13: 1300 | J13: 1369.81 | K13: 74.05 | L13: 1.339 | M13: 133.404
A14: 1,1,2-Trichlorethan | B14: -- | C14: 301.34 | D14: 86 | E14: 43.64 | F14: 0.038 | G14: 6.8e-10 | H14: 7.6e-06 | I14: 4500 | J14: 2500 | K14: 13.65 | L14: 1.441 | M14: 133.404 | Q14: D abgeschätzt
A15: 1,1-Dichlorethan | B15: -- | C15: 310.28 | D15: 72.8 | E15: 35.74 | F15: 0.257 | G15: 1.14e-09 | H15: 8.7e-06 | I15: 8690 | J15: 29100 | K15: 57.4 | L15: 1.235 | M15: 98.96 | Q15: D abgeschätzt
A16: 1,2-Dichlorethan | B16: -- | C16: 354.69 | D16: 72.845 | E16: 39.6 | F16: 0.0508 | G16: 9.2e-10 | H16: 7.83e-06 | I16: 8690 | J16: 10000 | K16: 83.6 | M16: 98.96
A17: (Mono)aromatische Kohlenwasserstoffe (AKW)
A18: Benzol | B18: 1030.494 | C18: 434.62 | D18: 69.3 | E18: 80 | F18: 0.15 | G18: 8.15e-10 | H18: 7.59e-06 | I18: 1770 | J18: 7941 | K18: 80.15 | L18: 0.877 | M18: 78 | N18: 3.08 | O18: 4.77 | P18: 4.62
A19: Toluol | B19: 1069.703185 | C19: 390.22 | D19: 84.6 | E19: 300 | F19: 0.16 | G19: 7.34e-10 | H19: 6.9e-06 | I19: 520 | J19: 2215 | K19: 110.7 | L19: 0.87 | M19: 92 | N19: 3.13 | O19: 4.85 | P19: 4.7
A20: Ethylbenzol | B20: 1261.380626 | C20: 386.76 | D20: 91.5 | E20: 1100 | F20: 0.19 | G20: 6.76e-10 | H20: 6.39e-06 | I20: 170 | J20: 728 | K20: 136.2 | L20: 0.866 | M20: 106 | N20: 3.17 | O20: 4.91 | P20: 4.75
A21: o-Xylol | B21: 1008.798385 | C21: 396.23 | D21: 93.3 | E21: 830 | F21: 0.12 | G21: 6.8e-10 | H21: 6.42e-06 | I21: 180 | J21: 492 | K21: 143.9 | L21: 0.88 | M21: 106 | N21: 3.17 | O21: 4.91 | P21: 4.75
A22: m-Xylol | B22: 1150.683143 | C22: 386.79 | D22: 93.3 | E22: 980 | F22: 0.16 | G22: 6.71e-10 | H22: 6.36e-06 | I22: 174 | J22: 615 | K22: 139.2 | L22: 0.864 | M22: 106 | N22: 3.17 | O22: 4.91 | P22: 4.75
A23: p-Xylol | B23: 1188.44 | C23: 396.23 | D23: 93.3 | E23: 880 | F23: 0.15 | G23: 6.71e-10 | H23: 6.36e-06 | I23: 200 | J23: 657 | K23: 138.3 | L23: 0.861 | M23: 106 | N23: 3.17 | O23: 4.91 | P23: 4.75
A24: n-Propylbenzol | B24: 397.0084528 | C24: 383.33 | D24: 96.5 | E24: 980 | F24: 0.2 | G24: 6.2e-10 | H24: 6e-06 | I24: 60 | J24: 237 | K24: 158.9 | L24: 0.86 | M24: 120 | N24: 3.2 | O24: 4.96 | P24: 4.8 | Q24: LW bei 25 °C
A25: Isopropylbenzol | B25: 318.5001132 | C25: 366.67 | D25: 95 | E25: 940 | F25: 0.43 | G25: 6.2e-10 | H25: 6e-06 | I25: 50 | J25: 427 | K25: 151.9 | L25: 0.862 | M25: 120 | N25: 3.2 | O25: 4.96 | P25: 4.8 | Q25: LW bei 25 °C
A26: o-Ethyltoluol | B26: 496.2027985 | C26: 395.25 | D26: 96.5 | E26: 790 | F26: 0.11 | G26: 6.3e-10 | H26: 6e-06 | I26: 93 | J26: 202 | K26: 165.2 | L26: 0.88 | M26: 120 | N26: 3.2 | O26: 4.96 | P26: 4.8
A27: m-Ethyltoluol | B27: 497.9584679 | C27: 390 | D27: 96.5 | E27: 760 | F27: 0.1 | G27: 6.2e-10 | H27: 6e-06 | I27: 97 | J27: 202 | K27: 161.4 | L27: 0.864 | M27: 120 | N27: 3.2 | O27: 4.96 | P27: 4.8
A28: p-Ethyltoluol | B28: 576.9763698 | C28: 388.92 | D28: 96.5 | E28: 900 | F28: 0.12 | G28: 6.2e-10 | H28: 6e-06 | I28: 95 | J28: 230 | K28: 162 | L28: 0.861 | M28: 120 | N28: 3.2 | O28: 4.96 | P28: 4.8
A29: 1,2-Diethylbenzol | B29: 81.53091623 | C29: 394.03 | D29: 96.5 | E29: 500 | F29: 0.16 | G29: 5.9e-10 | H29: 5.7e-06 | I29: 24 | J29: 67 | K29: 182.9 | L29: 0.88 | M29: 134 | N29: 3.22 | O29: 4.99 | P29: 4.83
A30: 1,3-Diethylbenzol | B30: 77.42444604 | C30: 391.79 | D30: 96.5 | E30: 420 | F30: 0.23 | G30: 5.8e-10 | H30: 5.6e-06 | I30: 27 | J30: 109 | K30: 180.9 | L30: 0.86 | M30: 134 | N30: 3.22 | O30: 4.99 | P30: 4.83
A31: 1,4-Diethylbenzol | B31: 78.38930189 | C31: 391.79 | D31: 96.5 | E31: 460 | F31: 0.23 | G31: 5.8e-10 | H31: 5.6e-06 | I31: 25 | J31: 101 | K31: 183.7 | L31: 0.862 | M31: 134 | N31: 3.22 | O31: 4.99 | P31: 4.83
A32: 1,2,3-Trimethylbenzol | B32: 329.6062075 | C32: 408.33 | D32: 96.5 | E32: 870 | F32: 0.08 | G32: 6.4e-10 | H32: 6e-06 | I32: 75 | J32: 125 | K32: 176.1 | L32: 0.894 | M32: 120 | N32: 3.2 | O32: 4.96 | P32: 4.8
A33: 1,2,4-Trimethylbenzol | B33: 263.9061283 | C33: 391.67 | D33: 96.5 | E33: 990 | F33: 0.12 | G33: 6.3e-10 | H33: 6e-06 | I33: 60 | J33: 147 | K33: 169.3 | L33: 0.876 | M33: 120 | N33: 3.2 | O33: 4.96 | P33: 4.8 | Q33: LW bei 25 °C
A34: 1,3,5-Trimethylbenzol | B34: 91.31219623 | C34: 395.92 | D34: 96.5 | E34: 670 | F34: 0.48 | G34: 6.3e-10 | H34: 6e-06 | I34: 20 | J34: 193 | K34: 164.7 | L34: 0.865 | M34: 120 | N34: 3.2 | O34: 4.96 | P34: 4.8
A35: n-Alkane
A36: n-Pentan | B36: 366.0097811 | C36: 368.06 | D36: 34.6 | E36: 870 | F36: 35.69 | G36: 7.01e-10 | H36: 6.89e-06 | I36: 40 | J36: 46219 | K36: 36.05 | L36: 0.626 | M36: 72 | N36: 3.56 | O36: 5.51 | P36: 5.33
A37: n-Hexan | B37: 179.8355321 | C37: 360.47 | D37: 61.6 | E37: 2040 | F37: 46.48 | G37: 6.49e-10 | H37: 6.36e-06 | I37: 10 | J37: 12922 | K37: 68.75 | L37: 0.66 | M37: 86 | N37: 3.53 | O37: 5.47 | P37: 5.29
A38: n-Heptan | B38: 91.50556302 | C38: 360 | D38: 79.6 | E38: 5250 | F38: 69.3 | G38: 6.05e-10 | H38: 5.92e-06 | I38: 2.2 | J38: 3645 | K38: 98.35 | L38: 0.684 | M38: 100 | N38: 3.52 | O38: 5.45 | P38: 5.28 | Q38: LW bei 25 °C
A39: n-Octan | B39: 86.10767042 | C39: 359.65 | D39: 89.5 | E39: 17380 | F39: 70.89 | G39: 5.69e-10 | H39: 5.58e-06 | I39: 0.7 | J39: 1041 | K39: 125.6 | L39: 0.7025 | M39: 114 | N39: 3.51 | O39: 5.44 | P39: 5.26
A40: n-Nonan | B40: 23.87807755 | C40: 363.28 | D40: 94.8 | E40: 27540 | F40: 156.63 | G40: 5.41e-10 | H40: 5.31e-06 | I40: 0.12 | J40: 351 | K40: 150.7 | L40: 0.72 | M40: 128 | N40: 3.5 | O40: 5.42 | P40: 5.25 | Q40: LW bei 25 °C
A41: n-Decan | B41: 73.93935774 | C41: 361.27 | D41: 97.2 | E41: 218780 | F41: 140.3 | G41: 5.13e-10 | H41: 5.05e-06 | I41: 0.05 | J41: 118 | K41: 174.1 | L41: 0.73 | M41: 142 | N41: 3.49 | O41: 5.41 | P41: 5.23
A42: blau = berechnet, grau = abgeschätzt | B42: Temperatur [K] | C42: =273.15+15 -> 288.15
A46: n-Alkane
A47: n-Pentan | B47: 366.0097811 | C47: 368.06 | D47: 34.6 | E47: 870 | F47: 35.69 | G47: 7.01e-10 | H47: 6.89e-06 | I47: 40 | J47: 46219 | K47: 36.05 | L47: 0.626 | M47: 72 | N47: 3.56 | O47: 5.51 | P47: 5.33
A48: n-Hexan | B48: 179.8355321 | C48: 360.47 | D48: 61.6 | E48: 2040 | F48: 46.48 | G48: 6.49e-10 | H48: 6.36e-06 | I48: 10 | J48: 12922 | K48: 68.75 | L48: 0.66 | M48: 86 | N48: 3.53 | O48: 5.47 | P48: 5.29
A49: n-Heptan | B49: 91.50556302 | C49: 360 | D49: 79.6 | E49: 5250 | F49: 69.3 | G49: 6.05e-10 | H49: 5.92e-06 | I49: 2.2 | J49: 3645 | K49: 98.35 | L49: 0.684 | M49: 100 | N49: 3.52 | O49: 5.45 | P49: 5.28 | Q49: LW bei 25 °C
A50: n-Octan | B50: 86.10767042 | C50: 359.65 | D50: 89.5 | E50: 17380 | F50: 70.89 | G50: 5.69e-10 | H50: 5.58e-06 | I50: 0.7 | J50: 1041 | K50: 125.6 | L50: 0.7025 | M50: 114 | N50: 3.51 | O50: 5.44 | P50: 5.26
A51: n-Nonan | B51: 23.87807755 | C51: 363.28 | D51: 94.8 | E51: 27540 | F51: 156.63 | G51: 5.41e-10 | H51: 5.31e-06 | I51: 0.12 | J51: 351 | K51: 150.7 | L51: 0.72 | M51: 128 | N51: 3.5 | O51: 5.42 | P51: 5.25 | Q51: LW bei 25 °C
A52: n-Decan | B52: 73.93935774 | C52: 361.27 | D52: 97.2 | E52: 218780 | F52: 140.3 | G52: 5.13e-10 | H52: 5.05e-06 | I52: 0.05 | J52: 118 | K52: 174.1 | L52: 0.73 | M52: 142 | N52: 3.49 | O52: 5.41 | P52: 5.23

Sheet Ergebnisse (hidden)
B1: Ergebnisparameter | C1: Einheit | D1: Wert | V1: Schadstoffphase | AJ1: Maximale Reichweite | AM1: =IF(VLOOKUP((MATCH(TRUE,AN10:AN2000<AQ2,0)),AJ10:AO2000,3,FALSE)>70,AM3,VLOOKUP((MATCH(TRUE,AN10:AN2000<AQ2,0)),AJ10:AO2000,3,FALSE)) -> 5.867571669 | AX1: Sanierungsdauer
A2: Sanierungserfolg | Q2: Sanierungszielwert | R2: [mg/kg] | S2: =Sanierungszielwert -> 5 | AJ2: max. Reichweite | AL2: [m] | AM2: =MIN(AM1,AM3) -> 5.867571669 | AO2: Krit. Porengasgeschw. Auswahl | AP2: [m/s] | AQ2: =MIN(IF(AQ3:AQ4<1,AQ3:AQ4)) -> 3.290261351e-05 | AS2: Stofftransferkoeffizient [1/s]
B3: Gesamtdauer der Sanierung | C3: a | D3: =S3 -> 2.008675799 | Q3: Sanierungsdauer | R3: [a] | S3: =MAX(IF(ISNUMBER(BZ11:BZ100000),BZ11:BZ100000)) -> 2.008675799 | V3: Gesamter org. Schadstoff im Boden | AJ3: Max. Schadensradius | AL3: [m] | AM3: =SQRT((Sanierungsfläche/PI())) -> 5.867571669 | AO3: 1. Ordnung | AP3: vc(aw) | AQ3: =AU3*Lc/(10*Theta_a) -> 3.290261351e-05 | AS3: mit Retardation | AT3: λaw | AU3: =(15*Dw)/((1+pb*Kd/Theta_w)*tw*dc^2) -> 1.913051957e-05 | AW3: Reichweite | AX3: [m] | AY3: =maxReichweite -> 5.867571669 | BA3: Zeitschritte Radius | BB3: [s] | BC3: 1.9 | BE3: Intervalle | BF3: 17596
B4: Sanierungszielwert | C4: mg/m3 | D4: =S2 -> 5 | Q4: Sanierungsdauer | R4: [d] | S4: =S3*365 -> 733.1666667 | V4: Anteil betrachteter Schadstoff | X4: 0.28 | AJ4: Verhältnis der Schadstoffmasse im Aggregat zur Schadstoffmasse in der Bodenluft | AK4: ξ | AL4: [-] | AM4: =((Kd*(1-Theta_w)*ps+Theta_w)*(1-Theta_a))/(S46*Theta_a) -> 74.2216011 | AO4: Aggregat/Diffusion | AP4: vc(a-aw) | AQ4: =(AM5*Lc*(1+AM4))/(dc^2) -> 0.0002953275018 | AS4: DiGulio2 | AT4: λaw | AU4: =15*Dw*Theta_w/(tw*H*Theta_a*dc^2) -> 0.001376977102
B5: max. Schadstoffkonzentration im Boden | C5: mg/kg | D5: =BP11 -> 7.689985657 | AJ5: sorptionsbeeinflusste effektive Diffusionskoeffizient | AK5: Da | AL5: [m2/s] | AM5: =(Theta_w*Dw)/(tw*(Kd*(1-Theta_w)*ps+Theta_w)) -> 1.145112398e-13 | AO5: Kinetik | AP5: vc(D-aw) | AQ5: =1.5*(Dw*Lc)/(tw*dc^2)*(H*Theta_a+Theta_w+pb*Kd) -> 5.103066451 | AS5: DiGulio | AT5: λaw | AU5: =15*Dw*Theta_w/(tw*dc^2) -> 0.004435084548
A6: Dimensionierung Brunnen | AJ6: Retardationsfaktor | AK6: Rs | AL6: [-] | AM6: =pb/Theta_a/H*Kd -> 71.95139083 | AO6: Produktphase/Luft | AP6: vc(an) | AQ6: =((10^-0.42*(Da*10000)^0.38*(d_50*100)^0.44*Lc*100)/(-Theta_a*LN(1-0.9)))^2.63 -> 15710.01109 | AS6: Verbindungen mit einen log(Kd) von -1,5 bis 5,5 | AT6: λsw | AU6: =(10^(0.301-0.668*LOG((Kd*1000)))) -> 0.07721765475
B7: Anzahl benötigter Brunnen | C7: - | D7: =Anzahl_Brunnen -> 2 | AO7: Feststoff/Wasser | AP7: vc(sw) | AQ7: =0.1*AU6*Lc*AM6 -> 2.333485416
B8: Volumenstrom | C8: m3/h | D8: =(F*PI()*Ka/ua)*(Pw*(1-(PROI/Pw)^2))/(LN(rw/Rl))*60*60 -> 11.23915251 | BD8: Erstes Zeitintervall | BJ8: Zweites Zeitintervall | BP8: Letztes Zeitintervall
B9: Betrachteter Schadstoff | C9: n-Alkane | Q9: Parameter zur Berechnung | V9: Schadstoffname | X9: Sättigungs-konzentration | Y9: Henry-Koeffizient | Z9: Verteilungskoeff. Kohlenstoff/Wasser | AA9: Verteilungskoeff. Boden/Wasser | AB9: Diffusionskoeff. Gas | AC9: Diffusionskoeff. Wasser | AD9: Wasserlöslichkeit | AE9: Sättigungsdampfdruck | AF9: Molare Masse | AG9: Konzentration im Boden | AH9: Molfraktion/Anteil | AJ9: Index | AK9: P(rn) | AL9: r | AM9: vb | AN9: va | AO9: qa (Gleichung) | AP9: x | AQ9: y | AR9: z | AS9: a | AT9: b | AU9: c | AV9: qa (Darcy) | AW9: Durchflusszeit [min] | AX9: rn [m] | AY9: qa [m/s] | AZ9: va [m/s] | BA9: λna [1/s] | BB9: v(rn) | BC9: va(rn) | BD9: ct(rn) [mg/kg] | BE9: cw(rn) [mg/m³] | BF9: ca(rn) [mg/m³] | BG9: cs(rn) [mg/m3] | BH9: Jaw(rn) [mg/m³*s] | BI9: Jan(rn) [mg/m³*s] | BJ9: ct(rn) [mg/kg] | BK9: cw(rn) [mg/m³] | BL9: ca(rn) [mg/m³] | BM9: cs(rn) [mg/m3] | BN9: Jaw(rn) [mg/m³*s] | BO9: Jan(rn) [mg/m³*s] | BP9: ct(rn) [mg/kg] | BQ9: cw(rn) [mg/m³] | BR9: ca(rn) [mg/m³] | BS9: cs(rn) [mg/m3] | BT9: Jaw(rn) [mg/m³*s] | BU9: Jan(rn) [mg/m³*s] | BV9: Zeit [a] | BW9: Konzentration Abluft [mg/m3] | BX9: Konzentration Boden [mg/kg]
X10: Csat [mg/kg] | Y10: H [-] | Z10: Koc [m3/kg] | AA10: Kd | AB10: Da [m2/s] | AC10: Dw [m2/s] | AD10: Lw [mg/m3] | AE10: P [kg/(m*s2] | AF10: Mm [kg/mol] | AG10: [mg/kg] | AJ10: 1 | AK10: =(Pw^2+(PROI^2-Pw^2)*(LN(AL10/rw))/(LN(Rl/rw)))^0.5 -> 91300 | AL10: 0.1 | AM10: =ta^0.5*AN10 -> 0.0695578583 | AN10: =AO10/n/Sa -> 0.04069448261 | AO10: =AP10*AQ10/AR10 -> 0.009937592653 | AP10: =Ka/(2*$S$11) -> 3.274801166e-07 | AQ10: =AS10*AT10 -> 30345.63673 | AR10: =(1+AT10*AU10)^0.5 -> 1 | AS10: =Pw/(AL10*LN(rw/Rl)) -> -146911.9187 | AT10: =1-(PROI/Pw)^2 -> -0.2065566701 | AU10: =LN(AL10/rw)/LN(rw/Rl) -> 0 | AW10: =IF(AX10="","",AW11+dt/60) -> 23.78166667 | AX10: 0
Q11: Dynamische Viskosität von Luft [kg/(m*s)] | R11: μa | S11: =1.8*10^-5 -> 1.8e-05 | V11: Tetrachlorethen | X11: =((Theta_w+pb*AA11+Theta_a*Y11)/pb)*AD11 -> 597.8158716 | Y11: =VLOOKUP(V11,Stoffdatenbank!$A$4:$Q$41,6,FALSE) -> 0.64 | Z11: =VLOOKUP(V11,Stoffdatenbank!$A$4:$Q$41,5,FALSE)/1000 -> 0.36 | AA11: =Z11*foc -> 0.0036 | AB11: =VLOOKUP(V11,Stoffdatenbank!$A$4:$Q$41,8,FALSE) -> 6.62e-06 | AC11: =VLOOKUP(V11,Stoffdatenbank!$A$4:$Q$41,7,FALSE) -> 7.49e-10 | AD11: =VLOOKUP(V11,Stoffdatenbank!$A$4:$Q$41,9,FALSE)*1000 -> 160000 | AE11: =VLOOKUP(V11,Stoffdatenbank!$A$4:$Q$41,10,FALSE) -> 1479 | AF11: =VLOOKUP(V11,Stoffdatenbank!$A$4:$Q$41,13,FALSE)/1000 -> 0.166 | AG11: =IF(Schadstoffbelastung!X3<>0,Schadstoffbelastung!X3,"") -> 6.066291667 | AH11: =IF(AG11<>"",AG11/$AG$24,"") -> 0.0177718442 | AJ11: 2 | AK11: =(Pw^2+(PROI^2-Pw^2)*(LN(AL11/rw))/(LN(Rl/rw)))^0.5 -> 92345.71106 | AL11: 0.2 | AM11: =ta^0.5*AN11 -> 0.03438509699 | AN11: 0.02011683174 | AO11: =AP11*AQ11/AR11 -> 0.00491253031 | AP11: 3.274801166e-07 | AQ11: =AS11*AT11 -> 15172.81836 | AR11: =(1+AT11*AU11)^0.5 -> 1.011453571 | AS11: -73455.95937 | AT11: -0.2065566701 | AU11: -0.1115351394 | AV11: =(Ka/ua)*(AK11-AK10)/(AL11-AL10) -> 0.006848991622 | AW11: 23.75 | AX11: =rw -> 0.1 | AY11: =IF(AX11="","",(Ka/(2*ua))*((Pw/(AX11*LN(rw/Rl)))*(1-(PROI/Pw)^2))/((1+(1-(PROI/Pw)^2)*(LN(AX11/rw)/LN(rw/Rl)))^0.5)) -> 0.009937592653 | AZ11: =IF(AX11="","",AY11/n/Sa) -> 0.04069448261 | BA11: =10^-0.42*(Da*10000)^0.38*(AZ11*100)^0.62*(d_50*100)^0.44 -> 0.1259297835 | BB11: =IF(AX11="","",PI()*(AX11^2-AX10^2)*F) -> 0.01570796327 | BC11: =IF(AX11="","",BB11*Theta_a) -> 0.00383588463 | BD11: =Ct -> 806.7460681 | BE11: =IF((BD11*pb)/(Kd*pb+Theta_w+H*Theta_a)<=Lw,(BD11*pb)/(Kd*pb+Theta_w+H*Theta_a),Lw) -> 911.4 | BF11: =IF(BF12="","0",(BF12*Theta_a+(BI12+BH12)*dt)/Theta_a) -> 12016.73864 | BG11: =IF(BE11=0,0,Kd*BE11) -> 118.960485 | BH11: =IF(BD11<=Csat,Anteil_Schadstoff*Theta_a*Yaw*(H*BE11-BF11),0) -> 0 | BI11: =IF(BD11>Csat,Anteil_Schadstoff*Theta_a*$BA11*(Ca_sat-BF11),0) -> 0.03620483043 | BJ11: =IF(Csat>=BD11,IF(BD11-(BI11+BH11)*Zeitfaktor/pb>0,BD11-(BI11+BH11)*Zeitfaktor/pb,0),IF(BD11-(BI11+BH11)*Zeitfaktor/pb>Csat,BD11-(BI11+BH11)*Zeitfaktor/pb,Csat)) -> 806.6726593 | BK11: =IF((BJ11*pb)/(Kd*pb+Theta_w+H*Theta_a)<=Lw,(BJ11*pb)/(Kd*pb+Theta_w+H*Theta_a),Lw) -> 911.4 | BL11: =IF(BL12="","0",(BL12*Theta_a+(BO12+BN12)*dt)/Theta_a) -> 12016.73864 | BM11: =IF(BK11=0,0,Kd*BK11) -> 118.960485 | BN11: =IF(BJ11<=Csat, Anteil_Schadstoff*Theta_a*Yaw*(H*BK11-BL11),0) -> 0 | BO11: =IF(BJ11>Csat,Anteil_Schadstoff*Theta_a*$BA11*(Ca_sat-BL11),0) -> 0.03620483043 | BP11: 7.689985657 | BQ11: 55.66826233 | BR11: 4.999679054 | BS11: 118.960485 | BT11: 0.0008343206019 | BU11: 0 | BV11: 0 | BW11: 12020.78708 | BX11: 806.7460681 | BZ11: =IF(BV11="",#N/A,IF($C$9="LCKW",BV11*100,BV11)) -> 0
Q12: Dichte von Wasser [kg/m3] | R12: ρw | S12: 1000 | V12: Trichlorethen | X12: 1393.712194 | Y12: =VLOOKUP(V12,Stoffdatenbank!$A$4:$Q$41,6,FALSE) -> 0.33 | Z12: =VLOOKUP(V12,Stoffdatenbank!$A$4:$Q$41,5,FALSE)/1000 -> 0.13 | AA12: 0.0013 | AB12: =VLOOKUP(V12,Stoffdatenbank!$A$4:$Q$41,8,FALSE) -> 7.12e-06 | AC12: =VLOOKUP(V12,Stoffdatenbank!$A$4:$Q$41,7,FALSE) -> 8.08e-10 | AD12: =VLOOKUP(V12,Stoffdatenbank!$A$4:$Q$41,9,FALSE)*1000 -> 1000000 | AE12: =VLOOKUP(V12,Stoffdatenbank!$A$4:$Q$41,10,FALSE) -> 6064 | AF12: =VLOOKUP(V12,Stoffdatenbank!$A$4:$Q$41,13,FALSE)/1000 -> 0.131 | AG12: =IF(Schadstoffbelastung!X4<>0,Schadstoffbelastung!X4,"") -> 10.35708333 | AH12: =IF(AG12<>"",AG12/$AG$24,"") -> 0.03034217302 | AJ12: 3 | AK12: 92951.9594 | AL12: 0.3 | AM12: =ta^0.5*AN12 -> 0.02277388773 | AN12: 0.01332375091 | AO12: 0.003253659973 | AP12: 3.274801166e-07 | AQ12: 10115.21224 | AR12: 1.01809375 | AS12: -48970.63958 | AT12: -0.2065566701 | AU12: -0.1767790135 | AV12: 0.003970685518 | AW12: 23.71833333 | AX12: =IF(AX11="","",IF((AX11)>=$AY$3,"",AX11+AZ11*dt)) -> 0.177319517 | AY12: 0.005551745056 | AZ12: 0.02273441874 | BA12: 0.08777289389 | BB12: =IF(AX12="","",PI()*(AX12^2-AX11^2)*F) -> 0.03368134642 | BC12: =IF(AX12="","",BB12*Theta_a) -> 0.008224984797 | BD12: 806.7460681 | BE12: =IF((BD12*pb)/(Kd*pb+Theta_w+H*Theta_a)<=Lw,(BD12*pb)/(Kd*pb+Theta_w+H*Theta_a),Lw) -> 911.4 | BF12: =IF(BF13="","0",(BF13*Theta_a+(BI13+BH13)*dt)/Theta_a) -> 12016.53268 | BG12: =IF(BE12=0,0,Kd*BE12) -> 118.960485 | BH12: =IF(BD12<=Csat,Anteil_Schadstoff*Theta_a*Yaw*(H*BE12-BF12),0) -> 0 | BI12: =IF(BD12>Csat,Anteil_Schadstoff*Theta_a*$BA12*(Ca_sat-BF12),0) -> 0.026470777 | BJ12: =IF(Csat>=BD12,IF(BD12-(BI12+BH12)*Zeitfaktor/pb>0,BD12-(BI12+BH12)*Zeitfaktor/pb,0),IF(BD12-(BI12+BH12)*Zeitfaktor/pb>Csat,BD12-(BI12+BH12)*Zeitfaktor/pb,Csat)) -> 806.692396 | BK12: =IF((BJ12*pb)/(Kd*pb+Theta_w+H*Theta_a)<=Lw,(BJ12*pb)/(Kd*pb+Theta_w+H*Theta_a),Lw) -> 911.4 | BL12: =IF(BL13="","0",(BL13*Theta_a+(BO13+BN13)*dt)/Theta_a) -> 12016.53268 | BM12: =IF(BK12=0,0,Kd*BK12) -> 118.960485 | BN12: =IF(BJ12<=Csat, Anteil_Schadstoff*Theta_a*Yaw*(H*BK12-BL12),0) -> 0 | BO12: =IF(BJ12>Csat,Anteil_Schadstoff*Theta_a*$BA12*(Ca_sat-BL12),0) -> 0.026470777 | BP12: 7.382939186 | BQ12: 53.44553471 | BR12: 4.993448529 | BS12: 118.960485 | BT12: 0.0008007865051 | BU12: 0 | BV12: 0.0001141552511 | BW12: 12020.29615 | BX12: 806.7399299 | BZ12: =IF(BV12="",#N/A,IF($C$9="LCKW",BV12*100,BV12)) -> 0.0001141552511
Q13: Erdbeschleunigung [m2/s] | R13: g | S13: 9.81 | V13: cis-1,2-Dichlorethen | X13: 2015.41256 | Y13: =VLOOKUP(V13,Stoffdatenbank!$A$4:$Q$41,6,FALSE) -> 0.2 | Z13: =VLOOKUP(V13,Stoffdatenbank!$A$4:$Q$41,5,FALSE)/1000 -> 0.05 | AA13: 0.0005 | AB13: =VLOOKUP(V13,Stoffdatenbank!$A$4:$Q$41,8,FALSE) -> 7.88e-06 | AC13: =VLOOKUP(V13,Stoffdatenbank!$A$4:$Q$41,7,FALSE) -> 8.95e-10 | AD13: =VLOOKUP(V13,Stoffdatenbank!$A$4:$Q$41,9,FALSE)*1000 -> 3500000 | AE13: =VLOOKUP(V13,Stoffdatenbank!$A$4:$Q$41,10,FALSE) -> 17284 | AF13: =VLOOKUP(V13,Stoffdatenbank!$A$4:$Q$41,13,FALSE)/1000 -> 0.097 | AG13: =IF(Schadstoffbelastung!X5<>0,Schadstoffbelastung!X5,"") -> 10.41922583 | AH13: 0.03052422606 | AJ13: 4 | AK13: 93379.71248 | AL13: 0.4 | AM13: 0.01700217396 | AN13: 0.009947038182 | AO13: 0.002429066724 | AP13: 3.274801166e-07 | AQ13: 7586.409182 | AR13: 1.022778888 | AS13: -36727.97969 | AT13: -0.2065566701 | AU13: -0.2230702788 | AV13: 0.0028016126 | AW13: =IF(AX13="","",AW14+dt/60) -> 23.68666667 | AX13: =IF(AX12="","",IF((AX12)>=$AY$3,"",AX12+AZ12*dt)) -> 0.2205149126 | AY13: =IF(AX13="","",(Ka/(2*ua))*((Pw/(AX13*LN(rw/Rl)))*(1-(PROI/Pw)^2))/((1+(1-(PROI/Pw)^2)*(LN(AX13/rw)/LN(rw/Rl)))^0.5)) -> 0.004448457777 | AZ13: =IF(AX13="","",AY13/n/Sa) -> 0.01821645281 | BA13: =10^-0.42*(Da*10000)^0.38*(AZ13*100)^0.62*(d_50*100)^0.44 -> 0.07650749658 | BB13: =IF(AX13="","",PI()*(AX13^2-AX12^2)*F) -> 0.02699353101 | BC13: =IF(AX13="","",BB13*Theta_a) -> 0.006591820272 | BD13: 806.7460681 | BE13: 911.4 | BF13: 12016.34554 | BG13: 118.960485 | BH13: 0 | BI13: 0.02405230593 | BJ13: 806.6972997 | BK13: 911.4 | BL13: 12016.34554 | BM13: 118.960485 | BN13: 0 | BO13: 0.02405230593 | BP13: 6.978045217 | BQ13: 50.51448325 | BR13: 4.987562082 | BS13: 118.960485 | BT13: 0.0007565633234 | BU13: 0 | BV13: 0.0002283105023 | BW13: 12020.29615 | BX13: 806.7176923 | BZ13: 0.0002283105023
Q14: Permeabilität [m2] | R14: K | S14: =(kf*1002*10^-6/S12/S13) -> 2.042813456e-11 | V14: trans-1,2-Dichlorethen | X14: 4249.077668 | Y14: =VLOOKUP(V14,Stoffdatenbank!$A$4:$Q$41,6,FALSE) -> 0.19 | Z14: =VLOOKUP(V14,Stoffdatenbank!$A$4:$Q$41,5,FALSE)/1000 -> 0.06 | AA14: 0.0006 | AB14: =VLOOKUP(V14,Stoffdatenbank!$A$4:$Q$41,8,FALSE) -> 8.83e-06 | AC14: =VLOOKUP(V14,Stoffdatenbank!$A$4:$Q$41,7,FALSE) -> 8.86e-10 | AD14: =VLOOKUP(V14,Stoffdatenbank!$A$4:$Q$41,9,FALSE)*1000 -> 6300000 | AE14: =VLOOKUP(V14,Stoffdatenbank!$A$4:$Q$41,10,FALSE) -> 29294 | AF14: =VLOOKUP(V14,Stoffdatenbank!$A$4:$Q$41,13,FALSE)/1000 -> 0.097 | AG14: =IF(Schadstoffbelastung!X6<>0,Schadstoffbelastung!X6,"") -> 46.31095833 | AH14: 0.1356728594 | AJ14: 5 | AK14: 93710.15894 | AL14: 0.5 | AM14: 0.01355377589 | AN14: 0.007929569866 | AO14: 0.001936400961 | AP14: 3.274801166e-07 | AQ14: 6069.127346 | AR14: 1.026398236 | AS14: -29382.38375 | AT14: -0.2065566701 | AU14: -0.2589765737 | AV14: 0.002164292867 | AW14: 23.655 | AX14: 0.2551261729 | AY14: 0.003835920001 | AZ14: 0.01570810811 | BA14: 0.06979321976 | BB14: 0.02585929334 | BC14: 0.006314839434 | BD14: 806.7460681 | BE14: 911.4 | BF14: 12016.16824 | BG14: 118.960485 | BH14: 0 | BI14: 0.02278758506 | BJ14: 806.6998641 | BK14: 911.4 | BL14: 12016.16824 | BM14: 118.960485 | BN14: 0 | BO14: 0.02278758506 | BP14: 7.036643646 | BQ14: 50.93868075 | BR14: 4.981625778 | BS14: 118.960485 | BT14: 0.000762971306 | BU14: 0 | BV14: 0.0003424657534 | BW14: 12020.29615 | BX14: 806.6954548 | BZ14: 0.0003424657534
Q15: relative Perm. Bezogen auf Phase [-] | R15: Kri | S15: =Kri -> 0.5771101695 | V15: 1,1-Dichlorethen | X15: 2158.638482 | Y15: =VLOOKUP(V15,Stoffdatenbank!$A$4:$Q$41,6,FALSE) -> 0.8 | Z15: =VLOOKUP(V15,Stoffdatenbank!$A$4:$Q$41,5,FALSE)/1000 -> 0.07051 | AA15: 0.0007051 | AB15: =VLOOKUP(V15,Stoffdatenbank!$A$4:$Q$41,8,FALSE) -> 9.865e-06 | AC15: =VLOOKUP(V15,Stoffdatenbank!$A$4:$Q$41,7,FALSE) -> 1.173e-09 | AD15: =VLOOKUP(V15,Stoffdatenbank!$A$4:$Q$41,9,FALSE)*1000 -> 2500000 | AE15: =VLOOKUP(V15,Stoffdatenbank!$A$4:$Q$41,10,FALSE) -> 6792.77 | AF15: =VLOOKUP(V15,Stoffdatenbank!$A$4:$Q$41,13,FALSE)/1000 -> 0.097 | AG15: =IF(Schadstoffbelastung!X7<>0,Schadstoffbelastung!X7,"") -> 38.617125 | AH15: 0.1131329594 | AJ15: 6 | AK15: 93979.29085 | AL15: 0.6 | AM15: 0.01126246787 | AN15: 0.00658905139 | AO15: 0.00160904635 | AP15: 3.274801166e-07 | AQ15: 5057.606121 | AR15: 1.029346011 | AS15: -24485.31979 | AT15: -0.2065566701 | AU15: -0.2883141529 | AV15: 0.001762706976 | AW15: 23.62333333 | AX15: 0.2849715783 | AY15: 0.003428072695 | AZ15: 0.01403797172 | BA15: 0.06509462548 | BB15: 0.02532035141 | BC15: 0.006183229813 | BD15: 806.7460681 | BE15: 911.4 | BF15: 12015.99695 | BG15: 118.960485 | BH15: 0 | BI15: 0.02201590569 | BJ15: 806.7014287 | BK15: 911.4 | BL15: 12015.99695 | BM15: 118.960485 | BN15: 0 | BO15: 0.02201590569 | BP15: 7.069931639 | BQ15: 51.17965451 | BR15: 4.975661128 | BS15: 118.960485 | BT15: 0.000766614453 | BU15: 0 | BV15: 0.0004566210046 | BW15: 12020.29615 | BX15: 806.6732173 | BZ15: 0.0004566210046
Q16: Perm. bezogen auf Phase [m2] | R16: Ki | S16: =S14*S15 -> 1.17892842e-11 | V16: Vinylchlorid | X16: 1738.920642 | Y16: =VLOOKUP(V16,Stoffdatenbank!$A$4:$Q$41,6,FALSE) -> 6.78 | Z16: =VLOOKUP(V16,Stoffdatenbank!$A$4:$Q$41,5,FALSE)/1000 -> 0.06 | AA16: 0.0006 | AB16: =VLOOKUP(V16,Stoffdatenbank!$A$4:$Q$41,8,FALSE) -> 5.94e-06 | AC16: =VLOOKUP(V16,Stoffdatenbank!$A$4:$Q$41,7,FALSE) -> 5.78e-10 | AD16: =VLOOKUP(V16,Stoffdatenbank!$A$4:$Q$41,9,FALSE)*1000 -> 1100000 | AE16: =VLOOKUP(V16,Stoffdatenbank!$A$4:$Q$41,10,FALSE) -> 285916 | AF16: =VLOOKUP(V16,Stoffdatenbank!$A$4:$Q$41,13,FALSE)/1000 -> 0.063 | AG16: =IF(Schadstoffbelastung!X8<>0,Schadstoffbelastung!X8,"") -> 108.0095833 | AH16: 0.3164255186 | AJ16: 7 | AK16: 94206.23879 | AL16: 0.7 | AM16: 0.009630287979 | AN16: 0.005634152578 | AO16: 0.00137586006 | AP16: 3.274801166e-07 | AQ16: 4335.090961 | AR16: 1.03183175 | AS16: -20987.41696 | AT16: -0.2065566701 | AU16: -0.3131187226 | AV16: 0.001486418776 | AW16: 23.59166667 | AX16: 0.3116437246 | AY16: 0.003130185332 | AZ16: 0.01281812175 | BA16: 0.06152725654 | BB16: 0.02499609864 | BC16: 0.006104047289 | BD16: 806.7460681 | BE16: 911.4 | BF16: 12015.82956 | BG16: 118.960485 | BH16: 0 | BI16: 0.02151356478 | BJ16: 806.7024473 | BK16: 911.4 | BL16: 12015.82956 | BM16: 118.960485 | BN16: 0 | BO16: 0.02151356478 | BP16: 7.088124881 | BQ16: 51.31135647 | BR16: 4.969680962 | BS16: 118.960485 | BT16: 0.0007686086931 | BU16: 0 | BV16: 0.0005707762557 | BW16: 12020.29615 | BX16: 806.6509798 | BZ16: 0.0005707762557
Q17: Luftanteil im Boden [-] | R17: ϴa | S17: =n*(1-Sw) -> 0.2442 | V17: Tetrachlormethan | X17: 2450.325249 | Y17: =VLOOKUP(V17,Stoffdatenbank!$A$4:$Q$41,6,FALSE) -> 1.153 | Z17: =VLOOKUP(V17,Stoffdatenbank!$A$4:$Q$41,5,FALSE)/1000 -> 0.2856 | AA17: 0.002856 | AB17: =VLOOKUP(V17,Stoffdatenbank!$A$4:$Q$41,8,FALSE) -> 6.323e-06 | AC17: =VLOOKUP(V17,Stoffdatenbank!$A$4:$Q$41,7,FALSE) -> 7.293e-10 | AD17: =VLOOKUP(V17,Stoffdatenbank!$A$4:$Q$41,9,FALSE)*1000 -> 800000 | AE17: =VLOOKUP(V17,Stoffdatenbank!$A$4:$Q$41,10,FALSE) -> 11940 | AF17: =VLOOKUP(V17,Stoffdatenbank!$A$4:$Q$41,13,FALSE)/1000 -> 0.154 | AG17: =IF(Schadstoffbelastung!X9<>0,Schadstoffbelastung!X9,"") -> 106.5004083 | AH17: 0.3120042306 | AJ17: 8 | AK17: 94402.38904 | AL17: 0.8 | AM17: 0.00840899331 | AN17: 0.004919640144 | AO17: 0.001201376123 | AP17: 3.274801166e-07 | AQ17: 3793.204591 | AR17: 1.033980165 | AS17: -18363.98984 | AT17: -0.2065566701 | AU17: -0.3346054182 | AV17: 0.001284706102 | AW17: 23.56 | AX17: 0.3359981559 | AY17: 0.002899805519 | AZ17: 0.01187471547 | BA17: 0.05867901555 | BB17: 0.02477609146 | BC17: 0.006050321534 | BD17: 806.7460681 | BE17: 911.4 | BF17: 12015.66478 | BG17: 118.960485 | BH17: 0 | BI17: 0.02117879485 | BJ17: 806.7031261 | BK17: 911.4 | BL17: 12015.66478 | BM17: 118.960485 | BN17: 0 | BO17: 0.02117879485 | BP17: 7.096378613 | BQ17: 51.37110572 | BR17: 4.963693728 | BS17: 118.960485 | BT17: 0.0007695171664 | BU17: 0 | BV17: 0.0006849315068 | BW17: 12020.29615 | BX17: 806.6287423 | BZ17: 0.0006849315068
Q18: Volumen des Wassers im Boden [-] | R18: ϴw | S18: =n*Sw -> 0.0858 | V18: Trichlormethan | X18: 4804.126449 | Y18: =VLOOKUP(V18,Stoffdatenbank!$A$4:$Q$41,6,FALSE) -> 0.185 | Z18: =VLOOKUP(V18,Stoffdatenbank!$A$4:$Q$41,5,FALSE)/1000 -> 0.05121 | AA18: 0.0005121 | AB18: =VLOOKUP(V18,Stoffdatenbank!$A$4:$Q$41,8,FALSE) -> 7.141e-06 | AC18: =VLOOKUP(V18,Stoffdatenbank!$A$4:$Q$41,7,FALSE) -> 8.245e-10 | AD18: =VLOOKUP(V18,Stoffdatenbank!$A$4:$Q$41,9,FALSE)*1000 -> 8200000 | AE18: =VLOOKUP(V18,Stoffdatenbank!$A$4:$Q$41,10,FALSE) -> 20900 | AF18: =VLOOKUP(V18,Stoffdatenbank!$A$4:$Q$41,13,FALSE)/1000 -> 0.119 | AG18: =IF(Schadstoffbelastung!X10<>0,Schadstoffbelastung!X10,"") -> 3.698958333 | AH18: 0.01083649036 | AJ18: 9 | AK18: 94575.06814 | AL18: 0.9 | AM18: 0.007461013173 | AN18: 0.004365029031 | AO18: 0.001065940089 | AP18: 3.274801166e-07 | AQ18: 3371.737414 | AR18: 1.035871502 | AS18: -16323.54653 | AT18: -0.2065566701 | AU18: -0.3535580269 | AV18: 0.001130979431 | AW18: 23.52833333 | AX18: 0.3585601153 | AY18: 0.002714521932 | AZ18: 0.01111597843 | BA18: 0.05632536289 | BB18: 0.02461531388 | BC18: 0.006011059649 | BD18: 806.7460681 | BE18: 911.4 | BF18: 12015.50172 | BG18: 118.960485 | BH18: 0 | BI18: 0.02095728697 | BJ18: 806.7035752 | BK18: 911.4 | BL18: 12015.50172 | BM18: 118.960485 | BN18: 0 | BO18: 0.02095728697 | BP18: 7.097625052 | BQ18: 51.38012877 | BR18: 4.957705381 | BS18: 118.960485 | BT18: 0.0007696601765 | BU18: 0 | BV18: 0.000799086758 | BW18: 12020.29615 | BX18: 806.6065047 | BZ18: 0.000799086758
Q19: Schüttdichte/Lagerungsdichte [kg/m3] | R19: ρb | S19: =ps*(1-n) -> 1775.5 | V19: Dichlormethan | X19: 3306.433967 | Y19: =VLOOKUP(V19,Stoffdatenbank!$A$4:$Q$41,6,FALSE) -> 0.1159 | Z19: =VLOOKUP(V19,Stoffdatenbank!$A$4:$Q$41,5,FALSE)/1000 -> 0.01215 | AA19: 0.0001215 | AB19: =VLOOKUP(V19,Stoffdatenbank!$A$4:$Q$41,8,FALSE) -> 8.441e-06 | AC19: =VLOOKUP(V19,Stoffdatenbank!$A$4:$Q$41,7,FALSE) -> 9.83e-10 | AD19: =VLOOKUP(V19,Stoffdatenbank!$A$4:$Q$41,9,FALSE)*1000 -> 17799000 | AE19: =VLOOKUP(V19,Stoffdatenbank!$A$4:$Q$41,10,FALSE) -> 39156.78 | AF19: =VLOOKUP(V19,Stoffdatenbank!$A$4:$Q$41,13,FALSE)/1000 -> 0.085 | AG19: =IF(Schadstoffbelastung!X11<>0,Schadstoffbelastung!X11,"") -> 3.698958333 | AH19: 0.01083649036 | AJ19: 10 | AK19: 94729.26813 | AL19: 1 | AM19: 0.006703981344 | AN19: 0.003922131286 | AO19: 0.00095778446 | AP19: 3.274801166e-07 | AQ19: 3034.563673 | AR19: 1.03756044 | AS19: -14691.19187 | AT19: -0.2065566701 | AU19: -0.3705117131 | AV19: 0.001009948642 | AW19: 23.49666667 | AX19: 0.3796804743 | AY19: 0.002561186309 | AZ19: 0.01048806842 | BA19: 0.05433099328 | BB19: 0.02449170913 | BC19: 0.005980875369 | BD19: 806.7460681 | BE19: 911.4 | BF19: 12015.33976 | BG19: 118.960485 | BH19: 0 | BI19: 0.02081692516 | BJ19: 806.7038598 | BK19: 911.4 | BL19: 12015.33976 | BM19: 118.960485 | BN19: 0 | BO19: 0.02081692516 | BP19: 7.093674265 | BQ19: 51.35152878 | BR19: 4.951720339 | BS19: 118.960485 | BT19: 0.0007692354469 | BU19: 0 | BV19: 0.0009132420091 | BW19: 12020.29615 | BX19: 806.5842672 | BZ19: 0.0009132420091
Q20: Wassersättigung [-] | R20: Sa | S20: =1-Sw -> 0.74 | V20: 1,1,1-Trichlorethan | X20: 2113.622078 | Y20: =VLOOKUP(V20,Stoffdatenbank!$A$4:$Q$41,6,FALSE) -> 1 | Z20: =VLOOKUP(V20,Stoffdatenbank!$A$4:$Q$41,5,FALSE)/1000 -> 0.144 | AA20: 0.00144 | AB20: =VLOOKUP(V20,Stoffdatenbank!$A$4:$Q$41,8,FALSE) -> 6.77e-06 | AC20: =VLOOKUP(V20,Stoffdatenbank!$A$4:$Q$41,7,FALSE) -> 7.61e-10 | AD20: =VLOOKUP(V20,Stoffdatenbank!$A$4:$Q$41,9,FALSE)*1000 -> 1300000 | AE20: =VLOOKUP(V20,Stoffdatenbank!$A$4:$Q$41,10,FALSE) -> 1369.81 | AF20: =VLOOKUP(V20,Stoffdatenbank!$A$4:$Q$41,13,FALSE)/1000 -> 0.133404 | AG20: =IF(Schadstoffbelastung!X12<>0,Schadstoffbelastung!X12,"") -> 1.7755 | AH20: 0.005201515375 | AJ20: 11 | AK20: 94868.54308 | AL20: 1.1 | AM20: 0.006085581218 | AN20: 0.003560339336 | AO20: 0.0008694348658 | AP20: 3.274801166e-07 | AQ20: 2758.694248 | AR20: 1.039085904 | AS20: -13355.62898 | AT20: -0.2065566701 | AU20: -0.3858481878 | AV20: 0.0009121955169 | AW20: 23.465 | AX20: 0.3996078043 | AY20: 0.002431488629 | AZ20: 0.009956955891 | BA20: 0.05260837763 | BB20: 0.02439310775 | BC20: 0.005956796911 | BD20: 806.7460681 | BE20: 911.4 | BF20: 12015.17841 | BG20: 118.960485 | BH20: 0 | BI20: 0.02073729306 | BJ20: 806.7040212 | BK20: 911.4 | BL20: 12015.17841 | BM20: 118.960485 | BN20: 0 | BO20: 0.02073729306 | BP20: 7.085712536 | BQ20: 51.29389336 | BR20: 4.94574201 | BS20: 118.960485 | BT20: 0.0007683725612 | BU20: 0 | BV20: 0.00102739726 | BW20: 12020.29615 | BX20: 806.5620297 | BZ20: 0.00102739726
Q21: charakteristische Diffusionslänge Sande [m] | R21: δc | S21: 0.00035 | V21: 1,1,2-Trichlorethan | X21: 2204.778992 | Y21: =VLOOKUP(V21,Stoffdatenbank!$A$4:$Q$41,6,FALSE) -> 0.038 | Z21: =VLOOKUP(V21,Stoffdatenbank!$A$4:$Q$41,5,FALSE)/1000 -> 0.04364 | AA21: 0.0004364 | AB21: =VLOOKUP(V21,Stoffdatenbank!$A$4:$Q$41,8,FALSE) -> 7.6e-06 | AC21: =VLOOKUP(V21,Stoffdatenbank!$A$4:$Q$41,7,FALSE) -> 6.8e-10 | AD21: =VLOOKUP(V21,Stoffdatenbank!$A$4:$Q$41,9,FALSE)*1000 -> 4500000 | AE21: =VLOOKUP(V21,Stoffdatenbank!$A$4:$Q$41,10,FALSE) -> 2500 | AF21: =VLOOKUP(V21,Stoffdatenbank!$A$4:$Q$41,13,FALSE)/1000 -> 0.133404 | AG21: =IF(Schadstoffbelastung!X13<>0,Schadstoffbelastung!X13,"") -> 2.189783333 | AH21: 0.006415202296 | AJ21: 12 | AK21: 94995.51284 | AL21: 1.2 | AM21: 0.005570993367 | AN21: 0.003259282247 | AO21: 0.0007959167246 | AP21: 3.274801166e-07 | AQ21: 2528.803061 | AR21: 1.040476592 | AS21: -12242.6599 | AT21: -0.2065566701 | AU21: -0.3998492923 | AV21: 0.000831601476 | AW21: 23.43333333 | AX21: 0.4185260205 | AY21: 0.002319876287 | AZ21: 0.009499902897 | BA21: 0.05109781274 | BB21: 0.02431220839 | BC21: 0.00593704129 | BD21: 806.7460681 | BE21: 911.4 | BF21: 12015.01732 | BG21: 118.960485 | BH21: 0 | BI21: 0.02070469217 | BJ21: 806.7040873 | BK21: 911.4 | BL21: 12015.01732 | BM21: 118.960485 | BN21: 0 | BO21: 0.02070469217 | BP21: 7.074553746 | BQ21: 51.21311422 | BR21: 4.939773112 | BS21: 118.960485 | BT21: 0.0007671604233 | BU21: 0 | BV21: 0.001141552511 | BW21: 12020.29615 | BX21: 806.5397922 | BZ21: 0.001141552511
Q22: [-] | R22: τa | S22: =n^2*(n*Sa)^(-7/3) -> 2.921603934 | V22: 1,1-Dichlorethan | X22: 3832.914525 | Y22: =VLOOKUP(V22,Stoffdatenbank!$A$4:$Q$41,6,FALSE) -> 0.257 | Z22: =VLOOKUP(V22,Stoffdatenbank!$A$4:$Q$41,5,FALSE)/1000 -> 0.03574 | AA22: 0.0003574 | AB22: =VLOOKUP(V22,Stoffdatenbank!$A$4:$Q$41,8,FALSE) -> 8.7e-06 | AC22: =VLOOKUP(V22,Stoffdatenbank!$A$4:$Q$41,7,FALSE) -> 1.14e-09 | AD22: =VLOOKUP(V22,Stoffdatenbank!$A$4:$Q$41,9,FALSE)*1000 -> 8690000 | AE22: =VLOOKUP(V22,Stoffdatenbank!$A$4:$Q$41,10,FALSE) -> 29100 | AF22: =VLOOKUP(V22,Stoffdatenbank!$A$4:$Q$41,13,FALSE)/1000 -> 0.09896 | AG22: =IF(Schadstoffbelastung!X14<>0,Schadstoffbelastung!X14,"") -> 3.698958333 | AH22: 0.01083649036 | AJ22: 13 | AK22: 95112.16403 | AL22: 1.3 | AM22: 0.005136148404 | AN22: 0.003004878342 | AO22: 0.000733791291 | AP22: 3.274801166e-07 | AQ22: 2334.279748 | AR22: 1.041754261 | AS22: -11300.91683 | AT22: -0.2065566701 | AU22: -0.4127290598 | AV22: 0.0007640188624 | AW22: 23.40166667 | AX22: 0.436575836 | AY22: 0.002222475037 | AZ22: 0.009101044379 | BA22: 0.04975686294 | BB22: 0.02424434713 | BC22: 0.005920469568 | BD22: 806.7460681 | BE22: 911.4 | BF22: 12014.85619 | BG22: 118.960485 | BH22: 0 | BI22: 0.02070953799 | BJ22: 806.7040775 | BK22: 911.4 | BL22: 12014.85619 | BM22: 118.960485 | BN22: 0 | BO22: 0.02070953799 | BP22: 7.060776821 | BQ22: 51.11338224 | BR22: 4.933815871 | BS22: 118.960485 | BT22: 0.0007656622715 | BU22: 0 | BV22: 0.001255707763 | BW22: 12020.29615 | BX22: 806.5175546 | BZ22: 0.001255707763
Q23: Temperatur [K] | R23: T | S23: =273.15+15 -> 288.15 | V23: 1,2-Dichlorethan | X23: 3921.895916 | Y23: =VLOOKUP(V23,Stoffdatenbank!$A$4:$Q$41,6,FALSE) -> 0.0508 | Z23: =VLOOKUP(V23,Stoffdatenbank!$A$4:$Q$41,5,FALSE)/1000 -> 0.0396 | AA23: 0.000396 | AB23: =VLOOKUP(V23,Stoffdatenbank!$A$4:$Q$41,8,FALSE) -> 7.83e-06 | AC23: =VLOOKUP(V23,Stoffdatenbank!$A$4:$Q$41,7,FALSE) -> 9.2e-10 | AD23: =VLOOKUP(V23,Stoffdatenbank!$A$4:$Q$41,9,FALSE)*1000 -> 8690000 | AE23: =VLOOKUP(V23,Stoffdatenbank!$A$4:$Q$41,10,FALSE) -> 10000 | AF23: =VLOOKUP(V23,Stoffdatenbank!$A$4:$Q$41,13,FALSE)/1000 -> 0.09896 | AG23: =IF(Schadstoffbelastung!X15<>0,Schadstoffbelastung!X15,"") ->  | AJ23: 14 | AK23: 95220.03875 | AL23: 1.4 | AM23: 0.004763877546 | AN23: 0.002787083109 | AO23: 0.0006806056951 | AP23: 3.274801166e-07 | AQ23: 2167.545481 | AR23: 1.042935802 | AS23: -10493.70848 | AT23: -0.2065566701 | AU23: -0.424653862 | AV23: 0.000706536528 | AW23: 23.37 | AX23: 0.4538678204 | AY23: 0.002136486233 | AZ23: 0.008748919873 | BA23: 0.04855435392 | BB23: 0.02418639573 | BC23: 0.005906317837 | BD23: 806.7460681 | BE23: 911.4 | BF23: 12014.69478 | BG23: 118.960485 | BH23: 0 | BI23: 0.02074489571 | BJ23: 806.7040058 | BK23: 911.4 | BL23: 12014.69478 | BM23: 118.960485 | BN23: 0 | BO23: 0.02074489571 | BP23: 7.044805766 | BQ23: 50.99776682 | BR23: 4.927872151 | BS23: 118.960485 | BT23: 0.0007639244213 | BU23: 0 | BV23: 0.001369863014 | BW23: 12020.29615 | BX23: 806.4953171 | BZ23: 0.001369863014
Q24: Zeitintervall | R24: z | S24: =3600*1 -> 3600 | V24: Summe LCKW | X24: =AD74 -> 2108.720785 | Y24: =SUM(IF($AH$11:$AH$23<>"",Y11:Y23*$AH$11:$AH$23,0)) -> 2.660372819 | Z24: =SUM(IF($AH$11:$AH$23<>"",Z11:Z23*$AH$11:$AH$23,0)) -> 0.1381827474 | AA24: =SUM(IF($AH$11:$AH$23<>"",AA11:AA23*$AH$11:$AH$23,0)) -> 0.001381827474 | AB24: =SUM(IF($AH$11:$AH$23<>"",AB11:AB23*$AH$11:$AH$23,0)) -> 7.087736561e-06 | AC24: =SUM(IF($AH$11:$AH$23<>"",AC11:AC23*$AH$11:$AH$23,0)) -> 7.687577654e-10 | AD24: =SUM(IF($AH$11:$AH$23<>"",AD11:AD23*$AH$11:$AH$23,0))*Anteil_Schadstoff -> 640304.202 | AE24: =AC74*Anteil_Schadstoff -> 3741.273641 | AF24: =SUM(IF($AH$11:$AH$23<>"",AF11:AF23*$AH$11:$AH$23,0)) -> 0.1068361641 | AG24: =IF(SUM(AG11:AG23)<>0,SUM(AG11:AG23),"") -> 341.3428342 | AH24: =SUM(AH11:AH23) -> 1 | AJ24: 15 | AK24: 95320.35798 | AL24: 1.5 | AM24: 0.004441606248 | AN24: 0.002598539872 | AO24: 0.0006345634367 | AP24: 3.274801166e-07 | AQ24: 2023.042449 | AR24: 1.044034589 | AS24: -9794.127916 | AT24: -0.2065566701 | AU24: -0.4357555872 | AV24: 0.000657051059 | AW24: 23.33833333 | AX24: 0.4704907681 | AY24: 0.002059829818 | AZ24: 0.008435011542 | BA24: 0.04746675576 | BB24: 0.02413617232 | BC24: 0.00589405328 | BD24: 806.7460681 | BE24: 911.4 | BF24: 12014.5329 | BG24: 118.960485 | BH24: 0 | BI24: 0.02080560807 | BJ24: 806.7038827 | BK24: 911.4 | BL24: 12014.5329 | BM24: 118.960485 | BN24: 0 | BO24: 0.02080560807 | BP24: 7.026958677 | BQ24: 50.86857069 | BR24: 4.921943547 | BS24: 118.960485 | BT24: 0.0007619816191 | BU24: 0 | BV24: 0.001484018265 | BW24: 12020.29615 | BX24: 806.4730796 | BZ24: 0.001484018265
V25: Mittelwert | X25: =AVERAGE(X11:X23) -> 2675.974969 | Y25: =AVERAGE(Y11:Y23) -> 0.9030538462 | Z25: =AVERAGE(Z11:Z23) -> 0.1032653846 | AA25: 0.001032653846 | AB25: 7.62e-06 | AC25: 8.559076923e-10 | AD25: 4964538.462 | AE25: 35522.79692 | AF25: 0.1133636923 | AG25: =IF(AG24<>"",AVERAGE(AG11:AG23),"") -> 28.44523618 | AJ25: 16 | AK25: 95414.10487 | AL25: 1.6 | AM25: 0.004159914611 | AN25: 0.002433737566 | AO25: 0.0005943187137 | AP25: 3.274801166e-07 | AQ25: 1896.602295 | AR25: 1.04506139 | AS25: -9181.994922 | AT25: -0.2065566701 | AU25: -0.4461405576 | AV25: 0.0006140048519 | AW25: 23.30666667 | AX25: 0.48651729 | AY25: 0.001990922569 | AZ25: 0.008152836071 | BA25: 0.04647590204 | BB25: 0.02409210536 | BC25: 0.005883292129 | BD25: 806.7460681 | BE25: 911.4 | BF25: 12014.37038 | BG25: 118.960485 | BH25: 0 | BI25: 0.02088775089 | BJ25: 806.7037162 | BK25: 911.4 | BL25: 12014.37038 | BM25: 118.960485 | BN25: 0 | BO25: 0.02088775089 | BP25: 7.00747903 | BQ25: 50.72755637 | BR25: 4.916031447 | BS25: 118.960485 | BT25: 0.0007598604602 | BU25: 0 | BV25: 0.001598173516 | BW25: 12020.29615 | BX25: 806.4508421 | BZ25: 0.001598173516
AJ26: 17 | AK26: 95502.08271 | AL26: 1.7 | AM26: 0.003911607002 | AN26: 0.002288466422 | AO26: 0.0005588435003 | AP26: 3.274801166e-07 | AQ26: 1785.037455 | AR26: 1.046025002 | AS26: -8641.877573 | AT26: -0.2065566701 | AU26: -0.4558957378 | AV26: 0.0005762199005 | AW26: 23.275 | AX26: 0.5020076786 | AY26: 0.001928534808 | AZ26: 0.007897357936 | BA26: 0.04556749527 | BB26: 0.02405303213 | BC26: 0.005873750447 | BD26: 806.7460681 | BE26: 911.4 | BF26: 12014.20708 | BG26: 118.960485 | BH26: 0 | BI26: 0.02098827989 | BJ26: 806.7035123 | BK26: 911.4 | BL26: 12014.20708 | BM26: 118.960485 | BN26: 0 | BO26: 0.02098827989 | BP26: 6.986556361 | BQ26: 50.57609593 | BR26: 4.910137077 | BS26: 118.960485 | BT26: 0.0007575816478 | BU26: 0 | BV26: 0.001712328767 | BW26: 12020.27223 | BX26: 806.4286046 | BZ26: 0.001712328767
AJ27: 18 | AK27: 95584.95627 | AL27: 1.8 | AM27: 0.003691092494 | AN27: 0.002159455495 | AO27: 0.0005273390318 | AP27: 3.274801166e-07 | AQ27: 1685.868707 | AR27: 1.046932708 | AS27: -8161.773264 | AT27: -0.2065566701 | AU27: -0.4650931663 | AV27: 0.0005427888299 | AW27: 23.24333333 | AX27: 0.5170126587 | AY27: 0.001871694706 | AZ27: 0.007664597485 | BA27: 0.04473009554 | BB27: 0.02401807252 | BC27: 0.005865213309 | BD27: 806.7460681 | BE27: 911.4 | BF27: 12014.04288 | BG27: 118.960485 | BH27: 0 | BI27: 0.02110479392 | BJ27: 806.7032761 | BK27: 911.4 | BL27: 12014.04288 | BM27: 118.960485 | BN27: 0 | BO27: 0.02110479392 | BP27: 6.964340346 | BQ27: 50.41527288 | BR27: 4.904261537 | BS27: 118.960485 | BT27: 0.000755161531 | BU27: 0 | BV27: 0.001826484018 | BW27: 12020.2281 | BX27: 806.405545 | BZ27: 0.001826484018
Q28: Parameter Sanierungsdesign | V28: Benzol | X28: =((Theta_w+pb*AA28+Theta_a*Y28)/pb)*AD28 -> 1538.050746 | Y28: =VLOOKUP(V28,Stoffdatenbank!$A$4:$Q$41,6,FALSE) -> 0.15 | Z28: =VLOOKUP(V28,Stoffdatenbank!$A$4:$Q$41,5,FALSE)/1000 -> 0.08 | AA28: =Z28*foc -> 0.0008 | AB28: =VLOOKUP(V28,Stoffdatenbank!$A$4:$Q$41,8,FALSE) -> 7.59e-06 | AC28: =VLOOKUP(V28,Stoffdatenbank!$A$4:$Q$41,7,FALSE) -> 8.15e-10 | AD28: =VLOOKUP(V28,Stoffdatenbank!$A$4:$Q$41,9,FALSE)*1000 -> 1770000 | AE28: =VLOOKUP(V28,Stoffdatenbank!$A$4:$Q$41,10,FALSE) -> 7941 | AF28: =VLOOKUP(V28,Stoffdatenbank!$A$4:$Q$41,13,FALSE)/1000 -> 0.078 | AG28: =IF(Schadstoffbelastung!X17<>0,Schadstoffbelastung!X17,"") ->  | AJ28: 19 | AK28: 95663.28185 | AL28: 1.9 | AM28: 0.003493961396 | AN28: 0.002044124916 | AO28: 0.0004991753046 | AP28: 3.274801166e-07 | AQ28: 1597.138775 | AR28: 1.047790601 | AS28: -7732.20625 | AT28: -0.2065566701 | AU28: -0.4737931874 | AV28: 0.0005130014246 | AW28: 23.21166667 | AX28: 0.5315753939 | AY28: 0.001819622509 | AZ28: 0.007451361625 | BA28: 0.04395441707 | BB28: 0.02398654712 | BC28: 0.005857514806 | BD28: 806.7460681 | BE28: 911.4 | BF28: 12013.87766 | BG28: 118.960485 | BH28: 0 | BI28: 0.02123537175 | BJ28: 806.7030113 | BK28: 911.4 | BL28: 12013.87766 | BM28: 118.960485 | BN28: 0 | BO28: 0.02123537175 | BP28: 7.434551478 | BQ28: 53.81915915 | BR28: 4.897986295 | BS28: 118.960485 | BT28: 0.0008065337607 | BU28: 0 | BV28: 0.001940639269 | BW28: 12020.17393 | BX28: 806.3809692 | BZ28: 0.001940639269
V29: Toluol | X29: 1596.571918 | Y29: =VLOOKUP(V29,Stoffdatenbank!$A$4:$Q$41,6,FALSE) -> 0.16 | Z29: =VLOOKUP(V29,Stoffdatenbank!$A$4:$Q$41,5,FALSE)/1000 -> 0.3 | AA29: 0.003 | AB29: =VLOOKUP(V29,Stoffdatenbank!$A$4:$Q$41,8,FALSE) -> 6.9e-06 | AC29: =VLOOKUP(V29,Stoffdatenbank!$A$4:$Q$41,7,FALSE) -> 7.34e-10 | AD29: =VLOOKUP(V29,Stoffdatenbank!$A$4:$Q$41,9,FALSE)*1000 -> 520000 | AE29: =VLOOKUP(V29,Stoffdatenbank!$A$4:$Q$41,10,FALSE) -> 2215 | AF29: =VLOOKUP(V29,Stoffdatenbank!$A$4:$Q$41,13,FALSE)/1000 -> 0.092 | AG29: =IF(Schadstoffbelastung!X18<>0,Schadstoffbelastung!X18,"") -> 0.3047941667 | AH29: =IF(AG29<>"",AG29/$AG$45,"") -> 0.0005707288152 | AJ29: 20 | AK29: 95737.5297 | AL29: 2 | AM29: 0.00331668912 | AN29: 0.001940412644 | AO29: 0.0004738487676 | AP29: 3.274801166e-07 | AQ29: 1517.281836 | AR29: 1.04860383 | AS29: -7345.595937 | AT29: -0.2065566701 | AU29: -0.4820468525 | AV29: 0.0004862938557 | AW29: =IF(AX29="","",AW30+dt/60) -> 23.18 | AX29: =IF(AX28="","",IF((AX28)>=$AY$3,"",AX28+AZ28*dt)) -> 0.545732981 | AY29: =IF(AX29="","",(Ka/(2*ua))*((Pw/(AX29*LN(rw/Rl)))*(1-(PROI/Pw)^2))/((1+(1-(PROI/Pw)^2)*(LN(AX29/rw)/LN(rw/Rl)))^0.5)) -> 0.001771684217 | AZ29: =IF(AX29="","",AY29/n/Sa) -> 0.007255054125 | BA29: =10^-0.42*(Da*10000)^0.38*(AZ29*100)^0.62*(d_50*100)^0.44 -> 0.04323282695 | BB29: 0.02395792245 | BC29: 0.005850524663 | BD29: 806.7460681 | BE29: 911.4 | BF29: 12013.71132 | BG29: 118.960485 | BH29: 0 | BI29: 0.02137845687 | BJ29: 806.7027212 | BK29: 911.4 | BL29: 12013.71132 | BM29: 118.960485 | BN29: 0 | BO29: 0.02137845687 | BP29: 7.416368182 | BQ29: 53.68752919 | BR29: 4.891726451 | BS29: 118.960485 | BT29: 0.0008045546108 | BU29: 0 | BV29: 0.002054794521 | BW29: 12020.12301 | BX29: 806.3545322 | BZ29: 0.002054794521
Q30: quatratische Fläche innerhalb eines Sanierungsradius [m2] | R30: Aq | S30: =2*maxReichweite^2 -> 68.85679458 | V30: Ethylbenzol | X30: 1882.657651 | Y30: =VLOOKUP(V30,Stoffdatenbank!$A$4:$Q$41,6,FALSE) -> 0.19 | Z30: =VLOOKUP(V30,Stoffdatenbank!$A$4:$Q$41,5,FALSE)/1000 -> 1.1 | AA30: 0.011 | AB30: =VLOOKUP(V30,Stoffdatenbank!$A$4:$Q$41,8,FALSE) -> 6.39e-06 | AC30: =VLOOKUP(V30,Stoffdatenbank!$A$4:$Q$41,7,FALSE) -> 6.76e-10 | AD30: =VLOOKUP(V30,Stoffdatenbank!$A$4:$Q$41,9,FALSE)*1000 -> 170000 | AE30: =VLOOKUP(V30,Stoffdatenbank!$A$4:$Q$41,10,FALSE) -> 728 | AF30: =VLOOKUP(V30,Stoffdatenbank!$A$4:$Q$41,13,FALSE)/1000 -> 0.106 | AG30: =IF(Schadstoffbelastung!X19<>0,Schadstoffbelastung!X19,"") -> 67.76491667 | AH30: 0.1268901929 | AJ30: 21 | AK30: 95808.10082 | AL30: 2.1 | AM30: 0.003156424844 | AN30: 0.001846650818 | AO30: 0.0004509521297 | AP30: 3.274801166e-07 | AQ30: 1445.03032 | AR30: 1.049376789 | AS30: -6995.805655 | AT30: -0.2065566701 | AU30: -0.489897736 | AV30: 0.0004622128275 | AW30: 23.14833333 | AX30: 0.5595175838 | AY30: 0.001727358249 | AZ30: 0.007073539102 | BA30: 0.04255898068 | BB30: 0.0239317733 | BC30: 0.00584413904 | BD30: 806.7460681 | BE30: 911.4 | BF30: 12013.54379 | BG30: 118.960485 | BH30: 0 | BI30: 0.02153277431 | BJ30: 806.7024083 | BK30: 911.4 | BL30: 12013.54379 | BM30: 118.960485 | BN30: 0 | BO30: 0.02153277431 | BP30: 7.397446159 | BQ30: 53.55055155 | BR30: 4.885482635 | BS30: 118.960485 | BT30: 0.0008024947452 | BU30: 0 | BV30: 0.002168949772 | BW30: 12020.06045 | BX30: 806.3263452 | BZ30: 0.002168949772
Q31: zu realisierende Reichweite eines Bodenluftabsaugbrunnens im gewählten Sanierungsdesign [m] | R31: RSVE | S31: =Rasterweite/2^0.5 -> 5.867571669 | V31: o-Xylol | X31: 1505.669231 | Y31: =VLOOKUP(V31,Stoffdatenbank!$A$4:$Q$41,6,FALSE) -> 0.12 | Z31: =VLOOKUP(V31,Stoffdatenbank!$A$4:$Q$41,5,FALSE)/1000 -> 0.83 | AA31: 0.0083 | AB31: =VLOOKUP(V31,Stoffdatenbank!$A$4:$Q$41,8,FALSE) -> 6.42e-06 | AC31: =VLOOKUP(V31,Stoffdatenbank!$A$4:$Q$41,7,FALSE) -> 6.8e-10 | AD31: =VLOOKUP(V31,Stoffdatenbank!$A$4:$Q$41,9,FALSE)*1000 -> 180000 | AE31: =VLOOKUP(V31,Stoffdatenbank!$A$4:$Q$41,10,FALSE) -> 492 | AF31: =VLOOKUP(V31,Stoffdatenbank!$A$4:$Q$41,13,FALSE)/1000 -> 0.106 | AG31: =IF(Schadstoffbelastung!X20<>0,Schadstoffbelastung!X20,"") -> 61.58025833 | AH31: 0.1153093849 | AJ31: 22 | AK31: 95875.33999 | AL31: 2.2 | AM31: 0.003010837949 | AN31: 0.001761475921 | AO31: 0.00043015242 | AP31: 3.274801166e-07 | AQ31: 1379.347124 | AR31: 1.050113253 | AS31: -6677.814489 | AT31: -0.2065566701 | AU31: -0.4973833272 | AV31: 0.0004403897674 | AW31: 23.11666667 | AX31: 0.5729573081 | AY31: 0.001686210988 | AZ31: 0.006905040902 | BA31: 0.04192755196 | BB31: 0.02390775621 | BC31: 0.005838274067 | BD31: 806.7460681 | BE31: 911.4 | BF31: 12013.37497 | BG31: 118.960485 | BH31: 0 | BI31: 0.02169726961 | BJ31: 806.7020748 | BK31: 911.4 | BL31: 12013.37497 | BM31: 118.960485 | BN31: 0 | BO31: 0.02169726961 | BP31: 7.377833262 | BQ31: 53.40857262 | BR31: 4.879255432 | BS31: 118.960485 | BT31: 0.0008003593909 | BU31: 0 | BV31: 0.002283105023 | BW31: 12020.00161 | BX31: 806.2960088 | BZ31: 0.002283105023
Q32: angelegter Druck im Brunnen [kg/(s2*m)] | R32: Pw | S32: =101300-Unterdruck*100 -> 91300 | V32: m-Xylol | X32: 1717.437526 | Y32: =VLOOKUP(V32,Stoffdatenbank!$A$4:$Q$41,6,FALSE) -> 0.16 | Z32: =VLOOKUP(V32,Stoffdatenbank!$A$4:$Q$41,5,FALSE)/1000 -> 0.98 | AA32: 0.0098 | AB32: =VLOOKUP(V32,Stoffdatenbank!$A$4:$Q$41,8,FALSE) -> 6.36e-06 | AC32: =VLOOKUP(V32,Stoffdatenbank!$A$4:$Q$41,7,FALSE) -> 6.71e-10 | AD32: =VLOOKUP(V32,Stoffdatenbank!$A$4:$Q$41,9,FALSE)*1000 -> 174000 | AE32: =VLOOKUP(V32,Stoffdatenbank!$A$4:$Q$41,10,FALSE) -> 615 | AF32: =VLOOKUP(V32,Stoffdatenbank!$A$4:$Q$41,13,FALSE)/1000 -> 0.106 | AG32: =IF(Schadstoffbelastung!X21<>0,Schadstoffbelastung!X21,"") -> 149.4379167 | AH32: 0.2798233511 | AJ32: 23 | AK32: 95939.5457 | AL32: 2.3 | AM32: 0.002878004611 | AN32: 0.001683762431 | AO32: 0.0004111747856 | AP32: 3.274801166e-07 | AQ32: 1319.37551 | AR32: 1.050816492 | AS32: -6387.474728 | AT32: -0.2065566701 | AU32: -0.5045361133 | AV32: 0.0004205219239 | AW32: 23.085 | AX32: 0.5860768858 | AY32: 0.001647878548 | AZ32: 0.006748069404 | BA32: 0.04133402926 | BB32: 0.02388559049 | BC32: 0.005832861198 | BD32: 806.7460681 | BE32: 911.4 | BF32: 12013.2048 | BG32: 118.960485 | BH32: 0 | BI32: 0.02187106319 | BJ32: 806.7017224 | BK32: 911.4 | BL32: 12013.2048 | BM32: 118.960485 | BN32: 0 | BO32: 0.02187106319 | BP32: 7.357569026 | BQ32: 53.26187861 | BR32: 4.873045398 | BS32: 118.960485 | BT32: 0.0007981528657 | BU32: 0 | BV32: 0.002397260274 | BW32: 12019.9293 | BX32: 806.2636507 | BZ32: 0.002397260274
Q33: Umgebungsdruck der Atmosphäre [kg/s2*m] | R33: PAtm | S33: =1.013*10^5*0.99 -> 100287 | V33: p-Xylol | X33: 1773.791045 | Y33: =VLOOKUP(V33,Stoffdatenbank!$A$4:$Q$41,6,FALSE) -> 0.15 | Z33: =VLOOKUP(V33,Stoffdatenbank!$A$4:$Q$41,5,FALSE)/1000 -> 0.88 | AA33: 0.0088 | AB33: =VLOOKUP(V33,Stoffdatenbank!$A$4:$Q$41,8,FALSE) -> 6.36e-06 | AC33: =VLOOKUP(V33,Stoffdatenbank!$A$4:$Q$41,7,FALSE) -> 6.71e-10 | AD33: =VLOOKUP(V33,Stoffdatenbank!$A$4:$Q$41,9,FALSE)*1000 -> 200000 | AE33: =VLOOKUP(V33,Stoffdatenbank!$A$4:$Q$41,10,FALSE) -> 657 | AF33: =VLOOKUP(V33,Stoffdatenbank!$A$4:$Q$41,13,FALSE)/1000 -> 0.106 | AG33: =IF(Schadstoffbelastung!X22<>0,Schadstoffbelastung!X22,"") -> 149.4379167 | AH33: 0.2798233511 | AJ33: 24 | AK33: 96000.97818 | AL33: 2.4 | AM33: 0.00275632281 | AN33: 0.001612573092 | AO33: 0.0003937903492 | AP33: 3.274801166e-07 | AQ33: 1264.40153 | AR33: 1.051489356 | AS33: -6121.329948 | AT33: -0.2065566701 | AU33: -0.5113844317 | AV33: 0.0004023583077 | AW33: 23.05333333 | AX33: 0.5988982177 | AY33: 0.001612052956 | AZ33: 0.006601363458 | BA33: 0.04077456037 | BB33: 0.02386504428 | BC33: 0.005827843813 | BD33: 806.7460681 | BE33: 911.4 | BF33: 12013.03322 | BG33: 118.960485 | BH33: 0 | BI33: 0.02205341572 | BJ33: 806.7013527 | BK33: 911.4 | BL33: 12013.03322 | BM33: 118.960485 | BN33: 0 | BO33: 0.02205341572 | BP33: 7.336686273 | BQ33: 53.11070713 | BR33: 4.866853057 | BS33: 118.960485 | BT33: 0.0007958787546 | BU33: 0 | BV33: 0.002511415525 | BW33: 12019.86124 | BX33: 806.2288078 | BZ33: 0.002511415525
Q34: Anzahl benötigter Sanierungsbrunnen | R34: N | S34: =ROUNDUP(Sanierungsfläche/S30,0) -> 2 | T34: 2 | V34: n-Propylbenzol | X34: 592.5499296 | Y34: =VLOOKUP(V34,Stoffdatenbank!$A$4:$Q$41,6,FALSE) -> 0.2 | Z34: =VLOOKUP(V34,Stoffdatenbank!$A$4:$Q$41,5,FALSE)/1000 -> 0.98 | AA34: 0.0098 | AB34: =VLOOKUP(V34,Stoffdatenbank!$A$4:$Q$41,8,FALSE) -> 6e-06 | AC34: =VLOOKUP(V34,Stoffdatenbank!$A$4:$Q$41,7,FALSE) -> 6.2e-10 | AD34: =VLOOKUP(V34,Stoffdatenbank!$A$4:$Q$41,9,FALSE)*1000 -> 60000 | AE34: =VLOOKUP(V34,Stoffdatenbank!$A$4:$Q$41,10,FALSE) -> 237 | AF34: =VLOOKUP(V34,Stoffdatenbank!$A$4:$Q$41,13,FALSE)/1000 -> 0.12 | AG34: =IF(Schadstoffbelastung!X23<>0,Schadstoffbelastung!X23,"") ->  | AJ34: 25 | AK34: 96059.86559 | AL34: 2.5 | AM34: 0.002644447782 | AN34: 0.001547121158 | AO34: 0.0003778069868 | AP34: 3.274801166e-07 | AQ34: 1213.825469 | AR34: 1.052134344 | AS34: -5876.47675 | AT34: -0.2065566701 | AU34: -0.5179531475 | AV34: 0.0003856890877 | AW34: 23.02166667 | AX34: 0.6114408083 | AY34: 0.001578471551 | AZ34: 0.006463847466 | BA34: 0.04024583191 | BB34: 0.02384592423 | BC34: 0.005823174696 | BD34: 806.7460681 | BE34: 911.4 | BF34: 12012.86015 | BG34: 118.960485 | BH34: 0 | BI34: 0.02224370158 | BJ34: 806.7009669 | BK34: 911.4 | BL34: 12012.86015 | BM34: 118.960485 | BN34: 0 | BO34: 0.02224370158 | BP34: 7.315212366 | BQ34: 52.95525624 | BR34: 4.860678912 | BS34: 118.960485 | BT34: 0.0007935400459 | BU34: 0 | BV34: 0.002625570776 | BW34: 12019.77756 | BX34: 806.1916265 | BZ34: 0.002625570776
Q35: Rasterweite | R35: RW | S35: =maxReichweite*2^0.5 -> 8.297999432 | V35: Isopropylbenzol | X35: 475.3733033 | Y35: =VLOOKUP(V35,Stoffdatenbank!$A$4:$Q$41,6,FALSE) -> 0.43 | Z35: =VLOOKUP(V35,Stoffdatenbank!$A$4:$Q$41,5,FALSE)/1000 -> 0.94 | AA35: 0.0094 | AB35: =VLOOKUP(V35,Stoffdatenbank!$A$4:$Q$41,8,FALSE) -> 6e-06 | AC35: =VLOOKUP(V35,Stoffdatenbank!$A$4:$Q$41,7,FALSE) -> 6.2e-10 | AD35: =VLOOKUP(V35,Stoffdatenbank!$A$4:$Q$41,9,FALSE)*1000 -> 50000 | AE35: =VLOOKUP(V35,Stoffdatenbank!$A$4:$Q$41,10,FALSE) -> 427 | AF35: =VLOOKUP(V35,Stoffdatenbank!$A$4:$Q$41,13,FALSE)/1000 -> 0.12 | AG35: =IF(Schadstoffbelastung!X24<>0,Schadstoffbelastung!X24,"") ->  | AH35: =IF(AG35<>"",AG35/$AG$45,"") ->  | AJ35: 26 | AK35: 96116.4091 | AL35: 2.6 | AM35: 0.002541242406 | AN35: 0.001486741361 | AO35: 0.0003630622403 | AP35: 3.274801166e-07 | AQ35: 1167.139874 | AR35: 1.052753659 | AS35: -5650.458413 | AT35: -0.2065566701 | AU35: -0.5242641992 | AV35: 0.0003703374909 | AW35: 22.99 | AX35: 0.6237221184 | AY35: 0.001546908741 | AZ35: 0.006334597628 | BA35: 0.03974497502 | BB35: 0.02382806769 | BC35: 0.005818814131 | BD35: 806.7460681 | BE35: 911.4 | BF35: 12012.68554 | BG35: 118.960485 | BH35: 0 | BI35: 0.02244138813 | BJ35: 806.700566 | BK35: 911.4 | BL35: 12012.68554 | BM35: 118.960485 | BN35: 0 | BO35: 0.02244138813 | BP35: 7.293170171 | BQ35: 52.79569149 | BR35: 4.854523447 | BS35: 118.960485 | BT35: 0.0007911392372 | BU35: 0 | BV35: 0.002739726027 | BW35: 12019.69876 | BX35: 806.1515697 | BZ35: 0.002739726027
V36: o-Ethyltoluol | X36: 740.6011918 | Y36: =VLOOKUP(V36,Stoffdatenbank!$A$4:$Q$41,6,FALSE) -> 0.11 | Z36: =VLOOKUP(V36,Stoffdatenbank!$A$4:$Q$41,5,FALSE)/1000 -> 0.79 | AA36: 0.0079 | AB36: =VLOOKUP(V36,Stoffdatenbank!$A$4:$Q$41,8,FALSE) -> 6e-06 | AC36: =VLOOKUP(V36,Stoffdatenbank!$A$4:$Q$41,7,FALSE) -> 6.3e-10 | AD36: =VLOOKUP(V36,Stoffdatenbank!$A$4:$Q$41,9,FALSE)*1000 -> 93000 | AE36: =VLOOKUP(V36,Stoffdatenbank!$A$4:$Q$41,10,FALSE) -> 202 | AF36: =VLOOKUP(V36,Stoffdatenbank!$A$4:$Q$41,13,FALSE)/1000 -> 0.12 | AG36: =IF(Schadstoffbelastung!X25<>0,Schadstoffbelastung!X25,"") ->  | AJ36: 27 | AK36: 96170.78698 | AL36: 2.7 | AM36: 0.00244573864 | AN36: 0.001430867352 | AO36: 0.0003494178074 | AP36: 3.274801166e-07 | AQ36: 1123.912471 | AR36: 1.053349255 | AS36: -5441.182176 | AT36: -0.2065566701 | AU36: -0.5303370404 | AV36: 0.0003561535417 | AW36: 22.95833333 | AX36: 0.6357578539 | AY36: 0.001517169525 | AZ36: 0.006212815418 | BA36: 0.03926949054 | BB36: 0.02381133679 | BC36: 0.005814728444 | BD36: 806.7460681 | BE36: 911.4 | BF36: 12012.50934 | BG36: 118.960485 | BH36: 0 | BI36: 0.02264601949 | BJ36: 806.7001511 | BK36: 911.4 | BL36: 12012.50934 | BM36: 118.960485 | BN36: 0 | BO36: 0.02264601949 | BP36: 7.270578836 | BQ36: 52.63215147 | BR36: 4.848387129 | BS36: 118.960485 | BT36: 0.0007886784194 | BU36: 0 | BV36: 0.002853881279 | BW36: 12019.60181 | BX36: 806.1088053 | BZ36: 0.002853881279
V37: m-Ethyltoluol | X37: 743.2215939 | Y37: =VLOOKUP(V37,Stoffdatenbank!$A$4:$Q$41,6,FALSE) -> 0.1 | Z37: =VLOOKUP(V37,Stoffdatenbank!$A$4:$Q$41,5,FALSE)/1000 -> 0.76 | AA37: 0.0076 | AB37: =VLOOKUP(V37,Stoffdatenbank!$A$4:$Q$41,8,FALSE) -> 6e-06 | AC37: =VLOOKUP(V37,Stoffdatenbank!$A$4:$Q$41,7,FALSE) -> 6.2e-10 | AD37: =VLOOKUP(V37,Stoffdatenbank!$A$4:$Q$41,9,FALSE)*1000 -> 97000 | AE37: =VLOOKUP(V37,Stoffdatenbank!$A$4:$Q$41,10,FALSE) -> 202 | AF37: =VLOOKUP(V37,Stoffdatenbank!$A$4:$Q$41,13,FALSE)/1000 -> 0.12 | AG37: =IF(Schadstoffbelastung!X26<>0,Schadstoffbelastung!X26,"") ->  | AJ37: 28 | AK37: 96223.15798 | AL37: 2.8 | AM37: 0.002357107239 | AN37: 0.001379013988 | AO37: 0.0003367552158 | AP37: 3.274801166e-07 | AQ37: 1083.77274 | AR37: 1.053922869 | AS37: -5246.854241 | AT37: -0.2065566701 | AU37: -0.5361890014 | AV37: 0.0003430091722 | AW37: 22.92666667 | AX37: 0.6475622032 | AY37: 0.001489084352 | AZ37: 0.006097806518 | BA37: 0.03881718919 | BB37: 0.02379561375 | BC37: 0.005810888879 | BD37: 806.7460681 | BE37: 911.4 | BF37: 12012.3315 | BG37: 118.960485 | BH37: 0 | BI37: 0.02285720359 | BJ37: 806.6997229 | BK37: 911.4 | BL37: 12012.3315 | BM37: 118.960485 | BN37: 0 | BO37: 0.02285720359 | BP37: 7.247454398 | BQ37: 52.46475229 | BR37: 4.84227041 | BS37: 118.960485 | BT37: 0.0007861593439 | BU37: 0 | BV37: 0.00296803653 | BW37: 12019.51046 | BX37: 806.0627096 | BZ37: 0.00296803653
Q38: Parameter nach Auswahl Schadstoff | V38: p-Ethyltoluol | X38: 861.1587609 | Y38: =VLOOKUP(V38,Stoffdatenbank!$A$4:$Q$41,6,FALSE) -> 0.12 | Z38: =VLOOKUP(V38,Stoffdatenbank!$A$4:$Q$41,5,FALSE)/1000 -> 0.9 | AA38: 0.009 | AB38: =VLOOKUP(V38,Stoffdatenbank!$A$4:$Q$41,8,FALSE) -> 6e-06 | AC38: =VLOOKUP(V38,Stoffdatenbank!$A$4:$Q$41,7,FALSE) -> 6.2e-10 | AD38: =VLOOKUP(V38,Stoffdatenbank!$A$4:$Q$41,9,FALSE)*1000 -> 95000 | AE38: =VLOOKUP(V38,Stoffdatenbank!$A$4:$Q$41,10,FALSE) -> 230 | AF38: =VLOOKUP(V38,Stoffdatenbank!$A$4:$Q$41,13,FALSE)/1000 -> 0.12 | AG38: =IF(Schadstoffbelastung!X27<>0,Schadstoffbelastung!X27,"") ->  | AJ38: 29 | AK38: 96273.664 | AL38: 2.9 | AM38: 0.00227463376 | AN38: 0.001330763285 | AO38: 0.0003249723941 | AP38: 3.274801166e-07 | AQ38: 1046.401266 | AR38: 1.054476057 | AS38: -5065.928233 | AT38: -0.2065566701 | AU38: -0.5418355875 | AV38: 0.0003307943649 | AW38: 22.895 | AX38: 0.6591480356 | AY38: 0.001462504992 | AZ38: 0.005988963932 | BA38: 0.03838614327 | BB38: 0.02378079736 | BC38: 0.005807270715 | BD38: 806.7460681 | BE38: 911.4 | BF38: 12012.15197 | BG38: 118.960485 | BH38: 0 | BI38: 0.02307460184 | BJ38: 806.6992821 | BK38: 911.4 | BL38: 12012.15197 | BM38: 118.960485 | BN38: 0 | BO38: 0.02307460184 | BP38: 7.223810277 | BQ38: 52.2935911 | BR38: 4.836173732 | BS38: 118.960485 | BT38: 0.0007835834763 | BU38: 0 | BV38: 0.003082191781 | BW38: 12019.39801 | BX38: 806.0134753 | BZ38: 0.003082191781
V39: 1,2-Diethylbenzol | X39: 121.6879347 | Y39: =VLOOKUP(V39,Stoffdatenbank!$A$4:$Q$41,6,FALSE) -> 0.16 | Z39: =VLOOKUP(V39,Stoffdatenbank!$A$4:$Q$41,5,FALSE)/1000 -> 0.5 | AA39: 0.005 | AB39: =VLOOKUP(V39,Stoffdatenbank!$A$4:$Q$41,8,FALSE) -> 5.7e-06 | AC39: =VLOOKUP(V39,Stoffdatenbank!$A$4:$Q$41,7,FALSE) -> 5.9e-10 | AD39: =VLOOKUP(V39,Stoffdatenbank!$A$4:$Q$41,9,FALSE)*1000 -> 24000 | AE39: =VLOOKUP(V39,Stoffdatenbank!$A$4:$Q$41,10,FALSE) -> 67 | AF39: =VLOOKUP(V39,Stoffdatenbank!$A$4:$Q$41,13,FALSE)/1000 -> 0.134 | AG39: =IF(Schadstoffbelastung!X28<>0,Schadstoffbelastung!X28,"") ->  | AJ39: 30 | AK39: 96322.43247 | AL39: 3 | AM39: 0.002197699366 | AN39: 0.001285753196 | AO39: 0.0003139809305 | AP39: 3.274801166e-07 | AQ39: 1011.521224 | AR39: 1.055010213 | AS39: -4897.063958 | AT39: -0.2065566701 | AU39: -0.5472907266 | AV39: 0.0003194140826 | AW39: 22.86333333 | AX39: 0.6705270671 | AY39: 0.001437301208 | AZ39: 0.005885754334 | BA39: 0.03797464728 | BB39: 0.02376680005 | BC39: 0.005803852573 | BD39: 806.7460681 | BE39: 911.4 | BF39: 12011.9707 | BG39: 118.960485 | BH39: 0 | BI39: 0.02329792072 | BJ39: 806.6988293 | BK39: 911.4 | BL39: 12011.9707 | BM39: 118.960485 | BN39: 0 | BO39: 0.02329792072 | BP39: 7.521844885 | BQ39: 54.4510813 | BR39: 4.82982369 | BS39: 118.960485 | BT39: 0.000816147526 | BU39: 0 | BV39: 0.003196347032 | BW39: 12019.292 | BX39: 805.960377 | BZ39: 0.003196347032
Q40: Verteilungskoeffizient Kohlenstoff/Wasser [m3/kg] | R40: Koc | S40: 13.0525 | V40: 1,3-Diethylbenzol | X40: 115.5588747 | Y40: =VLOOKUP(V40,Stoffdatenbank!$A$4:$Q$41,6,FALSE) -> 0.23 | Z40: =VLOOKUP(V40,Stoffdatenbank!$A$4:$Q$41,5,FALSE)/1000 -> 0.42 | AA40: 0.0042 | AB40: =VLOOKUP(V40,Stoffdatenbank!$A$4:$Q$41,8,FALSE) -> 5.6e-06 | AC40: =VLOOKUP(V40,Stoffdatenbank!$A$4:$Q$41,7,FALSE) -> 5.8e-10 | AD40: =VLOOKUP(V40,Stoffdatenbank!$A$4:$Q$41,9,FALSE)*1000 -> 27000 | AE40: =VLOOKUP(V40,Stoffdatenbank!$A$4:$Q$41,10,FALSE) -> 109 | AF40: =VLOOKUP(V40,Stoffdatenbank!$A$4:$Q$41,13,FALSE)/1000 -> 0.134 | AG40: =IF(Schadstoffbelastung!X29<>0,Schadstoffbelastung!X29,"") ->  | AJ40: 31 | AK40: 96369.5782 | AL40: 3.1 | AM40: 0.002125765366 | AN40: 0.001243668564 | AO40: 0.0003037038633 | AP40: 3.274801166e-07 | AQ40: 978.8915073 | AR40: 1.055526596 | AS40: -4739.094153 | AT40: -0.2065566701 | AU40: -0.5525669761 | AV40: 0.0003087858037 | AW40: 22.83166667 | AX40: 0.6817100003 | AY40: 0.001413358034 | AZ40: 0.005787706939 | BA40: 0.03758118565 | BB40: 0.02375354568 | BC40: 0.005800615854 | BD40: 806.7460681 | BE40: 911.4 | BF40: 12011.78765 | BG40: 118.960485 | BH40: 0 | BI40: 0.02352690499 | BJ40: 806.698365 | BK40: 911.4 | BL40: 12011.78765 | BM40: 118.960485 | BN40: 0 | BO40: 0.02352690499 | BP40: 7.501998357 | BQ40: 54.30741111 | BR40: 4.82349046 | BS40: 118.960485 | BT40: 0.0008139867716 | BU40: 0 | BV40: 0.003310502283 | BW40: 12019.16141 | BX40: 805.9036362 | BZ40: 0.003310502283
Q41: Diffusionskoeffizient Gas | R41: Da | S41: 5.7925e-06 | V41: 1,4-Diethylbenzol | X41: 116.998958 | Y41: =VLOOKUP(V41,Stoffdatenbank!$A$4:$Q$41,6,FALSE) -> 0.23 | Z41: =VLOOKUP(V41,Stoffdatenbank!$A$4:$Q$41,5,FALSE)/1000 -> 0.46 | AA41: 0.0046 | AB41: =VLOOKUP(V41,Stoffdatenbank!$A$4:$Q$41,8,FALSE) -> 5.6e-06 | AC41: =VLOOKUP(V41,Stoffdatenbank!$A$4:$Q$41,7,FALSE) -> 5.8e-10 | AD41: =VLOOKUP(V41,Stoffdatenbank!$A$4:$Q$41,9,FALSE)*1000 -> 25000 | AE41: =VLOOKUP(V41,Stoffdatenbank!$A$4:$Q$41,10,FALSE) -> 101 | AF41: =VLOOKUP(V41,Stoffdatenbank!$A$4:$Q$41,13,FALSE)/1000 -> 0.134 | AG41: =IF(Schadstoffbelastung!X30<>0,Schadstoffbelastung!X30,"") ->  | AJ41: 32 | AK41: 96415.20502 | AL41: 3.2 | AM41: 0.002058360654 | AN41: 0.001204233769 | AO41: 0.0002940738863 | AP41: 3.274801166e-07 | AQ41: 948.3011477 | AR41: 1.056026342 | AS41: -4590.997461 | AT41: -0.2065566701 | AU41: -0.557675697 | AV41: 0.000298837529 | AW41: 22.8 | AX41: 0.6927066435 | AY41: 0.001390573546 | AZ41: 0.005694404366 | BA41: 0.03720440605 | BB41: 0.02374096764 | BC41: 0.005797544299 | BD41: 806.7460681 | BE41: 911.4 | BF41: 12011.60278 | BG41: 118.960485 | BH41: 0 | BI41: 0.02376133207 | BJ41: 806.6978897 | BK41: 911.4 | BL41: 12011.60278 | BM41: 118.960485 | BN41: 0 | BO41: 0.02376133207 | BP41: 7.481757339 | BQ41: 54.16088518 | BR41: 4.817174377 | BS41: 118.960485 | BT41: 0.0008117829039 | BU41: 0 | BV41: 0.003424657534 | BW41: 12019.01992 | BX41: 805.8424084 | BZ41: 0.003424657534
Q42: Diffusionskoeffizient Wasser | R42: Dw | S42: 5.91e-10 | V42: 1,2,3-Trimethylbenzol | X42: 656.9495635 | Y42: =VLOOKUP(V42,Stoffdatenbank!$A$4:$Q$41,6,FALSE) -> 0.08 | Z42: =VLOOKUP(V42,Stoffdatenbank!$A$4:$Q$41,5,FALSE)/1000 -> 0.87 | AA42: 0.0087 | AB42: =VLOOKUP(V42,Stoffdatenbank!$A$4:$Q$41,8,FALSE) -> 6e-06 | AC42: =VLOOKUP(V42,Stoffdatenbank!$A$4:$Q$41,7,FALSE) -> 6.4e-10 | AD42: =VLOOKUP(V42,Stoffdatenbank!$A$4:$Q$41,9,FALSE)*1000 -> 75000 | AE42: =VLOOKUP(V42,Stoffdatenbank!$A$4:$Q$41,10,FALSE) -> 125 | AF42: =VLOOKUP(V42,Stoffdatenbank!$A$4:$Q$41,13,FALSE)/1000 -> 0.12 | AG42: =IF(Schadstoffbelastung!X31<>0,Schadstoffbelastung!X31,"") -> 14.42889667 | AH42: 0.02701819129 | AJ42: 33 | AK42: 96459.40712 | AL42: 3.3 | AM42: 0.001995071437 | AN42: 0.001167206724 | AO42: 0.0002850318819 | AP42: 3.274801166e-07 | AQ42: 919.5647493 | AR42: 1.056510483 | AS42: -4451.876326 | AT42: -0.2065566701 | AU42: -0.5626272013 | AV42: 0.0002895061572 | AW42: 22.76833333 | AX42: 0.7035260118 | AY42: 0.001368857015 | AZ42: 0.005605475081 | BA42: 0.03684309718 | BB42: 0.02372900745 | BC42: 0.00579462362 | BD42: 806.7460681 | BE42: 911.4 | BF42: 12011.41604 | BG42: 118.960485 | BH42: 0 | BI42: 0.0240010074 | BJ42: 806.6974037 | BK42: 911.4 | BL42: 12011.41604 | BM42: 118.960485 | BN42: 0 | BO42: 0.0240010074 | BP42: 7.461126882 | BQ42: 54.01154008 | BR42: 4.810875772 | BS42: 118.960485 | BT42: 0.0008095364748 | BU42: 0 | BV42: 0.003538812785 | BW42: 12018.88641 | BX42: 805.7763187 | BZ42: 0.003538812785
Q43: Wasserlöslichkeit | R43: Lw | S43: 911.4 | V43: 1,2,4-Trimethylbenzol | X43: 597.8897437 | Y43: =VLOOKUP(V43,Stoffdatenbank!$A$4:$Q$41,6,FALSE) -> 0.12 | Z43: =VLOOKUP(V43,Stoffdatenbank!$A$4:$Q$41,5,FALSE)/1000 -> 0.99 | AA43: 0.0099 | AB43: =VLOOKUP(V43,Stoffdatenbank!$A$4:$Q$41,8,FALSE) -> 6e-06 | AC43: =VLOOKUP(V43,Stoffdatenbank!$A$4:$Q$41,7,FALSE) -> 6.3e-10 | AD43: =VLOOKUP(V43,Stoffdatenbank!$A$4:$Q$41,9,FALSE)*1000 -> 60000 | AE43: =VLOOKUP(V43,Stoffdatenbank!$A$4:$Q$41,10,FALSE) -> 147 | AF43: =VLOOKUP(V43,Stoffdatenbank!$A$4:$Q$41,13,FALSE)/1000 -> 0.12 | AG43: =IF(Schadstoffbelastung!X32<>0,Schadstoffbelastung!X32,"") -> 69.91327167 | AH43: 0.1309129999 | AJ43: 34 | AK43: 96502.2702 | AL43: 3.4 | AM43: 0.001935532784 | AN43: 0.001132373928 | AO43: 0.0002765257132 | AP43: 3.274801166e-07 | AQ43: 892.5187273 | AR43: 1.056979958 | AS43: -4320.938787 | AT43: -0.2065566701 | AU43: -0.5674308772 | AV43: 0.0002807361523 | AW43: 22.73666667 | AX43: 0.7141764144 | AY43: 0.001348127373 | AZ43: 0.005520587112 | BA43: 0.03649617018 | BB43: 0.02371761346 | BC43: 0.005791841207 | BD43: 806.7460681 | BE43: 911.4 | BF43: 12011.22739 | BG43: 118.960485 | BH43: 0 | BI43: 0.02424576062 | BJ43: 806.6969075 | BK43: 911.4 | BL43: 12011.22739 | BM43: 118.960485 | BN43: 0 | BO43: 0.02424576062 | BP43: 7.440111068 | BQ43: 53.85940536 | BR43: 4.804594973 | BS43: 118.960485 | BT43: 0.0008072479295 | BU43: 0 | BV43: 0.003652968037 | BW43: 12018.72178 | BX43: 805.7056414 | BZ43: 0.003652968037
Q44: Molmasse des Gemischs [kg/mol] | R44: Mm | S44: 0.107 | V44: 1,3,5-Trimethylbenzol | X44: 136.28686 | Y44: =VLOOKUP(V44,Stoffdatenbank!$A$4:$Q$41,6,FALSE) -> 0.48 | Z44: =VLOOKUP(V44,Stoffdatenbank!$A$4:$Q$41,5,FALSE)/1000 -> 0.67 | AA44: 0.0067 | AB44: =VLOOKUP(V44,Stoffdatenbank!$A$4:$Q$41,8,FALSE) -> 6e-06 | AC44: =VLOOKUP(V44,Stoffdatenbank!$A$4:$Q$41,7,FALSE) -> 6.3e-10 | AD44: =VLOOKUP(V44,Stoffdatenbank!$A$4:$Q$41,9,FALSE)*1000 -> 20000 | AE44: =VLOOKUP(V44,Stoffdatenbank!$A$4:$Q$41,10,FALSE) -> 193 | AF44: =VLOOKUP(V44,Stoffdatenbank!$A$4:$Q$41,13,FALSE)/1000 -> 0.12 | AG44: =IF(Schadstoffbelastung!X33<>0,Schadstoffbelastung!X33,"") -> 21.17579667 | AH44: 0.03965180001 | AJ44: 35 | AK44: 96543.87249 | AL44: 3.5 | AM44: 0.001879421626 | AN44: 0.001099546371 | AO44: 0.0002685092238 | AP44: 3.274801166e-07 | AQ44: 867.0181922 | AR44: 1.057435624 | AS44: -4197.483393 | AT44: -0.2065566701 | AU44: -0.5720952963 | AV44: 0.0002724784435 | AW44: 22.705 | AX44: 0.72466553 | AY44: 0.001328311928 | AZ44: 0.005439442785 | BA44: 0.03616264295 | BB44: 0.0237067399 | BC44: 0.005789185884 | BD44: 806.7460681 | BE44: 911.4 | BF44: 12011.0368 | BG44: 118.960485 | BH44: 0 | BI44: 0.02449544231 | BJ44: 806.6964012 | BK44: 911.4 | BL44: 12011.0368 | BM44: 118.960485 | BN44: 0 | BO44: 0.02449544231 | BP44: 7.418713128 | BQ44: 53.7045044 | BR44: 4.798332305 | BS44: 118.960485 | BT44: 0.0008049176206 | BU44: 0 | BV44: 0.003767123288 | BW44: 12018.56635 | BX44: 805.6293076 | BZ44: 0.003767123288
Q45: Verteilungskoeffizient Boden/Wasser [m3/kg] | R45: Kd | S45: =S40*foc -> 0.130525 | V45: Summe AKW | X45: =AD95 -> 1122.524553 | Y45: =SUM(IF($AH$28:$AH$44<>"",Y28:Y44*$AH$28:$AH$44,0)) -> 0.1616866976 | Z45: =SUM(IF($AH$28:$AH$44<>"",Z28:Z44*$AH$28:$AH$44,0)) -> 0.9356050557 | AA45: =SUM(IF($AH$28:$AH$44<>"",AA28:AA44*$AH$28:$AH$44,0)) -> 0.009356050557 | AB45: =SUM(IF($AH$28:$AH$44<>"",AB28:AB44*$AH$28:$AH$44,0)) -> 6.299903586e-06 | AC45: =SUM(IF($AH$28:$AH$44<>"",AC28:AC44*$AH$28:$AH$44,0)) -> 6.648774706e-10 | AD45: =SUM(IF($AH$28:$AH$44<>"",AD28:AD44*$AH$28:$AH$44,0))*Anteil_Schadstoff -> 44226.53612 | AE45: =AC95*Anteil_Schadstoff -> 107.6097794 | AF45: =SUM(IF($AH$28:$AH$44<>"",AF28:AF44*$AH$28:$AH$44,0)) -> 0.1087581717 | AG45: =IF(SUM(AG28:AG44)<>0,SUM(AG28:AG44),"") -> 534.0437675 | AH45: =SUM(AH28:AH44) -> 1 | AJ45: 36 | AK45: 96584.28556 | AL45: 3.6 | AM45: 0.001826450921 | AN45: 0.001068556121 | AO45: 0.0002609414047 | AP45: 3.274801166e-07 | AQ45: 842.9343535 | AR45: 1.057878265 | AS45: -4080.886632 | AT45: -0.2065566701 | AU45: -0.5766283057 | AV45: 0.0002646895115 | AW45: 22.67333333 | AX45: 0.7350004713 | AY45: 0.001309345282 | AZ45: 0.00536177429 | BA45: 0.0358416269 | BB45: 0.02369634605 | BC45: 0.005786647705 | BD45: 806.7460681 | BE45: 911.4 | BF45: 12010.84424 | BG45: 118.960485 | BH45: 0 | BI45: 0.02474992129 | BJ45: 806.6958852 | BK45: 911.4 | BL45: 12010.84424 | BM45: 118.960485 | BN45: 0 | BO45: 0.02474992129 | BP45: 7.396935549 | BQ45: 53.54685521 | BR45: 4.792088091 | BS45: 118.960485 | BT45: 0.0008025458196 | BU45: 0 | BV45: 0.003881278539 | BW45: 12018.37456 | BX45: 805.5476328 | BZ45: 0.003881278539
Q46: Henry Koeffizient | R46: H | S46: =S47*10^6*Mm/Lw/8.314/Temp -> 13.18953624 | V46: Mittelwert | X46: =AVERAGE(X28:X44) -> 892.4973431 | Y46: =AVERAGE(Y28:Y44) -> 0.1876470588 | Z46: =AVERAGE(Z28:Z44) -> 0.7323529412 | AA46: 0.007323529412 | AB46: 6.171764706e-06 | AC46: 6.474705882e-10 | AD46: 214117.6471 | AE46: 864 | AF46: 0.1150588235 | AG46: =IF(AG45<>"",AVERAGE(AG28:AG44),"") -> 66.75547094 | AJ46: 37 | AK46: 96623.57506 | AL46: 3.7 | AM46: 0.001776364775 | AN46: 0.001039253468 | AO46: 0.0002537856969 | AP46: 3.274801166e-07 | AQ46: 820.152344 | AR46: 1.058308599 | AS46: -3970.592399 | AT46: -0.2065566701 | AU46: -0.5810371073 | AV46: 0.0002573306255 | AW46: 22.64166667 | AX46: 0.7451878424 | AY46: 0.001291168412 | AZ46: 0.005287339935 | BA46: 0.03553231568 | BB46: 0.02368639552 | BC46: 0.005784217786 | BD46: 806.7460681 | BE46: 911.4 | BF46: 12010.64965 | BG46: 118.960485 | BH46: 0 | BI46: 0.02500908234 | BJ46: 806.6953598 | BK46: 911.4 | BL46: 12010.64965 | BM46: 118.960485 | BN46: 0 | BO46: 0.02500908234 | BP46: 7.374780164 | BQ46: 53.38647106 | BR46: 4.785862652 | BS46: 118.960485 | BT46: 0.0008001327262 | BU46: 0 | BV46: 0.00399543379 | BW46: 12018.19336 | BX46: 805.4593683 | BZ46: 0.00399543379
Q47: Partialdampfdruck des Stoffes in Gasphase [Pa] | R47: Pa | S47: 269.1432028 | AJ47: 38 | AK47: 96661.80138 | AL47: 3.8 | AM47: 0.001728934331 | AN47: 0.00101150452 | AO47: 0.0002470094038 | AP47: 3.274801166e-07 | AQ47: 798.5693876 | AR47: 1.058727288 | AS47: -3866.103125 | AT47: -0.2065566701 | AU47: -0.5853283268 | AV47: 0.0002503672025 | AW47: 22.61 | AX47: 0.7552337883 | AY47: 0.001273727897 | AZ47: 0.005215920954 | BA47: 0.03523397551 | BB47: 0.02367685571 | BC47: 0.005781888165 | BD47: 806.7460681 | BE47: 911.4 | BF47: 12010.45302 | BG47: 118.960485 | BH47: 0 | BI47: 0.02527282427 | BJ47: 806.694825 | BK47: 911.4 | BL47: 12010.45302 | BM47: 118.960485 | BN47: 0 | BO47: 0.02527282427 | BP47: 7.352248227 | BQ47: 53.22336104 | BR47: 4.779656309 | BS47: 118.960485 | BT47: 0.0007976784771 | BU47: 0 | BV47: 0.004109589041 | BW47: 12017.96965 | BX47: 805.3648776 | BZ47: 0.004109589041
Q48: Sättigungskonzentration des Schadstoffs in der Luft [kg/m3] | R48: Ca,sat | S48: =Mm*10^6*Pa/(8.314*Temp) -> 12020.94333 | AJ48: 39 | AK48: 96699.02017 | AL48: 3.9 | AM48: 0.00168395429 | AN48: 0.0009851891681 | AO48: 0.0002405831948 | AP48: 3.274801166e-07 | AQ48: 778.0932494 | AR48: 1.059134942 | AS48: -3766.972276 | AT48: -0.2065566701 | AU48: -0.5895080733 | AV48: 0.0002437682671 | AW48: 22.57833333 | AX48: 0.7651440381 | AY48: 0.001256975247 | AZ48: 0.005147318782 | BA48: 0.03494593688 | BB48: 0.0236676973 | BC48: 0.005779651682 | BD48: 806.7460681 | BE48: 911.4 | BF48: 12010.2543 | BG48: 118.960485 | BH48: 0 | BI48: 0.0255410582 | BJ48: 806.6942811 | BK48: 911.4 | BL48: 12010.2543 | BM48: 118.960485 | BN48: 0 | BO48: 0.0255410582 | BP48: 7.605582267 | BQ48: 55.05726118 | BR48: 4.773234592 | BS48: 118.960485 | BT48: 0.0008253595962 | BU48: 0 | BV48: 0.004223744292 | BW48: 12017.75813 | BX48: 805.2626999 | BZ48: 0.004223744292
Q49: Sättigungskonzentration [kg/m3] | R49: Csat | S49: 416 | V49: n-Pentan | X49: =((Theta_w+pb*AA49+Theta_a*Y49)/pb)*AD49 -> 546.2832554 | Y49: =VLOOKUP(V49,Stoffdatenbank!$A$4:$Q$41,6,FALSE) -> 35.69 | Z49: =VLOOKUP(V49,Stoffdatenbank!$A$4:$Q$41,5,FALSE)/1000 -> 0.87 | AA49: =Z49*foc -> 0.0087 | AB49: =VLOOKUP(V49,Stoffdatenbank!$A$4:$Q$41,8,FALSE) -> 6.89e-06 | AC49: =VLOOKUP(V49,Stoffdatenbank!$A$4:$Q$41,7,FALSE) -> 7.01e-10 | AD49: =VLOOKUP(V49,Stoffdatenbank!$A$4:$Q$41,9,FALSE)*1000 -> 40000 | AE49: =VLOOKUP(V49,Stoffdatenbank!$A$4:$Q$41,10,FALSE) -> 46219 | AF49: =VLOOKUP(V49,Stoffdatenbank!$A$4:$Q$41,13,FALSE)/1000 -> 0.072 | AG49: =IF(Schadstoffbelastung!X35<>0,Schadstoffbelastung!X35,"") ->  | AH49: =IF(AG49<>"",AG49/$AG$55,"") ->  | AJ49: 40 | AK49: 96735.28283 | AL49: 4 | AM49: 0.001641239959 | AN49: 0.0009601993589 | AO49: 0.0002344806834 | AP49: 3.274801166e-07 | AQ49: 758.6409182 | AR49: 1.059532123 | AS49: -3672.797969 | AT49: -0.2065566701 | AU49: -0.5935819919 | AV49: 0.0002375059931 | AW49: 22.54666667 | AX49: 0.7749239438 | AY49: 0.001240866333 | AZ49: 0.005081352714 | BA49: 0.03466758742 | BB49: 0.02365889384 | BC49: 0.005777501876 | BD49: 806.7460681 | BE49: 911.4 | BF49: 12010.05345 | BG49: 118.960485 | BH49: 0 | BI49: 0.02581370619 | BJ49: 806.6937283 | BK49: 911.4 | BL49: 12010.05345 | BM49: 118.960485 | BN49: 0 | BO49: 0.02581370619 | BP49: 7.586536598 | BQ49: 54.91938845 | BR49: 4.766829006 | BS49: 118.960485 | BT49: 0.0008232864089 | BU49: 0 | BV49: 0.004337899543 | BW49: 12017.49679 | BX49: 805.1532542 | BZ49: 0.004337899543
Q50: relevante Flächenbelastung im Sanierungsbereich [mg/kg] | R50: Ct | S50: =S54+(S55*(S53/S56^0.5)) -> 806.7460681 | V50: n-Hexan | X50: 268.4112419 | Y50: =VLOOKUP(V50,Stoffdatenbank!$A$4:$Q$41,6,FALSE) -> 46.48 | Z50: =VLOOKUP(V50,Stoffdatenbank!$A$4:$Q$41,5,FALSE)/1000 -> 2.04 | AA50: 0.0204 | AB50: =VLOOKUP(V50,Stoffdatenbank!$A$4:$Q$41,8,FALSE) -> 6.36e-06 | AC50: =VLOOKUP(V50,Stoffdatenbank!$A$4:$Q$41,7,FALSE) -> 6.49e-10 | AD50: =VLOOKUP(V50,Stoffdatenbank!$A$4:$Q$41,9,FALSE)*1000 -> 10000 | AE50: =VLOOKUP(V50,Stoffdatenbank!$A$4:$Q$41,10,FALSE) -> 12922 | AF50: =VLOOKUP(V50,Stoffdatenbank!$A$4:$Q$41,13,FALSE)/1000 -> 0.086 | AG50: =IF(Schadstoffbelastung!X36<>0,Schadstoffbelastung!X36,"") -> 69.91327167 | AH50: 0.25 | AJ50: 41 | AK50: 96770.63693 | AL50: 4.1 | AM50: 0.001600624731 | AN50: 0.00093643762 | AO50: 0.0002286780668 | AP50: 3.274801166e-07 | AQ50: 740.1374812 | AR50: 1.059919353 | AS50: -3583.21753 | AT50: -0.2065566701 | AU50: -0.5975553097 | AV50: 0.0002315553135 | AW50: 22.515 | AX50: 0.7845785139 | AY50: 0.001225360897 | AZ50: 0.005017857892 | BA50: 0.03439836569 | BB50: 0.0236504214 | BC50: 0.005775432906 | BD50: 806.7460681 | BE50: 911.4 | BF50: 12009.85045 | BG50: 118.960485 | BH50: 0 | BI50: 0.02609069998 | BJ50: 806.6931667 | BK50: 911.4 | BL50: 12009.85045 | BM50: 118.960485 | BN50: 0 | BO50: 0.02609069998 | BP50: 7.567184527 | BQ50: 54.77929766 | BR50: 4.76043981 | BS50: 118.960485 | BT50: 0.000821179732 | BU50: 0 | BV50: 0.004452054795 | BW50: 12017.24953 | BX50: 805.0348289 | BZ50: 0.004452054795
S51: 16 | V51: n-Heptan | X51: 136.5754672 | Y51: =VLOOKUP(V51,Stoffdatenbank!$A$4:$Q$41,6,FALSE) -> 69.3 | Z51: =VLOOKUP(V51,Stoffdatenbank!$A$4:$Q$41,5,FALSE)/1000 -> 5.25 | AA51: 0.0525 | AB51: =VLOOKUP(V51,Stoffdatenbank!$A$4:$Q$41,8,FALSE) -> 5.92e-06 | AC51: =VLOOKUP(V51,Stoffdatenbank!$A$4:$Q$41,7,FALSE) -> 6.05e-10 | AD51: =VLOOKUP(V51,Stoffdatenbank!$A$4:$Q$41,9,FALSE)*1000 -> 2200 | AE51: =VLOOKUP(V51,Stoffdatenbank!$A$4:$Q$41,10,FALSE) -> 3645 | AF51: =VLOOKUP(V51,Stoffdatenbank!$A$4:$Q$41,13,FALSE)/1000 -> 0.1 | AG51: =IF(Schadstoffbelastung!X37<>0,Schadstoffbelastung!X37,"") -> 69.91327167 | AH51: 0.25 | AJ51: 42 | AK51: 96805.1266 | AL51: 4.2 | AM51: 0.001561957927 | AN51: 0.0009138157964 | AO51: 0.0002231538175 | AP51: 3.274801166e-07 | AQ51: 722.5151602 | AR51: 1.060297115 | AS51: -3497.902827 | AT51: -0.2065566701 | AU51: -0.6014328754 | AV51: 0.0002258935869 | AW51: 22.48333333 | AX51: 0.7941124439 | AY51: 0.001210422125 | AZ51: 0.004956683557 | BA51: 0.0341377558 | BB51: 0.02364225827 | BC51: 0.005773439468 | BD51: 806.7460681 | BE51: 911.4 | BF51: 12009.64527 | BG51: 118.960485 | BH51: 0 | BI51: 0.02637197994 | BJ51: 806.6925964 | BK51: 911.4 | BL51: 12009.64527 | BM51: 118.960485 | BN51: 0 | BO51: 0.02637197994 | BP51: 7.547525644 | BQ51: 54.63698584 | BR51: 4.754067267 | BS51: 118.960485 | BT51: 0.0008190395205 | BU51: 0 | BV51: 0.004566210046 | BW51: 12016.94381 | BX51: 804.9079075 | BZ51: 0.004566210046
Q52: Anzahl der Freiheitsgrade [-] | R52: m | S52: =S56-1 -> 3 | V52: n-Octan | X52: 128.5189111 | Y52: =VLOOKUP(V52,Stoffdatenbank!$A$4:$Q$41,6,FALSE) -> 70.89 | Z52: =VLOOKUP(V52,Stoffdatenbank!$A$4:$Q$41,5,FALSE)/1000 -> 17.38 | AA52: 0.1738 | AB52: =VLOOKUP(V52,Stoffdatenbank!$A$4:$Q$41,8,FALSE) -> 5.58e-06 | AC52: =VLOOKUP(V52,Stoffdatenbank!$A$4:$Q$41,7,FALSE) -> 5.69e-10 | AD52: =VLOOKUP(V52,Stoffdatenbank!$A$4:$Q$41,9,FALSE)*1000 -> 700 | AE52: =VLOOKUP(V52,Stoffdatenbank!$A$4:$Q$41,10,FALSE) -> 1041 | AF52: =VLOOKUP(V52,Stoffdatenbank!$A$4:$Q$41,13,FALSE)/1000 -> 0.114 | AG52: =IF(Schadstoffbelastung!X38<>0,Schadstoffbelastung!X38,"") -> 69.91327167 | AH52: 0.25 | AJ52: 43 | AK52: 96838.79281 | AL52: 4.3 | AM52: 0.001525102934 | AN52: 0.0008922539644 | AO52: 0.0002178884181 | AP52: 3.274801166e-07 | AQ52: 705.712482 | AR52: 1.060665858 | AS52: -3416.55625 | AT52: -0.2065566701 | AU52: -0.6052191958 | AV52: 0.0002205003116 | AW52: 22.45166667 | AX52: 0.8035301427 | AY52: 0.001196016273 | AZ52: 0.004897691535 | BA52: 0.03388528271 | BB52: 0.02363438469 | BC52: 0.005771516742 | BD52: 806.7460681 | BE52: 911.4 | BF52: 12009.43786 | BG52: 118.960485 | BH52: 0 | BI52: 0.02665749417 | BJ52: 806.6920175 | BK52: 911.4 | BL52: 12009.43786 | BM52: 118.960485 | BN52: 0 | BO52: 0.02665749417 | BP52: 7.527559266 | BQ52: 54.49244805 | BR52: 4.747711637 | BS52: 118.960485 | BT52: 0.0008168656994 | BU52: 0 | BV52: 0.004680365297 | BW52: 12016.65435 | BX52: 804.7704815 | BZ52: 0.004680365297
Q53: Standardabweichung | R53: s | S53: =(T53*Sanierungsfläche*10^-6)/Vb*1000 -> 448.5897715 | T53: 336442.3286 | V53: n-Nonan | X53: 35.63892172 | Y53: =VLOOKUP(V53,Stoffdatenbank!$A$4:$Q$41,6,FALSE) -> 156.63 | Z53: =VLOOKUP(V53,Stoffdatenbank!$A$4:$Q$41,5,FALSE)/1000 -> 27.54 | AA53: 0.2754 | AB53: =VLOOKUP(V53,Stoffdatenbank!$A$4:$Q$41,8,FALSE) -> 5.31e-06 | AC53: =VLOOKUP(V53,Stoffdatenbank!$A$4:$Q$41,7,FALSE) -> 5.41e-10 | AD53: =VLOOKUP(V53,Stoffdatenbank!$A$4:$Q$41,9,FALSE)*1000 -> 120 | AE53: =VLOOKUP(V53,Stoffdatenbank!$A$4:$Q$41,10,FALSE) -> 351 | AF53: =VLOOKUP(V53,Stoffdatenbank!$A$4:$Q$41,13,FALSE)/1000 -> 0.128 | AG53: =IF(Schadstoffbelastung!X39<>0,Schadstoffbelastung!X39,"") -> 69.91327167 | AH53: 0.25 | AJ53: 44 | AK53: 96871.67372 | AL53: 4.4 | AM53: 0.001489935607 | AN53: 0.0008716794928 | AO53: 0.0002128641321 | AP53: 3.274801166e-07 | AQ53: 689.673562 | AR53: 1.061025999 | AS53: -3338.907244 | AT53: -0.2065566701 | AU53: -0.6089184666 | AV53: 0.0002153568782 | AW53: 22.42 | AX53: 0.8128357566 | AY53: 0.001182112351 | AZ53: 0.004840754919 | BA53: 0.03364050809 | BB53: 0.02362678267 | BC53: 0.005769660329 | BD53: 806.7460681 | BE53: 911.4 | BF53: 12009.22819 | BG53: 118.960485 | BH53: 0 | BI53: 0.02694719766 | BJ53: 806.6914301 | BK53: 911.4 | BL53: 12009.22819 | BM53: 118.960485 | BN53: 0 | BO53: 0.02694719766 | BP53: 7.507284463 | BQ53: 54.34567755 | BR53: 4.741373183 | BS53: 118.960485 | BT53: 0.0008146581668 | BU53: 0 | BV53: 0.004794520548 | BW53: 12016.29618 | BX53: 804.6231092 | BZ53: 0.004794520548
Q54: Arithmetisches Mittel der Konzentrationen des Gemisches in den relevanten Bodenprofilen [mg/kg] | R54: CMittel | S54: 279.6530867 | V54: n-Decan | X54: 110.3572504 | Y54: =VLOOKUP(V54,Stoffdatenbank!$A$4:$Q$41,6,FALSE) -> 140.3 | Z54: =VLOOKUP(V54,Stoffdatenbank!$A$4:$Q$41,5,FALSE)/1000 -> 218.78 | AA54: 2.1878 | AB54: =VLOOKUP(V54,Stoffdatenbank!$A$4:$Q$41,8,FALSE) -> 5.05e-06 | AC54: =VLOOKUP(V54,Stoffdatenbank!$A$4:$Q$41,7,FALSE) -> 5.13e-10 | AD54: =VLOOKUP(V54,Stoffdatenbank!$A$4:$Q$41,9,FALSE)*1000 -> 50 | AE54: =VLOOKUP(V54,Stoffdatenbank!$A$4:$Q$41,10,FALSE) -> 118 | AF54: =VLOOKUP(V54,Stoffdatenbank!$A$4:$Q$41,13,FALSE)/1000 -> 0.142 | AG54: =IF(Schadstoffbelastung!X40<>0,Schadstoffbelastung!X40,"") ->  | AJ54: 45 | AK54: 96903.80488 | AL54: 4.5 | AM54: 0.001456342875 | AN54: 0.0008520262306 | AO54: 0.0002080648055 | AP54: 3.274801166e-07 | AQ54: 674.3474828 | AR54: 1.061377929 | AS54: -3264.709305 | AT54: -0.2065566701 | AU54: -0.6125346007 | AV54: 0.0002104463569 | AW54: 22.38833333 | AX54: 0.822033191 | AY54: 0.001168681837 | AZ54: 0.004785756909 | BA54: 0.03340302673 | BB54: 0.02361943575 | BC54: 0.00576786621 | BD54: 806.7460681 | BE54: 911.4 | BF54: 12009.01625 | BG54: 118.960485 | BH54: 0 | BI54: 0.02724105162 | BJ54: 806.6908342 | BK54: 911.4 | BL54: 12009.01625 | BM54: 118.960485 | BN54: 0 | BO54: 0.02724105162 | BP54: 7.486700078 | BQ54: 54.19666596 | BR54: 4.735052168 | BS54: 118.960485 | BT54: 0.0008124167961 | BU54: 0 | BV54: 0.004908675799 | BW54: 12015.9062 | BX54: 804.46343 | BZ54: 0.004908675799
Q55: Quantile der Student t Verteilung | R55: t | S55: =VLOOKUP(S52,R59:S79,2,FALSE) -> 2.35 | V55: Summe n-Alkane | X55: =AD105 -> 68.06282415 | Y55: =SUM(IF($AH$49:$AH$54<>"",Y49:Y54*$AH$49:$AH$54,0)) -> 85.825 | Z55: =SUM(IF($AH$49:$AH$54<>"",Z49:Z54*$AH$49:$AH$54,0)) -> 13.0525 | AA55: =SUM(IF($AH$49:$AH$54<>"",AA49:AA54*$AH$49:$AH$54,0)) -> 0.130525 | AB55: =SUM(IF($AH$49:$AH$54<>"",AB49:AB54*$AH$49:$AH$54,0)) -> 5.7925e-06 | AC55: =SUM(IF($AH$49:$AH$54<>"",AC49:AC54*$AH$49:$AH$54,0)) -> 5.91e-10 | AD55: =SUM(IF($AH$49:$AH$54<>"",AD49:AD54*$AH$49:$AH$54,0))*Anteil_Schadstoff -> 911.4 | AE55: =AC105*Anteil_Schadstoff -> 269.1432028 | AF55: =SUM(IF($AH$49:$AH$54<>"",AF49:AF54*$AH$49:$AH$54,0)) -> 0.107 | AG55: =IF(SUM(AG49:AG54)<>0,SUM(AG49:AG54),"") -> 279.6530867 | AH55: =SUM(AH49:AH54) -> 1 | AJ55: 46 | AK55: 96935.21951 | AL55: 4.6 | AM55: 0.001424221538 | AN55: 0.0008332338005 | AO55: 0.0002034756941 | AP55: 3.274801166e-07 | AQ55: 659.6877549 | AR55: 1.06172201 | AS55: -3193.737364 | AT55: -0.2065566701 | AU55: -0.6160712527 | AV55: 0.0002057533119 | AW55: 22.35666667 | AX55: 0.8311261291 | AY55: 0.001155698429 | AZ55: 0.004732589801 | BA55: 0.03317246333 | BB55: 0.02361232884 | BC55: 0.005766130702 | BD55: 806.7460681 | BE55: 911.4 | BF55: 12008.80198 | BG55: 118.960485 | BH55: 0 | BI55: 0.02753902288 | BJ55: 806.6902301 | BK55: 911.4 | BL55: 12008.80198 | BM55: 118.960485 | BN55: 0 | BO55: 0.02753902288 | BP55: 7.465804747 | BQ55: 54.04540342 | BR55: 4.728748856 | BS55: 118.960485 | BT55: 0.0008101414379 | BU55: 0 | BV55: 0.00502283105 | BW55: 12015.53651 | BX55: 804.2903509 | BZ55: 0.00502283105
Q56: Anzahl der relevanten Bodenprofile [-] | R56: n | S56: 4 | V56: Mittelwert | X56: =AVERAGE(X49:X54) -> 204.2975079 | Y56: =AVERAGE(Y49:Y54) -> 86.54833333 | Z56: =AVERAGE(Z49:Z54) -> 45.31 | AA56: 0.4531 | AB56: 5.851666667e-06 | AC56: 5.963333333e-10 | AD56: 8845 | AE56: 10716 | AF56: 0.107 | AG56: =IF(AG55<>"",AVERAGE(AG49:AG54),"") -> 69.91327167 | AJ56: 47 | AK56: 96965.94865 | AL56: 4.7 | AM56: 0.001393477211 | AN56: 0.0008152469828 | AO56: 0.0001990833132 | AP56: 3.274801166e-07 | AQ56: 645.6518453 | AR56: 1.062058583 | AS56: -3125.785505 | AT56: -0.2065566701 | AU56: -0.6195318419 | AV56: 0.0002012636406 | AW56: 22.325 | AX56: 0.8401180497 | AY56: 0.00114313783 | AZ56: 0.004681154097 | BA56: 0.03294846972 | BB56: 0.0236054481 | BC56: 0.005764450426 | BD56: 806.7460681 | BE56: 911.4 | BF56: 12008.58536 | BG56: 118.960485 | BH56: 0 | BI56: 0.02784108331 | BJ56: 806.6896176 | BK56: 911.4 | BL56: 12008.58536 | BM56: 118.960485 | BN56: 0 | BO56: 0.02784108331 | BP56: 7.444596917 | BQ56: 53.89187868 | BR56: 4.722463513 | BS56: 118.960485 | BT56: 0.0008078319223 | BU56: 0 | BV56: 0.005136986301 | BW56: 12015.07852 | BX56: 804.1045691 | BZ56: 0.005136986301
AJ57: 48 | AK57: 96996.02138 | AL57: 4.8 | AM57: 0.001364023401 | AN57: 0.0007980151766 | AO57: 0.0001948753061 | AP57: 3.274801166e-07 | AQ57: 632.2007652 | AR57: 1.062387967 | AS57: -3060.664974 | AT57: -0.2065566701 | AU57: -0.622919571 | AV57: 0.0001969644325 | AW57: 22.29333333 | AX57: 0.8490122425 | AY57: 0.001130977554 | AZ57: 0.004631357715 | BA57: 0.03273072231 | BB57: 0.02359878079 | BC57: 0.00576282227 | BD57: 806.7460681 | BE57: 911.4 | BF57: 12008.36636 | BG57: 118.960485 | BH57: 0 | BI57: 0.02814720938 | BJ57: 806.6889969 | BK57: 911.4 | BL57: 12008.36636 | BM57: 118.960485 | BN57: 0 | BO57: 0.02814720938 | BP57: 7.642866769 | BQ57: 55.3271659 | BR57: 4.716009598 | BS57: 118.960485 | BT57: 0.0008294979617 | BU57: 0 | BV57: 0.005251141553 | BW57: 12014.64401 | BX57: 803.9030505 | BZ57: 0.005251141553
Q58: Quantile der einseitigen t-Verteilung | R58: m | S58: t (0,95) | AJ58: 49 | AK58: 97025.46498 | AL58: 4.9 | AM58: 0.001335780706 | AN58: 0.000781491927 | AO58: 0.0001908403286 | AP58: 3.274801166e-07 | AQ58: 619.2987087 | AR58: 1.06271046 | AS58: -2998.202423 | AT58: -0.2065566701 | AU58: -0.6262374451 | AV58: 0.0001928438461 | AW58: 22.26166667 | AX58: 0.8578118221 | AY58: 0.001119196755 | AZ58: 0.004583115294 | BA58: 0.03251891992 | BB58: 0.02359231518 | BC58: 0.005761243367 | BD58: 806.7460681 | BE58: 911.4 | BF58: 12008.14495 | BG58: 118.960485 | BH58: 0 | BI58: 0.02845738173 | BJ58: 806.688368 | BK58: 911.4 | BL58: 12008.14495 | BM58: 118.960485 | BN58: 0 | BO58: 0.02845738173 | BP58: 7.624413562 | BQ58: 55.19358204 | BR58: 4.709571309 | BS58: 118.960485 | BT58: 0.0008274895313 | BU58: 0 | BV58: 0.005365296804 | BW58: 12014.10526 | BX58: 803.6866017 | BZ58: 0.005365296804
R59: 0 | S59: 1 | V59: Anpassung | AJ59: 50 | AK59: 97054.30505 | AL59: 5 | AM59: 0.001308676098 | AN59: 0.0007656345095 | AO59: 0.0001869679472 | AP59: 3.274801166e-07 | AQ59: 606.9127346 | AR59: 1.063026342 | AS59: -2938.238375 | AT59: -0.2065566701 | AU59: -0.6294882869 | AV59: 0.0001888910006 | AW59: 22.23 | AX59: 0.8665197412 | AY59: 0.001107776078 | AZ59: 0.004536347574 | BA59: 0.03231278177 | BB59: 0.02358604042 | BC59: 0.005759711071 | BD59: 806.7460681 | BE59: 911.4 | BF59: 12007.92109 | BG59: 118.960485 | BH59: 0 | BI59: 0.0287715848 | BJ59: 806.6877309 | BK59: 911.4 | BL59: 12007.92109 | BM59: 118.960485 | BN59: 0 | BO59: 0.0287715848 | BP59: 7.605692199 | BQ59: 55.05805699 | BR59: 4.703148875 | BS59: 118.960485 | BT59: 0.00082545179 | BU59: 0 | BV59: 0.005479452055 | BW59: 12013.5937 | BX59: 803.4516413 | BZ59: 0.005479452055
R60: 1 | S60: 6.31 | X60: Dampfdruck | Y60: Stoffmengenanteil | Z60: Verhältnis des Dampfdrucks | AA60: Produkt aus Anteil und Gewichtung | AB60: Norm. Produkt | AC60: Verbesserter Pa | AD60: Verbesserte Csat | AJ60: 51 | AK60: 97082.56568 | AL60: 5.1 | AM60: 0.001282642298 | AN60: 0.0007504035629 | AO60: 0.0001832485501 | AP60: 3.274801166e-07 | AQ60: 595.0124849 | AR60: 1.063335878 | AS60: -2880.625858 | AT60: -0.2065566701 | AU60: -0.6326747512 | AV60: 0.0001850958803 | AW60: 22.19833333 | AX60: 0.8751388016 | AY60: 0.001096697523 | AZ60: 0.004490980849 | BA60: 0.03211204571 | BB60: 0.02357994648 | BC60: 0.005758222931 | BD60: 806.7460681 | BE60: 911.4 | BF60: 12007.69476 | BG60: 118.960485 | BH60: 0 | BI60: 0.02908980651 | BJ60: 806.6870857 | BK60: 911.4 | BL60: 12007.69476 | BM60: 118.960485 | BN60: 0 | BO60: 0.02908980651 | BP60: 7.586700845 | BQ60: 54.92057745 | BR60: 4.696742525 | BS60: 118.960485 | BT60: 0.0008233845368 | BU60: 0 | BV60: 0.005593607306 | BW60: 12012.95886 | BX60: 803.1991031 | BZ60: 0.005593607306
R61: 2 | S61: 2.92 | V61: =V11 -> Tetrachlorethen | X61: =AE11 -> 1479 | Y61: =AH11 -> 0.0177718442 | Z61: =IF(Y61="","",MIN($X$61:$X$73)/X61) -> 0.9261730899 | AA61: =IF(Y61="","",Y61*Z61) -> 0.01645980385 | AB61: =IF(Y61="","",AA61/SUM($AA$61:$AA$73)) -> 0.1605557139 | AC61: =IF(Y61="","",X61*AB61) -> 237.4619009 | AD61: =IF(Y61="","",X11*AB61) -> 95.98275405 | AJ61: 52 | AK61: 97110.26954 | AL61: 5.2 | AM61: 0.001257617222 | AN61: 0.000735762765 | AO61: 0.0001796732672 | AP61: 3.274801166e-07 | AQ61: 583.5699371 | AR61: 1.063639316 | AS61: -2825.229207 | AT61: -0.2065566701 | AU61: -0.6357993386 | AV61: 0.0001814492505 | AW61: 22.16666667 | AX61: 0.8836716652 | AY61: 0.001085944329 | AZ61: 0.004446946473 | BA61: 0.03191646668 | BB61: 0.02357402407 | BC61: 0.005756776677 | BD61: 806.7460681 | BE61: 911.4 | BF61: 12007.46592 | BG61: 118.960485 | BH61: 0 | BI61: 0.02941203796 | BJ61: 806.6864324 | BK61: 911.4 | BL61: 12007.46592 | BM61: 118.960485 | BN61: 0 | BO61: 0.02941203796 | BP61: 7.567437551 | BQ61: 54.78112932 | BR61: 4.690352491 | BS61: 118.960485 | BT61: 0.0008212875587 | BU61: 0 | BV61: 0.005707762557 | BW61: 12012.35552 | BX61: 802.9247517 | BZ61: 0.005707762557
R62: 3 | S62: 2.35 | V62: =V12 -> Trichlorethen | X62: 6064 | Y62: =AH12 -> 0.03034217302 | Z62: =IF(Y62="","",MIN($X$61:$X$73)/X62) -> 0.2258921504 | AA62: 0.006854058711 | AB62: =IF(Y62="","",AA62/SUM($AA$61:$AA$73)) -> 0.06685731491 | AC62: =IF(Y62="","",X62*AB62) -> 405.4227576 | AD62: =IF(Y62="","",X12*AB62) -> 93.17985502 | AJ62: 53 | AK62: 97137.43799 | AL62: 5.3 | AM62: 0.001233543487 | AN62: 0.0007216785453 | AO62: 0.0001762339008 | AP62: 3.274801166e-07 | AQ62: 572.5591835 | AR62: 1.063936889 | AS62: -2771.922995 | AT62: -0.2065566701 | AU62: -0.6388644064 | AV62: 0.0001779425827 | AW62: 22.135 | AX62: 0.8921208635 | AY62: 0.001075500859 | AZ62: 0.004404180423 | BA62: 0.03172581524 | BB62: 0.02356826455 | BC62: 0.005755370203 | BD62: 806.7460681 | BE62: 911.4 | BF62: 12007.23454 | BG62: 118.960485 | BH62: 0 | BI62: 0.02973827315 | BJ62: 806.6857709 | BK62: 911.4 | BL62: 12007.23454 | BM62: 118.960485 | BN62: 0 | BO62: 0.02973827315 | BP62: 7.547900266 | BQ62: 54.63969775 | BR62: 4.683979005 | BS62: 118.960485 | BT62: 0.0008191606314 | BU62: 0 | BV62: 0.005821917808 | BW62: 12011.60612 | BX62: 802.629669 | BZ62: 0.005821917808
R63: 4 | S63: 2.13 | V63: cis-1,2-Dichlorethen | X63: 17284 | Y63: 0.03052422606 | Z63: 0.07925306642 | AA63: 0.002419138515 | AB63: 0.0235972746 | AC63: 407.8552941 | AD63: 47.5582436 | AJ63: 54 | AK63: 97164.09121 | AL63: 5.4 | AM63: 0.001210367981 | AN63: 0.0007081198292 | AO63: 0.0001729228623 | AP63: 3.274801166e-07 | AQ63: 561.9562357 | AR63: 1.064228819 | AS63: -2720.591088 | AT63: -0.2065566701 | AU63: -0.6418721798 | AV63: 0.0001745679887 | AW63: =IF(AX63="","",AW64+dt/60) -> 22.10333333 | AX63: =IF(AX62="","",IF((AX62)>=$AY$3,"",AX62+AZ62*dt)) -> 0.9004888063 | AY63: =IF(AX63="","",(Ka/(2*ua))*((Pw/(AX63*LN(rw/Rl)))*(1-(PROI/Pw)^2))/((1+(1-(PROI/Pw)^2)*(LN(AX63/rw)/LN(rw/Rl)))^0.5)) -> 0.001065352513 | AZ63: =IF(AX63="","",AY63/n/Sa) -> 0.004362622905 | BA63: =10^-0.42*(Da*10000)^0.38*(AZ63*100)^0.62*(d_50*100)^0.44 -> 0.03153987632 | BB63: 0.02356265991 | BC63: 0.005754001549 | BD63: 806.7460681 | BE63: 911.4 | BF63: 12007.00059 | BG63: 118.960485 | BH63: 0 | BI63: 0.03006850879 | BJ63: 806.6851013 | BK63: 911.4 | BL63: 12007.00059 | BM63: 118.960485 | BN63: 0 | BO63: 0.03006850879 | BP63: 7.528086842 | BQ63: 54.4962672 | BR63: 4.677622303 | BS63: 118.960485 | BT63: 0.00081700352 | BU63: 0 | BV63: 0.005936073059 | BW63: 12010.89323 | BX63: 802.3088363 | BZ63: 0.005936073059
R64: 5 | S64: 2.01 | V64: trans-1,2-Dichlorethen | X64: 29294 | Y64: 0.1356728594 | Z64: 0.04676077012 | AA64: 0.006344167389 | AB64: 0.06188362469 | AC64: 1812.818902 | AD64: 262.9483277 | AJ64: 55 | AK64: 97190.24824 | AL64: 5.5 | AM64: 0.001188041464 | AN64: 0.0006950578103 | AO64: 0.0001697331173 | AP64: 3.274801166e-07 | AQ64: 551.7388496 | AR64: 1.064515315 | AS64: -2671.125795 | AT64: -0.2065566701 | AU64: -0.6448247616 | AV64: 0.0001713181614 | AW64: 22.07166667 | AX64: 0.9087777898 | AY64: 0.001055485637 | AZ64: 0.004322218004 | BA64: 0.03135844809 | BB64: 0.02355720266 | BC64: 0.005752668891 | BD64: 806.7460681 | BE64: 911.4 | BF64: 12006.76404 | BG64: 118.960485 | BH64: 0 | BI64: 0.03040274406 | BJ64: 806.6844236 | BK64: 911.4 | BL64: 12006.76404 | BM64: 118.960485 | BN64: 0 | BO64: 0.03040274406 | BP64: 7.507995039 | BQ64: 54.35082145 | BR64: 4.671282621 | BS64: 118.960485 | BT64: 0.0008148159794 | BU64: 0 | BV64: 0.006050228311 | BW64: 12010.00692 | BX64: 801.9635085 | BZ64: 0.006050228311
R65: 6 | S65: 1.94 | V65: 1,1-Dichlorethen | X65: 6792.77 | Y65: 0.1131329594 | Z65: 0.201657056 | AA65: 0.02281405952 | AB65: 0.2225377439 | AC65: 1511.64771 | AD65: 480.3785376 | AJ65: 56 | AK65: 97215.9271 | AL65: 5.6 | AM65: 0.001166518229 | AN65: 0.0006824657479 | AO65: 0.0001666581356 | AP65: 3.274801166e-07 | AQ65: 541.8863701 | AR65: 1.064796573 | AS65: -2623.42712 | AT65: -0.2065566701 | AU65: -0.6477241408 | AV65: 0.0001681863225 | AW65: 22.04 | AX65: 0.916990004 | AY65: 0.001045887443 | AZ65: 0.004282913362 | BA65: 0.03118134085 | BB65: 0.02355188586 | BC65: 0.005751370527 | BD65: 806.7460681 | BE65: 911.4 | BF65: 12006.52486 | BG65: 118.960485 | BH65: 0 | BI65: 0.03074098041 | BJ65: 806.6837378 | BK65: 911.4 | BL65: 12006.52486 | BM65: 118.960485 | BN65: 0 | BO65: 0.03074098041 | BP65: 7.710345411 | BQ65: 55.81564779 | BR65: 4.664770898 | BS65: 118.960485 | BT65: 0.0008369278338 | BU65: 0 | BV65: 0.006164383562 | BW65: 12009.16299 | BX65: 801.5877265 | BZ65: 0.006164383562
R66: 7 | S66: 1.89 | V66: Vinylchlorid | X66: 285916 | Y66: 0.3164255186 | Z66: 0.004790952587 | AA66: 0.001515979657 | AB66: 0.01478749068 | AC66: 4227.980186 | AD66: 25.71427279 | AJ66: 57 | AK66: 97241.14485 | AL66: 5.7 | AM66: 0.001145755789 | AN66: 0.0006703187844 | AO66: 0.0001636918471 | AP66: 3.274801166e-07 | AQ66: 532.3795917 | AR66: 1.06507278 | AS66: -2577.402083 | AT66: -0.2065566701 | AU66: -0.6505722008 | AV66: 0.0001651661752 | AW66: 22.00833333 | AX66: 0.9251275394 | AY66: 0.001036545946 | AZ66: 0.004244659895 | BA66: 0.03100837618 | BB66: 0.02354670299 | BC66: 0.00575010487 | BD66: 806.7460681 | BE66: 911.4 | BF66: 12006.28302 | BG66: 118.960485 | BH66: 0 | BI66: 0.03108322144 | BJ66: 806.6830439 | BK66: 911.4 | BL66: 12006.28302 | BM66: 118.960485 | BN66: 0 | BO66: 0.03108322144 | BP66: 7.693096637 | BQ66: 55.6907829 | BR66: 4.658273777 | BS66: 118.960485 | BT66: 0.000835051041 | BU66: 0 | BV66: 0.006278538813 | BW66: 12008.11271 | BX66: 801.1829464 | BZ66: 0.006278538813
R67: 8 | S67: 1.86 | V67: Tetrachlormethan | X67: 11940 | Y67: 0.3120042306 | Z67: 0.1147244556 | AA67: 0.0357945155 | AB67: 0.3491544639 | AC67: 4168.904299 | AD67: 855.5419987 | AJ67: 58 | AK67: 97265.91763 | AL67: 5.8 | AM67: 0.001125714596 | AN67: 0.0006585937831 | AO67: 0.0001608286018 | AP67: 3.274801166e-07 | AQ67: 523.2006332 | AR67: 1.065344114 | AS67: -2532.964116 | AT67: -0.2065566701 | AU67: -0.6533707269 | AV67: 0.0001622518626 | AW67: 21.97666667 | AX67: 0.9331923932 | AY67: 0.001027449896 | AZ67: 0.004207411533 | BA67: 0.03083938602 | BB67: 0.02354164797 | BC67: 0.005748870434 | BD67: 806.7460681 | BE67: 911.4 | BF67: 12006.03848 | BG67: 118.960485 | BH67: 0 | BI67: 0.03142947271 | BJ67: 806.6823418 | BK67: 911.4 | BL67: 12006.03848 | BM67: 118.960485 | BN67: 0 | BO67: 0.03142947271 | BP67: 7.675610056 | BQ67: 55.5641965 | BR67: 4.65179146 | BS67: 118.960485 | BT67: 0.0008331482535 | BU67: 0 | BV67: 0.006392694064 | BW67: 12006.96194 | BX67: 800.7420778 | BZ67: 0.006392694064
R68: 9 | S68: 1.83 | V68: Trichlormethan | X68: 20900 | Y68: 0.01083649036 | Z68: 0.06554114833 | AA68: 0.0007102360223 | AB68: 0.006927935024 | AC68: 144.793842 | AD68: 33.28267588 | AJ68: 59 | AK68: 97290.26077 | AL68: 5.9 | AM68: 0.001106357795 | AN68: 0.0006472691819 | AO68: 0.0001580631342 | AP68: 3.274801166e-07 | AQ68: 514.3328259 | AR68: 1.065610742 | AS68: -2490.032521 | AT68: -0.2065566701 | AU68: -0.6561214125 | AV68: 0.0001594379298 | AW68: 21.945 | AX68: 0.9411864751 | AY68: 0.001018588722 | AZ68: 0.004171124988 | BA68: 0.03067421192 | BB68: 0.0235367151 | BC68: 0.005747665828 | BD68: 806.7460681 | BE68: 911.4 | BF68: 12005.79122 | BG68: 118.960485 | BH68: 0 | BI68: 0.03177974159 | BJ68: 806.6816316 | BK68: 911.4 | BL68: 12005.79122 | BM68: 118.960485 | BN68: 0 | BO68: 0.03177974159 | BP68: 7.657883529 | BQ68: 55.43587312 | BR68: 4.645324152 | BS68: 118.960485 | BT68: 0.0008312192376 | BU68: 0 | BV68: 0.006506849315 | BW68: 12005.86447 | BX68: 800.2616683 | BZ68: 0.006506849315
R69: 10 | S69: 1.81 | V69: Dichlormethan | X69: 39156.78 | Y69: 0.01083649036 | Z69: 0.03498270287 | AA69: 0.0003790897225 | AB69: 0.003697797469 | AC69: 144.793842 | AD69: 12.22652316 | AJ69: 60 | AK69: 97314.18883 | AL69: 6 | AM69: 0.001087650996 | AN69: 0.0006363248612 | AO69: 0.0001553905311 | AP69: 3.274801166e-07 | AQ69: 505.7606121 | AR69: 1.065872824 | AS69: -2448.531979 | AT69: -0.2065566701 | AU69: -0.658825866 | AV69: 0.0001567192899 | AW69: 21.91333333 | AX69: 0.9491116126 | AY69: 0.001009952479 | AZ69: 0.004135759537 | BA69: 0.03051270435 | BB69: 0.02353189905 | BC69: 0.005746489749 | BD69: 806.7460681 | BE69: 911.4 | BF69: 12005.5412 | BG69: 118.960485 | BH69: 0 | BI69: 0.0321340372 | BJ69: 806.6809132 | BK69: 911.4 | BL69: 12005.5412 | BM69: 118.960485 | BN69: 0 | BO69: 0.0321340372 | BP69: 7.639914861 | BQ69: 55.30579686 | BR69: 4.638872059 | BS69: 118.960485 | BT69: 0.0008292637532 | BU69: 0 | BV69: 0.006621004566 | BW69: 12004.49644 | BX69: 799.7435488 | BZ69: 0.006621004566
R70: 11 | S70: 1.8 | V70: 1,1,1-Trichlorethan | X70: 1369.81 | Y70: 0.005201515375 | Z70: 1 | AA70: 0.005201515375 | AB70: 0.05073772578 | AC70: 69.50104416 | AD70: 107.2403774 | AJ70: 61 | AK70: 97337.71564 | AL70: 6.1 | AM70: 0.001069562073 | AN70: 0.0006257420259 | AO70: 0.0001528062027 | AP70: 3.274801166e-07 | AQ70: 497.4694546 | AR70: 1.066130511 | AS70: -2408.392111 | AT70: -0.2065566701 | AU70: -0.6614856157 | AV70: 0.0001540911939 | AW70: 21.88166667 | AX70: 0.9569695557 | AY70: 0.001001531803 | AZ70: 0.004101276835 | BA70: 0.03035472202 | BB70: 0.02352719481 | BC70: 0.005745340973 | BD70: 806.7460681 | BE70: 911.4 | BF70: 12005.28839 | BG70: 118.960485 | BH70: 0 | BI70: 0.0324923702 | BJ70: 806.6801867 | BK70: 911.4 | BL70: 12005.28839 | BM70: 118.960485 | BN70: 0 | BO70: 0.0324923702 | BP70: 7.621701796 | BQ70: 55.1739514 | BR70: 4.632435389 | BS70: 118.960485 | BT70: 0.0008272815537 | BU70: 0 | BV70: 0.006735159817 | BW70: 12003.19034 | BX70: 799.1784231 | BZ70: 0.006735159817
R71: 12 | S71: 1.78 | V71: 1,1,2-Trichlorethan | X71: 2500 | Y71: 0.006415202296 | Z71: 0.547924 | AA71: 0.003515043303 | AB71: 0.03428718178 | AC71: 85.71795446 | AD71: 75.59565809 | AJ71: 62 | AK71: 97360.85432 | AL71: 6.2 | AM71: 0.00105206098 | AN71: 0.0006155030979 | AO71: 0.0001503058565 | AP71: 3.274801166e-07 | AQ71: 489.4457537 | AR71: 1.066383947 | AS71: -2369.547077 | AT71: -0.2065566701 | AU71: -0.6641021155 | AV71: 0.0001515492026 | AW71: 21.85 | AX71: 0.9647619817 | AY71: 0.0009933178677 | AZ71: 0.004067640736 | BA71: 0.03020013136 | BB71: 0.02352259767 | BC71: 0.005744218351 | BD71: 806.7460681 | BE71: 911.4 | BF71: 12005.03276 | BG71: 118.960485 | BH71: 0 | BI71: 0.03285475281 | BJ71: 806.6794519 | BK71: 911.4 | BL71: 12005.03276 | BM71: 118.960485 | BN71: 0 | BO71: 0.03285475281 | BP71: 7.603242021 | BQ71: 55.04032 | BR71: 4.62601435 | BS71: 118.960485 | BT71: 0.0008252723862 | BU71: 0 | BV71: 0.006849315068 | BW71: 12001.56042 | BX71: 798.5684189 | BZ71: 0.006849315068
R72: 13 | S72: 1.77 | V72: 1,1-Dichlorethan | X72: 29100 | Y72: 0.01083649036 | Z72: 0.04707250859 | AA72: 0.0005101007858 | AB72: 0.004975733402 | AC72: 144.793842 | AD72: 19.07156083 | AJ72: 63 | AK72: 97383.61741 | AL72: 6.3 | AM72: 0.001035119588 | AN72: 0.0006055916194 | AO72: 0.0001478854735 | AP72: 3.274801166e-07 | AQ72: 481.6767735 | AR72: 1.066633268 | AS72: -2331.935218 | AT72: -0.2065566701 | AU72: -0.6666767495 | AV72: 0.000149089162 | AW72: 21.81833333 | AX72: 0.9724904991 | AY72: 0.0009853023438 | AZ72: 0.004034817133 | BA72: 0.03004880589 | BB72: 0.0235181032 | BC72: 0.0057431208 | BD72: 806.7460681 | BE72: 911.4 | BF72: 12004.77429 | BG72: 118.960485 | BH72: 0 | BI72: 0.0332211986 | BJ72: 806.6787089 | BK72: 911.4 | BL72: 12004.77429 | BM72: 118.960485 | BN72: 0 | BO72: 0.0332211986 | BP72: 7.584533172 | BQ72: 54.90488554 | BR72: 4.619609156 | BS72: 118.960485 | BT72: 0.0008232359921 | BU72: 0 | BV72: 0.00696347032 | BW72: 12000.00249 | BX72: 797.9024096 | BZ72: 0.00696347032
R73: 14 | S73: 1.76 | V73: 1,2-Dichlorethan | X73: 10000 | AJ73: 64 | AK73: 97406.01681 | AL73: 6.4 | AM73: 0.001018711528 | AN73: 0.000595992165 | AO73: 0.0001455412867 | AP73: 3.274801166e-07 | AQ73: 474.1505739 | AR73: 1.066878607 | AS73: -2295.49873 | AT73: -0.2065566701 | AU73: -0.6692108364 | AV73: 0.0001467071811 | AW73: 21.78666667 | AX73: 0.9801566517 | AY73: 0.0009774773656 | AZ73: 0.004002773815 | BA73: 0.02990062584 | BB73: 0.02351370722 | BC73: 0.005742047304 | BD73: 806.7460681 | BE73: 911.4 | BF73: 12004.51293 | BG73: 118.960485 | BH73: 0 | BI73: 0.03359172248 | BJ73: 806.6779576 | BK73: 911.4 | BL73: 12004.51293 | BM73: 118.960485 | BN73: 0 | BO73: 0.03359172248 | BP73: 7.56557283 | BQ73: 54.76763049 | BR73: 4.61322002 | BS73: 118.960485 | BT73: 0.0008211721069 | BU73: 0 | BV73: 0.007077625571 | BW73: 11998.05601 | BX73: 797.1828689 | BZ73: 0.007077625571
R74: 15 | S74: 1.75 | V74: Summe LCKW | X74: 3741.273641 | Y74: =AH24 -> 1 | AC74: =SUM(AC61:AC73) -> 13361.69157 | AD74: =SUM(AD61:AD73) -> 2108.720785 | AJ74: 65 | AK74: =(Pw^2+(PROI^2-Pw^2)*(LN(AL74/rw))/(LN(Rl/rw)))^0.5 -> 97428.06389 | AL74: 6.5 | AM74: =ta^0.5*AN74 -> 0.001002812065 | AN74: =AO74/n/Sa -> 0.0005866902621 | AO74: 0.000143269762 | AP74: =Ka/(2*$S$11) -> 3.274801166e-07 | AQ74: 466.8559497 | AR74: 1.067120086 | AS74: =Pw/(AL74*LN(rw/Rl)) -> -2260.183365 | AT74: =1-(PROI/Pw)^2 -> -0.2065566701 | AU74: =LN(AL74/rw)/LN(rw/Rl) -> -0.6717056335 | AV74: 0.0001443996106 | AW74: 21.755 | AX74: 0.9877619219 | AY74: 0.0009698354971 | AZ74: 0.003971480332 | BA74: 0.0297554776 | BB74: 0.02350940582 | BC74: 0.0057409969 | BD74: 806.7460681 | BE74: 911.4 | BF74: 12004.24865 | BG74: 118.960485 | BH74: 0 | BI74: 0.0339663406 | BJ74: 806.6771981 | BK74: 911.4 | BL74: 12004.24865 | BM74: 118.960485 | BN74: 0 | BO74: 0.0339663406 | BP74: 7.729294152 | BQ74: 55.95281885 | BR74: 4.606691675 | BS74: 118.960485 | BT74: 0.0008390642098 | BU74: 0 | BV74: 0.007191780822 | BW74: 11996.19324 | BX74: 796.3964458 | BZ74: 0.007191780822
R75: 16 | S75: 1.75 | V75: Mittelwert | X75: 35522.79692 | AJ75: 66 | AK75: 97449.76949 | AL75: 6.6 | AM75: 0.000987397964 | AN75: 0.0005776723185 | AO75: =AP75*AQ75/AR75 -> 0.0001410675802 | AP75: 3.274801166e-07 | AQ75: =AS75*AT75 -> 459.7823747 | AR75: =(1+AT75*AU75)^0.5 -> 1.067357826 | AS75: -2225.938163 | AT75: -0.2065566701 | AU75: -0.6741623407 | AV75: =(Ka/ua)*(AK75-AK74)/(AL75-AL74) -> 0.0001421630255 | AW75: 21.72333333 | AX75: 0.9953077346 | AY75: 0.0009623697025 | AZ75: 0.003940907873 | BA75: 0.02961325337 | BB75: 0.02350519527 | BC75: 0.005739968685 | BD75: =Ct -> 806.7460681 | BE75: 911.4 | BF75: 12003.98143 | BG75: 118.960485 | BH75: 0 | BI75: 0.03434507028 | BJ75: 806.6764301 | BK75: 911.4 | BL75: 12003.98143 | BM75: 118.960485 | BN75: 0 | BO75: 0.03434507028 | BP75: 7.712593574 | BQ75: 55.83192238 | BR75: 4.600177466 | BS75: 118.960485 | BT75: 0.0008372473205 | BU75: 0 | BV75: 0.007305936073 | BW75: 11993.86298 | BX75: 795.5460168 | BZ75: 0.007305936073
R76: 17 | S76: 1.74 | AJ76: 67 | AK76: 97471.14395 | AL76: 6.7 | AM76: 0.0009724473861 | AN76: 0.0005689255564 | AO76: 0.0001389316209 | AP76: 3.274801166e-07 | AQ76: 452.9199512 | AR76: 1.067591938 | AS76: -2192.715205 | AT76: -0.2065566701 | AU76: -0.6765821035 | AV76: 0.000139994207 | AW76: 21.69166667 | AX76: 1.00279546 | AY76: 0.0009550733192 | AZ76: 0.003911029153 | BA76: 0.02947385078 | BB76: 0.02350107208 | BC76: 0.005738961801 | BD76: 806.7460681 | BE76: =IF((BD76*pb)/(Kd*pb+Theta_w+H*Theta_a)<=Lw,(BD76*pb)/(Kd*pb+Theta_w+H*Theta_a),Lw) -> 911.4 | BF76: =IF(BF77="","0",(BF77*Theta_a+(BI77+BH77)*dt)/Theta_a) -> 12003.71123 | BG76: =IF(BE76=0,0,Kd*BE76) -> 118.960485 | BH76: =IF(BD76<=Csat,Anteil_Schadstoff*Theta_a*Yaw*(H*BE76-BF76),0) -> 0 | BI76: =IF(BD76>Csat,Anteil_Schadstoff*Theta_a*$BA76*(Ca_sat-BF76),0) -> 0.03472792997 | BJ76: =IF(Csat>=BD76,IF(BD76-(BI76+BH76)*Zeitfaktor/pb>0,BD76-(BI76+BH76)*Zeitfaktor/pb,0),IF(BD76-(BI76+BH76)*Zeitfaktor/pb>Csat,BD76-(BI76+BH76)*Zeitfaktor/pb,Csat)) -> 806.6756539 | BK76: =IF((BJ76*pb)/(Kd*pb+Theta_w+H*Theta_a)<=Lw,(BJ76*pb)/(Kd*pb+Theta_w+H*Theta_a),Lw) -> 911.4 | BL76: =IF(BL77="","0",(BL77*Theta_a+(BO77+BN77)*dt)/Theta_a) -> 12003.71123 | BM76: =IF(BK76=0,0,Kd*BK76) -> 118.960485 | BN76: =IF(BJ76<=Csat, Anteil_Schadstoff*Theta_a*Yaw*(H*BK76-BL76),0) -> 0 | BO76: =IF(BJ76>Csat,Anteil_Schadstoff*Theta_a*$BA76*(Ca_sat-BL76),0) -> 0.03472792997 | BP76: 7.695671376 | BQ76: 55.70942158 | BR76: 4.593677581 | BS76: 118.960485 | BT76: 0.0008354062053 | BU76: 0 | BV76: 0.007420091324 | BW76: 11991.63008 | BX76: 794.6155184 | BZ76: =IF(BV76="",#N/A,IF($C$9="LCKW",BV76*100,BV76)) -> 0.007420091324
R77: 18 | S77: 1.73 | AJ77: 68 | AK77: 97492.19716 | AL77: 6.8 | AM77: 0.0009579397797 | AN77: 0.0005604379528 | AO77: 0.0001368589481 | AP77: 3.274801166e-07 | AQ77: 446.2593636 | AR77: 1.067822532 | AS77: -2160.469393 | AT77: -0.2065566701 | AU77: -0.6789660166 | AV77: 0.0001378901283 | AW77: 21.66 | AX77: 1.010226415 | AY77: 0.0009479400325 | AZ77: 0.003881818315 | BA77: 0.02933717249 | BB77: =IF(AX77="","",PI()*(AX77^2-AX76^2)*F) -> 0.02349703292 | BC77: =IF(AX77="","",BB77*Theta_a) -> 0.00573797544 | BD77: 806.7460681 | BE77: 911.4 | BF77: 12003.43801 | BG77: 118.960485 | BH77: 0 | BI77: 0.03511493913 | BJ77: 806.6748692 | BK77: 911.4 | BL77: 12003.43801 | BM77: 118.960485 | BN77: 0 | BO77: 0.03511493913 | BP77: 7.678525319 | BQ77: 55.58530026 | BR77: 4.587192212 | BS77: 118.960485 | BT77: 0.0008335406197 | BU77: 0 | BV77: 0.007534246575 | BW77: 11988.83309 | BX77: 793.6082962 | BZ77: 0.007534246575
R78: 19 | S78: 1.73 | V78: Benzol | X78: =AE28 -> 7941 | Z78: =IF(Y78="","",MIN($X$78:$X$94)/X78) ->  | AB78: =IF(Y78="","",AA78/SUM($AA$79:$AA$94)) ->  | AD78: =IF(Y78="","",X28*AB78) ->  | AJ78: 69 | AK78: 97512.93856 | AL78: 6.9 | AM78: 0.0009438557898 | AN78: 0.0005521981838 | AO78: 0.0001348467965 | AP78: 3.274801166e-07 | AQ78: 439.7918366 | AR78: 1.06804971 | AS78: -2129.158243 | AT78: -0.2065566701 | AU78: -0.6813151268 | AV78: 0.0001358479398 | AW78: 21.62833333 | AX78: 1.01760187 | AY78: 0.0009409638523 | AZ78: 0.003853250828 | BA78: 0.02920312593 | BB78: 0.02349307467 | BC78: 0.005737008835 | BD78: 806.7460681 | BE78: 911.4 | BF78: 12003.16176 | BG78: 118.960485 | BH78: 0 | BI78: 0.03550611826 | BJ78: 806.674076 | BK78: 911.4 | BL78: 12003.16176 | BM78: 118.960485 | BN78: 0 | BO78: 0.03550611826 | BP78: 7.661153124 | BQ78: 55.45954191 | BR78: 4.58072155 | BS78: 118.960485 | BT78: 0.0008316503142 | BU78: 0 | BV78: 0.007648401826 | BW78: 11985.74663 | BX78: 792.5049676 | BZ78: 0.007648401826
R79: 20 | S79: 1.73 | V79: Toluol | X79: 2215 | Y79: 0.0005707288152 | Z79: =IF(Y79="","",MIN($X$78:$X$94)/X79) -> 0.030248307 | AA79: =IF(Y79="","",Y79*Z79) -> 1.726358041e-05 | AB79: =IF(Y79="","",AA79/SUM($AA$79:$AA$94)) -> 9.902612366e-05 | AC79: 0.2193428639 | AD79: =IF(Y79="","",X29*AB79) -> 0.1581023282 | AJ79: 70 | AK79: 97533.3772 | AL79: 7 | AM79: 0.0009301771712 | AN79: 0.0005441955753 | AO79: 0.0001328925595 | AP79: 3.274801166e-07 | AQ79: 433.5090961 | AR79: 1.068273573 | AS79: -2098.741696 | AT79: -0.2065566701 | AU79: -0.6836304357 | AV79: 0.0001338649564 | AW79: 21.59666667 | AX79: 1.024923046 | AY79: 0.0009341390926 | AZ79: 0.00382530341 | BA79: 0.02907162297 | BB79: 0.02348919436 | BC79: 0.005736061263 | BD79: 806.7460681 | BE79: 911.4 | BF79: 12002.88243 | BG79: 118.960485 | BH79: 0 | BI79: 0.03590148879 | BJ79: 806.6732744 | BK79: 911.4 | BL79: 12002.88243 | BM79: 118.960485 | BN79: 0 | BO79: 0.03590148879 | BP79: 7.643552474 | BQ79: 55.33212976 | BR79: 4.57426579 | BS79: 118.960485 | BT79: 0.0008297350357 | BU79: 0 | BV79: 0.007762557078 | BW79: 11982.78286 | BX79: 791.2955861 | BZ79: 0.007762557078
V80: Ethylbenzol | X80: 728 | Y80: 0.1268901929 | Z80: =IF(Y80="","",MIN($X$78:$X$94)/X80) -> 0.09203296703 | AA80: =IF(Y80="","",Y80*Z80) -> 0.01167808094 | AB80: =IF(Y80="","",AA80/SUM($AA$79:$AA$94)) -> 0.06698697834 | AC80: 48.76652023 | AD80: 126.1135473 | AJ80: 71 | AK80: 97553.52172 | AL80: 7.1 | AM80: 0.0009168867107 | AN80: 0.0005364200568 | AO80: 0.0001309937779 | AP80: 3.274801166e-07 | AQ80: 427.4033342 | AR80: 1.068494214 | AS80: -2069.181954 | AT80: -0.2065566701 | AU80: -0.6859129022 | AV80: 0.0001319386462 | AW80: 21.565 | AX80: 1.032191123 | AY80: 0.0009274603514 | AZ80: 0.003797953937 | BA80: 0.02894257965 | BB80: 0.02348538917 | BC80: 0.005735132034 | BD80: 806.7460681 | BE80: 911.4 | BF80: 12002.59999 | BG80: 118.960485 | BH80: 0 | BI80: 0.03630107305 | BJ80: 806.6724642 | BK80: 911.4 | BL80: 12002.59999 | BM80: 118.960485 | BN80: 0 | BO80: 0.03630107305 | BP80: 7.625721011 | BQ80: 55.20304674 | BR80: 4.567825128 | BS80: 118.960485 | BT80: 0.0008277945263 | BU80: 0 | BV80: 0.007876712329 | BW80: 11979.06225 | BX80: 789.9843679 | BZ80: 0.007876712329
V81: o-Xylol | X81: 492 | Y81: 0.1153093849 | Z81: =IF(Y81="","",MIN($X$78:$X$94)/X81) -> 0.1361788618 | AA81: 0.01570270079 | AB81: 0.09007271683 | AC81: 44.31577668 | AD81: 135.6197183 | AJ81: 72 | AK81: 97573.38043 | AL81: 7.2 | AM81: 0.0009039681547 | AN81: 0.0005288621192 | AO81: 0.0001291481295 | AP81: 3.274801166e-07 | AQ81: 421.4671768 | AR81: 1.068711724 | AS81: -2040.443316 | AT81: -0.2065566701 | AU81: -0.6881634451 | AV81: 0.0001300666192 | AW81: 21.53333333 | AX81: 1.039407235 | AY81: 0.0009209224928 | AZ81: 0.003771181379 | BA81: 0.02881591592 | BB81: 0.02348165642 | BC81: 0.005734220498 | BD81: 806.7460681 | BE81: 911.4 | BF81: 12002.3144 | BG81: 118.960485 | BH81: 0 | BI81: 0.03670489426 | BJ81: 806.6716454 | BK81: 911.4 | BL81: 12002.3144 | BM81: 118.960485 | BN81: 0 | BO81: 0.03670489426 | BP81: 7.607656341 | BQ81: 55.07227552 | BR81: 4.561399763 | BS81: 118.960485 | BT81: 0.0008258285242 | BU81: 0 | BV81: 0.00799086758 | BW81: 11975.48423 | BX81: 788.545307 | BZ81: 0.00799086758
V82: m-Xylol | X82: 615 | Y82: 0.2798233511 | Z82: 0.1089430894 | AA82: 0.03048482037 | AB82: 0.1748648611 | AC82: 107.5418896 | AD82: 300.3194745 | AJ82: 73 | AK82: 97592.96125 | AL82: 7.3 | AM82: 0.0008914061437 | AN82: 0.0005215127765 | AO82: 0.00012735342 | AP82: 3.274801166e-07 | AQ82: 415.6936538 | AR82: 1.068926191 | AS82: -2012.492038 | AT82: -0.2065566701 | AU82: -0.690382945 | AV82: 0.0001282466181 | AW82: 21.50166667 | AX82: 1.04657248 | AY82: 0.0009145206306 | AZ82: 0.003744965727 | BA82: 0.02869155543 | BB82: 0.02347799359 | BC82: 0.005733326034 | BD82: 806.7460681 | BE82: 911.4 | BF82: 12002.02565 | BG82: 118.960485 | BH82: 0 | BI82: 0.03711297643 | BJ82: 806.6708179 | BK82: 911.4 | BL82: 12002.02565 | BM82: 118.960485 | BN82: 0 | BO82: 0.03711297643 | BP82: 7.759784051 | BQ82: 56.17353704 | BR82: 4.554845042 | BS82: 118.960485 | BT82: 0.0008424541913 | BU82: 0 | BV82: 0.008105022831 | BW82: 11970.98556 | BX82: 786.9833031 | BZ82: 0.008105022831
V83: =V33 -> p-Xylol | X83: 657 | Y83: 0.2798233511 | Z83: 0.101978691 | AA83: 0.02853601906 | AB83: 0.1636862855 | AC83: 107.5418896 | AD83: 290.3452674 | AJ83: 74 | AK83: 97612.27182 | AL83: 7.4 | AM83: 0.0008791861516 | AN83: 0.0005143635303 | AO83: 0.0001256075741 | AP83: 3.274801166e-07 | AQ83: 410.076172 | AR83: 1.069137698 | AS83: -1985.296199 | AT83: -0.2065566701 | AU83: -0.6925722467 | AV83: 0.0001264765086 | AW83: 21.47 | AX83: 1.053687915 | AY83: 0.0009082501126 | AZ83: 0.00371928793 | BA83: 0.02856942527 | BB83: 0.02347439825 | BC83: 0.005732448054 | BD83: 806.7460681 | BE83: 911.4 | BF83: 12001.73368 | BG83: 118.960485 | BH83: 0 | BI83: 0.03752534441 | BJ83: 806.6699818 | BK83: 911.4 | BL83: 12001.73368 | BM83: 118.960485 | BN83: 0 | BO83: 0.03752534441 | BP83: 7.743796467 | BQ83: 56.05780197 | BR83: 4.54830385 | BS83: 118.960485 | BT83: 0.000840715219 | BU83: 0 | BV83: 0.008219178082 | BW83: 11966.65244 | BX83: 785.266722 | BZ83: 0.008219178082
V84: n-Propylbenzol | X84: 237 | AJ84: 75 | AK84: 97631.31943 | AL84: 7.5 | AM84: 0.0008672944297 | AN84: 0.0005074063369 | AO84: 0.0001239086275 | AP84: 3.274801166e-07 | AQ84: 404.6084897 | AR84: 1.069346325 | AS84: -1958.825583 | AT84: -0.2065566701 | AU84: -0.6947321609 | AV84: 0.0001247542716 | AW84: 21.43833333 | AX84: 1.060754562 | AY84: 0.0009021065065 | AZ84: 0.003694129838 | BA84: 0.02844945583 | BB84: 0.02347086813 | BC84: 0.005731585998 | BD84: 806.7460681 | BE84: 911.4 | BF84: 12001.43847 | BG84: 118.960485 | BH84: 0 | BI84: 0.03794202378 | BJ84: 806.669137 | BK84: 911.4 | BL84: 12001.43847 | BM84: 118.960485 | BN84: 0 | BO84: 0.03794202378 | BP84: 7.727601918 | BQ84: 55.94056867 | BR84: 4.541776365 | BS84: 118.960485 | BT84: 0.0008389536225 | BU84: 0 | BV84: 0.008333333333 | BW84: 11961.19538 | BX84: 783.4012519 | BZ84: 0.008333333333
V85: Isopropylbenzol | X85: 427 | AJ85: 76 | AK85: 97650.1111 | AL85: 7.6 | AM85: 0.0008557179559 | AN85: 0.0005006335779 | AO85: 0.0001222547197 | AP85: 3.274801166e-07 | AQ85: 399.2846938 | AR85: 1.069552148 | AS85: -1933.051562 | AT85: -0.2065566701 | AU85: -0.6968634662 | AV85: 0.0001230779953 | AW85: 21.40666667 | AX85: 1.067773408 | AY85: 0.0008960855869 | AZ85: 0.003669474148 | BA85: 0.02833158055 | BB85: 0.02346740104 | BC85: 0.005730739333 | BD85: 806.7460681 | BE85: 911.4 | BF85: 12001.13999 | BG85: 118.960485 | BH85: 0 | BI85: 0.03836304085 | BJ85: 806.6682833 | BK85: 911.4 | BL85: 12001.13999 | BM85: 118.960485 | BN85: 0 | BO85: 0.03836304085 | BP85: 7.711198216 | BQ85: 55.8218213 | BR85: 4.535262764 | BS85: 118.960485 | BT85: 0.0008371691627 | BU85: 0 | BV85: 0.008447488584 | BW85: 11955.93021 | BX85: 781.3482738 | BZ85: 0.008447488584
V86: o-Ethyltoluol | X86: 202 | AJ86: 77 | AK86: 97668.65358 | AL86: 7.7 | AM86: 0.0008444443867 | AN86: 0.0004940380317 | AO86: 0.0001206440874 | AP86: 3.274801166e-07 | AQ86: 394.0991783 | AR86: 1.069755242 | AS86: -1907.946997 | AT86: -0.2065566701 | AU86: -0.6989669104 | AV86: 0.0001214458683 | AW86: 21.375 | AX86: 1.074745409 | AY86: 0.0008901833226 | AZ86: 0.003645304352 | BA86: 0.02821573577 | BB86: 0.02346399489 | BC86: 0.005729907552 | BD86: 806.7460681 | BE86: 911.4 | BF86: 12000.83819 | BG86: 118.960485 | BH86: 0 | BI86: 0.03878842265 | BJ86: 806.6674208 | BK86: 911.4 | BL86: 12000.83819 | BM86: 118.960485 | BN86: 0 | BO86: 0.03878842265 | BP86: 7.694583142 | BQ86: 55.70154379 | BR86: 4.528763227 | BS86: 118.960485 | BT86: 0.0008353615969 | BU86: 0 | BV86: 0.008561643836 | BW86: 11949.28762 | BX86: 779.1143809 | BZ86: 0.008561643836
V87: m-Ethyltoluol | X87: 202 | AJ87: 78 | AK87: 97686.95335 | AL87: 7.8 | AM87: 0.0008334620144 | AN87: 0.0004876128489 | AO87: 0.0001190750577 | AP87: 3.274801166e-07 | AQ87: 389.0466247 | AR87: 1.069955677 | AS87: -1883.486138 | AT87: -0.2065566701 | AU87: -0.7010432127 | AV87: 0.000119856173 | AW87: 21.34333333 | AX87: 1.081671488 | AY87: 0.0008843958658 | AZ87: 0.003621604692 | BA87: 0.02810186058 | BB87: 0.02346064771 | BC87: 0.005729090172 | BD87: 806.7460681 | BE87: 911.4 | BF87: 12000.53306 | BG87: 118.960485 | BH87: 0 | BI87: 0.0392181969 | BJ87: 806.6665494 | BK87: 911.4 | BL87: 12000.53306 | BM87: 118.960485 | BN87: 0 | BO87: 0.0392181969 | BP87: 7.677754447 | BQ87: 55.57971987 | BR87: 4.522277935 | BS87: 118.960485 | BT87: 0.0008335306792 | BU87: 0 | BV87: 0.008675799087 | BW87: 11941.89964 | BX87: 776.6522443 | BZ87: 0.008675799087
V88: p-Ethyltoluol | X88: 230 | AJ88: 79 | AK88: 97705.01662 | AL88: 7.9 | AM88: 0.0008227597259 | AN88: 0.0004813515277 | AO88: 0.0001175460431 | AP88: 3.274801166e-07 | AQ88: 384.1219839 | AR88: 1.070153523 | AS88: -1859.644541 | AT88: -0.2065566701 | AU88: -0.7030930645 | AV88: 0.0001183072798 | AW88: 21.31166667 | AX88: 1.088552537 | AY88: 0.000878719541 | AZ88: 0.003598360119 | BA88: 0.02798989664 | BB88: 0.02345735762 | BC88: 0.00572828673 | BD88: 806.7460681 | BE88: 911.4 | BF88: 12000.22454 | BG88: 118.960485 | BH88: 0 | BI88: 0.03965239196 | BJ88: 806.665669 | BK88: 911.4 | BL88: 12000.22454 | BM88: 118.960485 | BN88: 0 | BO88: 0.03965239196 | BP88: 7.66070985 | BQ88: 55.45633302 | BR88: 4.515807072 | BS88: 118.960485 | BT88: 0.0008316761602 | BU88: 0 | BV88: 0.008789954338 | BW88: 11934.75111 | BX88: 773.9362521 | BZ88: 0.008789954338
V89: 1,2-Diethylbenzol | X89: 67 | AJ89: 80 | AK89: 97722.84941 | AL89: 8 | AM89: 0.0008123269662 | AN89: 0.000475247893 | AO89: 0.0001160555355 | AP89: 3.274801166e-07 | AQ89: 379.3204591 | AR89: 1.070348843 | AS89: -1836.398984 | AT89: -0.2065566701 | AU89: -0.7051171313 | AV89: 0.0001167976412 | AW89: 21.28 | AX89: 1.095389421 | AY89: 0.0008731508356 | AZ89: 0.003575556247 | BA89: 0.02787978808 | BB89: 0.0234541228 | BC89: 0.005727496788 | BD89: 806.7460681 | BE89: 911.4 | BF89: 11999.91261 | BG89: 118.960485 | BH89: 0 | BI89: 0.04009103683 | BJ89: 806.6647796 | BK89: 911.4 | BL89: 11999.91261 | BM89: 118.960485 | BN89: 0 | BO89: 0.04009103683 | BP89: 7.64344704 | BQ89: 55.33136652 | BR89: 4.509350824 | BS89: 118.960485 | BT89: 0.0008297977873 | BU89: 0 | BV89: 0.008904109589 | BW89: 11925.70561 | BX89: 770.9746317 | BZ89: 0.008904109589
V90: 1,3-Diethylbenzol | X90: 109 | AJ90: 81 | AK90: 97740.45747 | AL90: 8.1 | AM90: 0.0008021537033 | AN90: 0.0004692960756 | AO90: 0.0001146021017 | AP90: 3.274801166e-07 | AQ90: 374.6374905 | AR90: 1.070541703 | AS90: -1813.727392 | AT90: -0.2065566701 | AU90: -0.7071160538 | AV90: 0.0001153257869 | AW90: 21.24833333 | AX90: 1.102182978 | AY90: 0.0008676863905 | AZ90: 0.003553179322 | BA90: 0.02777148132 | BB90: 0.02345094154 | BC90: 0.005726719924 | BD90: 806.7460681 | BE90: 911.4 | BF90: 11999.59724 | BG90: 118.960485 | BH90: 0 | BI90: 0.04053416115 | BJ90: 806.6638812 | BK90: 911.4 | BL90: 11999.59724 | BM90: 118.960485 | BN90: 0 | BO90: 0.04053416115 | BP90: 7.785875825 | BQ90: 56.36241694 | BR90: 4.502773463 | BS90: 118.960485 | BT90: 0.0008453639864 | BU90: 0 | BV90: 0.00901826484 | BW90: 11916.93535 | BX90: 767.7022021 | BZ90: 0.00901826484
V91: 1,4-Diethylbenzol | X91: 101 | Y91: =AH41 ->  | AJ91: 82 | AK91: 97757.84636 | AL91: 8.2 | AM91: 0.0007922303963 | AN91: 0.0004634904936 | AO91: 0.0001131843785 | AP91: 3.274801166e-07 | AQ91: 370.0687406 | AR91: 1.070732162 | AS91: -1791.608765 | AT91: -0.2065566701 | AU91: -0.7090904491 | AV91: 0.0001138903192 | AW91: 21.21666667 | AX91: 1.108934018 | AY91: 0.0008623229915 | AZ91: 0.003531216182 | BA91: 0.02766492499 | BB91: 0.02344781219 | BC91: 0.005725955737 | BD91: 806.7460681 | BE91: 911.4 | BF91: 11999.27838 | BG91: 118.960485 | BH91: 0 | BI91: 0.04098179513 | BJ91: 806.6629735 | BK91: 911.4 | BL91: 11999.27838 | BM91: 118.960485 | BN91: 0 | BO91: 0.04098179513 | BP91: 7.770533322 | BQ91: 56.25135165 | BR91: 4.496209083 | BS91: 118.960485 | BT91: 0.0008436955083 | BU91: 0 | BV91: 0.009132420091 | BW91: 11905.81401 | BX91: 764.128421 | BZ91: 0.009132420091
V92: 1,2,3-Trimethylbenzol | X92: 125 | Y92: 0.02701819129 | Z92: 0.536 | AA92: 0.01448175053 | AB92: 0.0830691887 | AC92: 10.38364859 | AD92: 54.57226725 | AJ92: 83 | AK92: 97775.02143 | AL92: 8.3 | AM92: 0.0007825479659 | AN92: 0.0004578258354 | AO92: 0.000111801069 | AP92: 3.274801166e-07 | AQ92: 365.6100811 | AR92: 1.070920279 | AS92: -1770.023117 | AT92: -0.2065566701 | AU92: -0.7110409116 | AV92: 0.0001124899084 | AW92: 21.185 | AX92: 1.115643329 | AY92: 0.0008570575619 | AZ92: 0.003509654226 | BA92: 0.02756006978 | BB92: 0.02344473318 | BC92: 0.005725203843 | BD92: 806.7460681 | BE92: 911.4 | BF92: 11998.956 | BG92: 118.960485 | BH92: 0 | BI92: 0.04143396959 | BJ92: 806.6620567 | BK92: 911.4 | BL92: 11998.956 | BM92: 118.960485 | BN92: 0 | BO92: 0.04143396959 | BP92: 7.754996088 | BQ92: 56.13887669 | BR92: 4.489657851 | BS92: 118.960485 | BT92: 0.0008420057429 | BU92: 0 | BV92: 0.009246575342 | BW92: 11895.00714 | BX92: 760.1725033 | BZ92: 0.009246575342
V93: 1,2,4-Trimethylbenzol | X93: 147 | Y93: =AH43 -> 0.1309129999 | Z93: 0.4557823129 | AA93: 0.05966782987 | AB93: 0.3422623673 | AC93: 50.31256799 | AD93: 204.6351591 | AJ93: 84 | AK93: 97791.98785 | AL93: 8.4 | AM93: 0.0007730977668 | AN93: 0.000452297043 | AO93: 0.0001104509379 | AP93: 3.274801166e-07 | AQ93: 361.2575801 | AR93: 1.07110611 | AS93: -1748.951414 | AT93: -0.2065566701 | AU93: -0.7129680148 | AV93: 0.0001111232885 | AW93: 21.15333333 | AX93: 1.122311672 | AY93: 0.0008518871541 | AZ93: 0.003488481385 | BA93: 0.02745686836 | BB93: 0.023441703 | BC93: 0.005724463874 | BD93: 806.7460681 | BE93: 911.4 | BF93: 11998.63007 | BG93: 118.960485 | BH93: 0 | BI93: 0.04189071591 | BJ93: 806.6611306 | BK93: 911.4 | BL93: 11998.63007 | BM93: 118.960485 | BN93: 0 | BO93: 0.04189071591 | BP93: 7.739262018 | BQ93: 56.02497683 | BR93: 4.483119933 | BS93: 118.960485 | BT93: 0.0008402944604 | BU93: 0 | BV93: 0.009360730594 | BW93: 11881.27129 | BX93: 755.8452547 | BZ93: 0.009360730594
V94: 1,3,5-Trimethylbenzol | X94: 193 | Y94: 0.03965180001 | Z94: 0.3471502591 | AA94: 0.01376513265 | AB94: 0.07895857609 | AC94: 15.23900519 | AD94: 10.76101641 | AJ94: 85 | AK94: 97808.75058 | AL94: 8.5 | AM94: 0.0007638715621 | AN94: 0.0004468992973 | AO94: 0.0001091328084 | AP94: 3.274801166e-07 | AQ94: 357.0074909 | AR94: 1.071289711 | AS94: -1728.375515 | AT94: -0.2065566701 | AU94: -0.7148723115 | AV94: 0.0001097892539 | AW94: 21.12166667 | AX94: 1.128939787 | AY94: 0.0008468089437 | AZ94: 0.003467686092 | BA94: 0.02735527524 | BB94: 0.02343872022 | BC94: 0.005723735478 | BD94: 806.7460681 | BE94: 911.4 | BF94: 11998.30055 | BG94: 118.960485 | BH94: 0 | BI94: 0.04235206603 | BJ94: 806.6601952 | BK94: 911.4 | BL94: 11998.30055 | BM94: 118.960485 | BN94: 0 | BO94: 0.04235206603 | BP94: 7.723328985 | BQ94: 55.90963666 | BR94: 4.4765955 | BS94: 118.960485 | BT94: 0.0008385614281 | BU94: 0 | BV94: 0.009474885845 | BW94: 11865.86743 | BX94: 751.0460333 | BZ94: 0.009474885845
V95: Summe AKW | X95: 107.6097794 | Y95: 1 | AC95: =SUM(AC78:AC94) -> 384.3206407 | AD95: =SUM(AD78:AD94) -> 1122.524553 | AJ95: 86 | AK95: 97825.31444 | AL95: 8.6 | AM95: 0.0007548614993 | AN95: 0.0004416280044 | AO95: 0.0001078455587 | AP95: 3.274801166e-07 | AQ95: 352.856241 | AR95: 1.071471133 | AS95: -1708.278125 | AT95: -0.2065566701 | AU95: -0.7167543352 | AV95: 0.0001084866556 | AW95: 21.09 | AX95: 1.13552839 | AY95: 0.0008418202223 | AZ95: 0.003447257257 | BA95: 0.02725524674 | BB95: 0.02343578345 | BC95: 0.00572301832 | BD95: 806.7460681 | BE95: 911.4 | BF95: 11997.9674 | BG95: 118.960485 | BH95: 0 | BI95: 0.04281805243 | BJ95: 806.6592503 | BK95: 911.4 | BL95: 11997.9674 | BM95: 118.960485 | BN95: 0 | BO95: 0.04281805243 | BP95: 7.707194833 | BQ95: 55.79284058 | BR95: 4.470084721 | BS95: 118.960485 | BT95: 0.0008368064102 | BU95: 0 | BV95: 0.009589041096 | BW95: 11850.84216 | BX95: 745.7175255 | BZ95: 0.009589041096
V96: Mittelwert | X96: 864 | AJ96: 87 | AK96: 97841.68404 | AL96: 8.7 | AM96: 0.0007460600883 | AN96: 0.0004364787823 | AO96: 0.0001065881186 | AP96: 3.274801166e-07 | AQ96: 348.8004222 | AR96: 1.071650428 | AS96: -1688.642744 | AT96: -0.2065566701 | AU96: -0.7186146009 | AV96: 0.0001072143978 | AW96: 21.05833333 | AX96: 1.142078179 | AY96: 0.0008369183915 | AZ96: 0.00342718424 | BA96: 0.02715674083 | BB96: 0.02343289138 | BC96: 0.005722312075 | BD96: 806.7460681 | BE96: 911.4 | BF96: 11997.63059 | BG96: 118.960485 | BH96: 0 | BI96: 0.04328870811 | BJ96: 806.658296 | BK96: 911.4 | BL96: 11997.63059 | BM96: 118.960485 | BN96: 0 | BO96: 0.04328870811 | BP96: 7.690857381 | BQ96: 55.67457279 | BR96: 4.46358777 | BS96: 118.960485 | BT96: 0.0008350291683 | BU96: 0 | BV96: 0.009703196347 | BW96: 11831.66804 | BX96: 739.8727398 | BZ96: 0.009703196347
AJ97: 88 | AK97: 97857.86387 | AL97: 8.8 | AM97: 0.0007374601809 | AN97: 0.0004314474487 | AO97: 0.000105359467 | AP97: 3.274801166e-07 | AQ97: 344.836781 | AR97: 1.071827644 | AS97: -1669.453622 | AT97: -0.2065566701 | AU97: -0.720453606 | AV97: 0.0001059714351 | AW97: 21.02666667 | AX97: 1.148589829 | AY97: 0.0008321009576 | AZ97: 0.003407456829 | BA97: 0.0270597171 | BB97: 0.02343004273 | BC97: 0.005721616434 | BD97: 806.7460681 | BE97: 911.4 | BF97: 11997.29009 | BG97: 118.960485 | BH97: 0 | BI97: 0.04376406662 | BJ97: 806.6573322 | BK97: 911.4 | BL97: 11997.29009 | BM97: 118.960485 | BN97: 0 | BO97: 0.04376406662 | BP97: 7.674314419 | BQ97: 55.55481731 | BR97: 4.457104822 | BS97: 118.960485 | BT97: 0.0008332294609 | BU97: 0 | BV97: 0.009817351598 | BW97: 11812.91292 | BX97: 733.3691188 | BZ97: 0.009817351598
AJ98: 89 | AK98: 97873.85824 | AL98: 8.9 | AM98: 0.0007290549511 | AN98: 0.0004265300104 | AO98: 0.0001041586285 | AP98: 3.274801166e-07 | AQ98: 340.9622104 | AR98: 1.072002828 | AS98: -1650.695716 | AT98: -0.2065566701 | AU98: -0.7222718309 | AV98: 0.0001047567695 | AW98: 20.995 | AX98: 1.155063997 | AY98: 0.0008273655259 | AZ98: 0.003388065217 | BA98: 0.02696413665 | BB98: 0.02342723628 | BC98: 0.0057209311 | BD98: 806.7460681 | BE98: 911.4 | BF98: 11996.94584 | BG98: 118.960485 | BH98: 0 | BI98: 0.04424416199 | BJ98: 806.6563588 | BK98: 911.4 | BL98: 11996.94584 | BM98: 118.960485 | BN98: 0 | BO98: 0.04424416199 | BP98: 7.808483916 | BQ98: 56.52607825 | BR98: 4.45050778 | BS98: 118.960485 | BT98: 0.0008478934522 | BU98: 0 | BV98: 0.009931506849 | BW98: 11788.90831 | BX98: 726.2210597 | BZ98: 0.009931506849
V99: n-Pentan | X99: =AE49 -> 46219 | Z99: =IF(Y99="","",MIN($X$99:$X$104)/X99) ->  | AA99: =IF(Y99="","",Y99*Z99) ->  | AB99: =IF(Y99="","",AA99/SUM($AA$99:$AA$104)) ->  | AD99: =IF(Y99="","",X49*AB99) ->  | AJ99: 90 | AK99: 97889.67133 | AL99: 9 | AM99: 0.0007208378776 | AN99: 0.0004217226521 | AO99: 0.0001029846716 | AP99: 3.274801166e-07 | AQ99: 337.1737414 | AR99: 1.072176028 | AS99: -1632.354653 | AT99: -0.2065566701 | AU99: -0.72406974 | AV99: 0.0001035694477 | AW99: 20.96333333 | AX99: 1.161501321 | AY99: 0.0008227097957 | AZ99: 0.003368999983 | BA99: 0.02686996203 | BB99: 0.02342447087 | BC99: 0.005720255787 | BD99: 806.7460681 | BE99: 911.4 | BF99: 11996.59783 | BG99: 118.960485 | BH99: 0 | BI99: 0.04472902877 | BJ99: 806.6553757 | BK99: 911.4 | BL99: 11996.59783 | BM99: 118.960485 | BN99: 0 | BO99: 0.04472902877 | BP99: 7.79372583 | BQ99: 56.41924359 | BR99: 4.443923223 | BS99: 118.960485 | BT99: 0.0008462888378 | BU99: 0 | BV99: 0.0100456621 | BW99: 11761.77838 | BX99: 718.2481868 | BZ99: 0.0100456621
V100: n-Hexan | X100: 12922 | Y100: 0.25 | Z100: 0.009131713357 | AA100: 0.002282928339 | AB100: 0.01859669023 | AC100: 240.3064311 | AD100: 4.991560719 | AJ100: 91 | AK100: 97905.30717 | AL100: 9.1 | AM100: 0.0007128027268 | AN100: 0.0004170217266 | AO100: 0.0001018367056 | AP100: 3.274801166e-07 | AQ100: 333.4685355 | AR100: 1.072347286 | AS100: -1614.41669 | AT100: -0.2065566701 | AU100: -0.7258477824 | AV100: 0.0001024085588 | AW100: 20.93166667 | AX100: 1.167902421 | AY100: 0.0008181315559 | AZ100: 0.003350252072 | BA100: 0.02677715717 | BB100: 0.02342174539 | BC100: 0.005719590223 | BD100: 806.7460681 | BE100: 911.4 | BF100: 11996.24601 | BG100: 118.960485 | BH100: 0 | BI100: 0.04521870199 | BJ100: 806.6543828 | BK100: 911.4 | BL100: 11996.24601 | BM100: 118.960485 | BN100: 0 | BO100: 0.04521870199 | BP100: 7.778783517 | BQ100: 56.3110753 | BR100: 4.437351308 | BS100: 118.960485 | BT100: 0.0008446640843 | BU100: 0 | BV100: 0.01015981735 | BW100: 11735.11151 | BX100: 709.3431121 | BZ100: 0.01015981735
V101: n-Heptan | X101: 3645 | Y101: 0.25 | Z101: 0.03237311385 | AA101: 0.008093278464 | AB101: 0.06592769029 | AC101: 240.3064311 | AD101: 9.004105102 | AJ101: 92 | AK101: 97920.76967 | AL101: 9.2 | AM101: 0.0007049435371 | AN101: 0.0004124237464 | AO101: 0.0001007138789 | AP101: 3.274801166e-07 | AQ101: 329.8438775 | AR101: 1.072516645 | AS101: -1596.868682 | AT101: -0.2065566701 | AU101: -0.7276063921 | AV101: 0.0001012732318 | AW101: 20.9 | AX101: 1.1742679 | AY101: 0.0008136286802 | AZ101: 0.003331812777 | BA101: 0.0266856873 | BB101: 0.02341905874 | BC101: 0.005718934144 | BD101: 806.7460681 | BE101: 911.4 | BF101: 11995.89033 | BG101: 118.960485 | BH101: 0 | BI101: 0.04571321717 | BJ101: 806.6533801 | BK101: 911.4 | BL101: 11995.89033 | BM101: 118.960485 | BN101: 0 | BO101: 0.04571321717 | BP101: 7.763654969 | BQ101: 56.20155884 | BR101: 4.430792192 | BS101: 118.960485 | BT101: 0.0008430189722 | BU101: 0 | BV101: 0.0102739726 | BW101: 11700.8031 | BX101: 699.5217464 | BZ101: 0.0102739726
V102: n-Octan | X102: 1041 | Y102: 0.25 | Z102: 0.1133525456 | AA102: 0.02833813641 | AB102: 0.2308419127 | AC102: 240.3064311 | AD102: 29.66755125 | AJ102: 93 | AK102: 97936.06261 | AL102: 9.3 | AM102: 0.0006972546042 | AN102: 0.000407925374 | AO102: 9.961537634e-05 | AP102: 3.274801166e-07 | AQ102: 326.2971691 | AR102: 1.072684147 | AS102: -1579.698051 | AT102: -0.2065566701 | AU102: -0.7293459895 | AV102: 0.0001001626336 | AW102: 20.86833333 | AX102: 1.180598344 | AY102: 0.0008091991232 | AZ102: 0.003313673723 | BA102: 0.02659551893 | BB102: 0.0234164099 | BC102: 0.005718287297 | BD102: 806.7460681 | BE102: 911.4 | BF102: 11995.53078 | BG102: 118.960485 | BH102: 0 | BI102: 0.04621261032 | BJ102: 806.6523675 | BK102: 911.4 | BL102: 11995.53078 | BM102: 118.960485 | BN102: 0 | BO102: 0.04621261032 | BP102: 7.748338155 | BQ102: 56.09067952 | BR102: 4.424246036 | BS102: 118.960485 | BT102: 0.0008413532793 | BU102: 0 | BV102: 0.01038812785 | BW102: 11661.80013 | BX102: 688.5215219 | BZ102: 0.01038812785
V103: n-Nonan | X103: 351 | Y103: 0.25 | Z103: 0.3361823362 | AA103: 0.08404558405 | AB103: 0.6846337068 | AC103: 240.3064311 | AD103: 24.39960709 | AJ103: 94 | AK103: 97951.18963 | AL103: 9.4 | AM103: 0.0006897304676 | AN103: 0.0004035234149 | AO103: 9.854041792e-05 | AP103: 3.274801166e-07 | AQ103: 322.8259226 | AR103: 1.072849832 | AS103: -1562.892753 | AT103: -0.2065566701 | AU103: -0.7310669813 | AV103: 9.907596674e-05 | AW103: 20.83666667 | AX103: 1.186894324 | AY103: 0.0008048409164 | AZ103: 0.003295826848 | BA103: 0.02650661972 | BB103: 0.02341379786 | BC103: 0.005717649439 | BD103: 806.7460681 | BE103: 911.4 | BF103: 11995.16729 | BG103: 118.960485 | BH103: 0 | BI103: 0.0467169179 | BJ103: 806.651345 | BK103: 911.4 | BL103: 11995.16729 | BM103: 118.960485 | BN103: 0 | BO103: 0.0467169179 | BP103: 7.73283102 | BQ103: 55.97842245 | BR103: 4.417713002 | BS103: 118.960485 | BT103: 0.0008396667812 | BU103: 0 | BV103: 0.01050228311 | BW103: 11623.23905 | BX103: 676.1811301 | BZ103: 0.01050228311
V104: n-Decan | X104: 118 | AJ104: 95 | AK104: 97966.15427 | AL104: 9.5 | AM104: 0.0006823658973 | AN104: 0.0003992148094 | AO104: 9.748825645e-05 | AP104: 3.274801166e-07 | AQ104: 319.427755 | AR104: 1.073013738 | AS104: -1546.44125 | AT104: -0.2065566701 | AU104: -0.7327697611 | AV104: 9.801246773e-05 | AW104: 20.805 | AX104: 1.193156395 | AY104: 0.0008005521644 | AZ104: 0.003278264392 | BA104: 0.02641895851 | BB104: 0.02341122168 | BC104: 0.005717020335 | BD104: 806.7460681 | BE104: 911.4 | BF104: 11994.79985 | BG104: 118.960485 | BH104: 0 | BI104: 0.04722617684 | BJ104: 806.6503124 | BK104: 911.4 | BL104: 11994.79985 | BM104: 118.960485 | BN104: 0 | BO104: 0.04722617684 | BP104: 7.717131486 | BQ104: 55.8647726 | BR104: 4.411193254 | BS104: 118.960485 | BT104: 0.0008379592506 | BU104: 0 | BV104: 0.01061643836 | BW104: 11573.31757 | BX104: 662.5157547 | BZ104: 0.01061643836
V105: =V55 -> Summe n-Alkane | X105: 269.1432028 | Y105: 1 | AC105: =SUM(AC99:AC104) -> 961.2257244 | AD105: =SUM(AD99:AD104) -> 68.06282415 | AJ105: 96 | AK105: 97980.95997 | AL105: 9.6 | AM105: 0.0006751558825 | AN105: 0.0003949966256 | AO105: 9.645817598e-05 | AP105: 3.274801166e-07 | AQ105: 316.1003826 | AR105: 1.073175903 | AS105: -1530.332487 | AT105: -0.2065566701 | AU105: -0.7344547104 | AV105: 9.697140517e-05 | AW105: 20.77333333 | AX105: 1.199385098 | AY105: 0.0007963310418 | AZ105: 0.003260978877 | BA105: 0.02633250519 | BB105: 0.02340868043 | BC105: 0.005716399761 | BD105: 806.7460681 | BE105: 911.4 | BF105: 11994.42841 | BG105: 118.960485 | BH105: 0 | BI105: 0.04774042454 | BJ105: 806.6492698 | BK105: 911.4 | BL105: 11994.42841 | BM105: 118.960485 | BN105: 0 | BO105: 0.04774042454 | BP105: 7.701237453 | BQ105: 55.74971475 | BR105: 4.404686956 | BS105: 118.960485 | BT105: 0.0008362304578 | BU105: 0 | BV105: 0.01073059361 | BW105: 11516.16073 | BX105: 647.1350451 | BZ105: 0.01073059361
V106: Mittelwert | X106: 10716 | AJ106: 97 | AK106: 97995.61003 | AL106: 9.7 | AM106: 0.0006680956192 | AN106: 0.0003908660534 | AO106: 9.544949024e-05 | AP106: 3.274801166e-07 | AQ106: 312.8416157 | AR106: 1.073336364 | AS106: -1514.555863 | AT106: -0.2065566701 | AU106: -0.7361221989 | AV106: 9.595207806e-05 | AW106: 20.74166667 | AX106: 1.205580958 | AY106: 0.0007921757896 | AZ106: 0.003243963102 | BA106: 0.02624723073 | BB106: 0.02340617321 | BC106: 0.005715787499 | BD106: 806.7460681 | BE106: 911.4 | BF106: 11994.05292 | BG106: 118.960485 | BH106: 0 | BI106: 0.04825969885 | BJ106: 806.6482169 | BK106: 911.4 | BL106: 11994.05292 | BM106: 118.960485 | BN106: 0 | BO106: 0.04825969885 | BP106: 7.828270678 | BQ106: 56.6693158 | BR106: 4.398072631 | BS106: 118.960485 | BT106: 0.0008501149148 | BU106: 0 | BV106: 0.01084474886 | BW106: 11459.24761 | BX106: 629.7903897 | BZ106: 0.01084474886
AJ107: 98 | AK107: 98010.10767 | AL107: 9.8 | AM107: 0.0006611805008 | AN107: 0.0003868203974 | AO107: 9.446154104e-05 | AP107: 3.274801166e-07 | AQ107: 309.6493544 | AR107: 1.073495155 | AS107: -1499.101212 | AT107: -0.2065566701 | AU107: -0.7377725845 | AV107: 9.49538143e-05 | AW107: 20.71 | AX107: 1.211744487 | AY107: 0.0007880847122 | AZ107: 0.003227210123 | BA107: 0.02616310705 | BB107: 0.02340369918 | BC107: 0.00571518334 | BD107: 806.7460681 | BE107: 911.4 | BF107: 11993.67336 | BG107: 118.960485 | BH107: 0 | BI107: 0.04878403807 | BJ107: 806.6471537 | BK107: 911.4 | BL107: 11993.67336 | BM107: 118.960485 | BN107: 0 | BO107: 0.04878403807 | BP107: 7.814043648 | BQ107: 56.56632548 | BR107: 4.391470338 | BS107: 118.960485 | BT107: 0.0008485683323 | BU107: 0 | BV107: 0.01095890411 | BW107: 11384.99694 | BX107: 610.4901626 | BZ107: 0.01095890411
AJ108: 99 | AK108: 98024.45602 | AL108: 9.9 | AM108: 0.000654406107 | AN108: 0.0003828570717 | AO108: 9.34936969e-05 | AP108: 3.274801166e-07 | AQ108: 306.5215831 | AR108: 1.073652311 | AS108: -1483.958775 | AT108: -0.2065566701 | AU108: -0.7394062147 | AV108: 9.397596918e-05 | AW108: 20.67833333 | AX108: 1.217876187 | AY108: 0.0007840561743 | AZ108: 0.003210713245 | BA108: 0.02608010704 | BB108: 0.02340125751 | BC108: 0.005714587084 | BD108: 806.7460681 | BE108: 911.4 | BF108: 11993.28967 | BG108: 118.960485 | BH108: 0 | BI108: 0.04931348093 | BJ108: 806.6460802 | BK108: 911.4 | BL108: 11993.28967 | BM108: 118.960485 | BN108: 0 | BO108: 0.04931348093 | BP108: 7.799641589 | BQ108: 56.46206812 | BR108: 4.384880228 | BS108: 118.960485 | BT108: 0.0008470026161 | BU108: 0 | BV108: 0.01107305936 | BW108: 11299.22703 | BX108: 588.6386349 | BZ108: 0.01107305936
AJ109: 100 | AK109: 98038.65809 | AL109: 10 | AM109: 0.0006477681954 | AN109: 0.0003789735941 | AO109: 9.254535169e-05 | AP109: 3.274801166e-07 | AQ109: 303.4563673 | AR109: 1.073807865 | AS109: -1469.119187 | AT109: -0.2065566701 | AU109: -0.7410234263 | AV109: 9.301792399e-05 | AW109: 20.64666667 | AX109: 1.223976542 | AY109: 0.0007800885988 | AZ109: 0.003194466007 | BA109: 0.02599820449 | BB109: 0.0233988474 | BC109: 0.005713998535 | BD109: 806.7460681 | BE109: 911.4 | BF109: 11992.90183 | BG109: 118.960485 | BH109: 0 | BI109: 0.04984806662 | BJ109: 806.6449963 | BK109: 911.4 | BL109: 11992.90183 | BM109: 118.960485 | BN109: 0 | BO109: 0.04984806662 | BP109: 7.785062589 | BQ109: 56.35652988 | BR109: 4.37830245 | BS109: 118.960485 | BT109: 0.000845417557 | BU109: 0 | BV109: 0.01118721461 | BW109: 11199.7883 | BX109: 563.8399977 | BZ109: 0.01118721461
AJ110: 101 | AK110: 98052.71682 | AL110: 10.1 | AM110: 0.0006412626919 | AN110: 0.0003751675814 | AO110: 9.161592337e-05 | AP110: 3.274801166e-07 | AQ110: 300.4518488 | AR110: 1.073961849 | AS110: -1454.573453 | AT110: -0.2065566701 | AU110: -0.7426245459 | AV110: 9.207908476e-05 | AW110: 20.615 | AX110: 1.230046027 | AY110: 0.0007761804634 | AZ110: 0.003178462176 | BA110: 0.02591737406 | BB110: 0.02339646808 | BC110: 0.005713417506 | BD110: 806.7460681 | BE110: 911.4 | BF110: 11992.50979 | BG110: 118.960485 | BH110: 0 | BI110: 0.05038783476 | BJ110: 806.6439019 | BK110: 911.4 | BL110: 11992.50979 | BM110: 118.960485 | BN110: 0 | BO110: 0.05038783476 | BP110: 7.770304713 | BQ110: 56.24969674 | BR110: 4.371737157 | BS110: 118.960485 | BT110: 0.0008438129435 | BU110: 0 | BV110: 0.01130136986 | BW110: 11099.50276 | BX110: 535.6245819 | BZ110: 0.01130136986
AJ111: 102 | AK111: 98066.63505 | AL111: 10.2 | AM111: 0.000634885683 | AN111: 0.0003714367437 | AO111: 9.070485281e-05 | AP111: 3.274801166e-07 | AQ111: 297.5062424 | AR111: 1.074114294 | AS111: -1440.312929 | AT111: -0.2065566701 | AU111: -0.7442098906 | AV111: 9.115888099e-05 | AW111: 20.58333333 | AX111: 1.236085105 | AY111: 0.0007723302985 | AZ111: 0.003162695735 | BA111: 0.02583759125 | BB111: 0.02339411882 | BC111: 0.005712843816 | BD111: 806.7460681 | BE111: 911.4 | BF111: 11992.1135 | BG111: 118.960485 | BH111: 0 | BI111: 0.05093282541 | BJ111: 806.6427968 | BK111: 911.4 | BL111: 11992.1135 | BM111: 118.960485 | BN111: 0 | BO111: 0.05093282541 | BP111: 7.755366006 | BQ111: 56.14155455 | BR111: 4.365184502 | BS111: 118.960485 | BT111: 0.0008421885618 | BU111: 0 | BV111: 0.01141552511 | BW111: 10966.81477 | BX111: 503.9632901 | BZ111: 0.01141552511
AJ112: 103 | AK112: 98080.41555 | AL112: 10.3 | AM112: 0.0006286334077 | AN112: 0.0003677788808 | AO112: 8.981160269e-05 | AP112: 3.274801166e-07 | AQ112: 294.6178323 | AR112: 1.074265231 | AS112: -1426.329308 | AT112: -0.2065566701 | AU112: -0.7457797684 | AV112: 9.025676455e-05 | AW112: 20.55166667 | AX112: 1.242094227 | AY112: 0.0007685366852 | AZ112: 0.003147160873 | BA112: 0.02575883233 | BB112: 0.0233917989 | BC112: 0.005712277292 | BD112: 806.7460681 | BE112: 911.4 | BF112: 11991.71294 | BG112: 118.960485 | BH112: 0 | BI112: 0.05148307906 | BJ112: 806.6416812 | BK112: 911.4 | BL112: 11991.71294 | BM112: 118.960485 | BN112: 0 | BO112: 0.05148307906 | BP112: 7.740244491 | BQ112: 56.03208901 | BR112: 4.358644641 | BS112: 118.960485 | BT112: 0.0008405441959 | BU112: 0 | BV112: 0.01152968037 | BW112: 10810.99344 | BX112: 467.7427535 | BZ112: 0.01152968037
AJ113: 104 | AK113: 98094.06099 | AL113: 10.4 | AM113: 0.0006225022501 | AN113: 0.0003641918772 | AO113: 8.893565641e-05 | AP113: 3.274801166e-07 | AQ113: 291.7849685 | AR113: 1.074414688 | AS113: -1412.614603 | AT113: -0.2065566701 | AU113: -0.747334478 | AV113: 8.937220856e-05 | AW113: 20.52 | AX113: 1.248073833 | AY113: 0.0007647982524 | AZ113: 0.003131851975 | BA113: 0.02568107436 | BB113: 0.02338950763 | BC113: 0.005711717764 | BD113: 806.7460681 | BE113: 911.4 | BF113: 11991.30805 | BG113: 118.960485 | BH113: 0 | BI113: 0.05203863662 | BJ113: 806.6405547 | BK113: 911.4 | BL113: 11991.30805 | BM113: 118.960485 | BN113: 0 | BO113: 0.05203863662 | BP113: 7.72493817 | BQ113: 55.92128564 | BR113: 4.352117732 | BS113: 118.960485 | BT113: 0.0008388796274 | BU113: 0 | BV113: 0.01164383562 | BW113: 10626.98528 | BX113: 426.1680955 | BZ113: 0.01164383562
AJ114: 105 | AK114: 98107.57398 | AL114: 10.5 | AM114: 0.0006164887325 | AN114: 0.0003606736984 | AO114: 8.807651714e-05 | AP114: 3.274801166e-07 | AQ114: 289.0060641 | AR114: 1.074562694 | AS114: -1399.161131 | AT114: -0.2065566701 | AU114: -0.7488743098 | AV114: 8.850470639e-05 | AW114: 20.48833333 | AX114: 1.254024352 | AY114: 0.0007611136753 | AZ114: 0.003116763617 | BA114: 0.0256042951 | BB114: 0.02338724434 | BC114: 0.005711165069 | BD114: 806.7460681 | BE114: 911.4 | BF114: 11990.8988 | BG114: 118.960485 | BH114: 0 | BI114: 0.05259953944 | BJ114: 806.6394174 | BK114: 911.4 | BL114: 11990.8988 | BM114: 118.960485 | BN114: 0 | BO114: 0.05259953944 | BP114: 7.845730333 | BQ114: 56.79570727 | BR114: 4.345488099 | BS114: 118.960485 | BT114: 0.0008520823391 | BU114: 0 | BV114: 0.01175799087 | BW114: 10408.30895 | BX114: 416 | BZ114: 0.01175799087
AJ115: 106 | AK115: 98120.95705 | AL115: 10.6 | AM115: 0.0006105895093 | AN115: 0.0003572223868 | AO115: 8.723370686e-05 | AP115: 3.274801166e-07 | AQ115: 286.2795918 | AR115: 1.074709278 | AS115: -1385.961498 | AT115: -0.2065566701 | AU115: -0.7503995458 | AV115: 8.765377069e-05 | AW115: 20.45666667 | AX115: 1.259946203 | AY115: 0.0007574816732 | AZ115: 0.003101890553 | BA115: 0.02552847305 | BB115: 0.02338500839 | BC115: 0.00571061905 | BD115: 806.7460681 | BE115: 911.4 | BF115: 11990.48514 | BG115: 118.960485 | BH115: 0 | BI115: 0.05316582929 | BJ115: 806.6382692 | BK115: 911.4 | BL115: 11990.48514 | BM115: 118.960485 | BN115: 0 | BO115: 0.05316582929 | BP115: 7.831987652 | BQ115: 56.69622319 | BR115: 4.338870087 | BS115: 118.960485 | BT115: 0.0008505886841 | BU115: 0 | BV115: 0.01187214612 | BW115: 10146.52113 | BX115: 360.5888435 | BZ115: 0.01187214612
AJ116: 107 | AK116: 98134.21265 | AL116: 10.7 | AM116: 0.0006048013599 | AN116: 0.0003538360585 | AO116: 8.640676549e-05 | AP116: 3.274801166e-07 | AQ116: 283.6040816 | AR116: 1.074854465 | AS116: -1373.008586 | AT116: -0.2065566701 | AU116: -0.7519104601 | AV116: 8.681893248e-05 | AW116: 20.425 | AX116: 1.265839795 | AY116: 0.0007539010075 | AZ116: 0.003087227713 | BA116: 0.02545358735 | BB116: 0.02338279916 | BC116: 0.005710079554 | BD116: 806.7460681 | BE116: 911.4 | BF116: 11990.06704 | BG116: 118.960485 | BH116: 0 | BI116: 0.05373754837 | BJ116: 806.63711 | BK116: 911.4 | BL116: 11990.06704 | BM116: 118.960485 | BN116: 0 | BO116: 0.05373754837 | BP116: 7.818078112 | BQ116: 56.59553121 | BR116: 4.332263838 | BS116: 118.960485 | BT116: 0.0008490767882 | BU116: 0 | BV116: 0.01198630137 | BW116: 9830.414475 | BX116: 360.5325139 | BZ116: 0.01198630137
AJ117: 108 | AK117: 98147.34318 | AL117: 10.8 | AM117: 0.0005991211838 | AN117: 0.0003505128995 | AO117: 8.559525006e-05 | AP117: 3.274801166e-07 | AQ117: 280.9781178 | AR117: 1.074998282 | AS117: -1360.295544 | AT117: -0.2065566701 | AU117: -0.7534073192 | AV117: 8.59997403e-05 | AW117: 20.39333333 | AX117: 1.271705527 | AY117: 0.0007503704804 | AZ117: 0.00307277019 | BA117: 0.0253796178 | BB117: 0.02338061603 | BC117: 0.005709546436 | BD117: 806.7460681 | BE117: 911.4 | BF117: 11989.64444 | BG117: 118.960485 | BH117: 0 | BI117: 0.05431473929 | BJ117: 806.6359397 | BK117: 911.4 | BL117: 11989.64444 | BM117: 118.960485 | BN117: 0 | BO117: 0.05431473929 | BP117: 7.80399989 | BQ117: 56.49361812 | BR117: 4.325669496 | BS117: 118.960485 | BT117: 0.0008475464522 | BU117: 0 | BV117: 0.01210045662 | BW117: 9390.69932 | BX117: 360.4754633 | BZ117: 0.01210045662
AJ118: 109 | AK118: 98160.35095 | AL118: 10.9 | AM118: 0.0005935459947 | AN118: 0.0003472511625 | AO118: 8.479873389e-05 | AP118: 3.274801166e-07 | AQ118: 278.400337 | AR118: 1.075140755 | AS118: -1347.815768 | AT118: -0.2065566701 | AU118: -0.7548903821 | AV118: 8.519575939e-05 | AW118: 20.36166667 | AX118: 1.277543791 | AY118: 0.0007468889325 | AZ118: 0.003058513237 | BA118: 0.0253065448 | BB118: 0.02337845844 | BC118: 0.005709019551 | BD118: 806.7460681 | BE118: 911.4 | BF118: 11989.21731 | BG118: 118.960485 | BH118: 0 | BI118: 0.0548974451 | BJ118: 806.6347582 | BK118: 911.4 | BL118: 11989.21731 | BM118: 118.960485 | BN118: 0 | BO118: 0.0548974451 | BP118: 7.789751144 | BQ118: 56.39047061 | BR118: 4.319087206 | BS118: 118.960485 | BT118: 0.0008459974746 | BU118: 0 | BV118: 0.01221461187 | BW118: 8900.955656 | BX118: 360.4174054 | BZ118: 0.01221461187
AJ119: 110 | AK119: 98173.23824 | AL119: 11 | AM119: 0.0005880729151 | AN119: 0.0003440491642 | AO119: 8.401680591e-05 | AP119: 3.274801166e-07 | AQ119: 275.8694248 | AR119: 1.075281908 | AS119: -1335.562898 | AT119: -0.2065566701 | AU119: -0.756359901 | AV119: 8.440657095e-05 | AW119: 20.33 | AX119: 1.283354966 | AY119: 0.0007434552418 | AZ119: 0.00304445226 | BA119: 0.02523434938 | BB119: 0.02337632581 | BC119: 0.005708498763 | BD119: 806.7460681 | BE119: 911.4 | BF119: 11988.78561 | BG119: 118.960485 | BH119: 0 | BI119: 0.05548570923 | BJ119: 806.6335654 | BK119: 911.4 | BL119: 11988.78561 | BM119: 118.960485 | BN119: 0 | BO119: 0.05548570923 | BP119: 7.775330013 | BQ119: 56.28607518 | BR119: 4.312517115 | BS119: 118.960485 | BT119: 0.0008444296521 | BU119: 0 | BV119: 0.01232876712 | BW119: 8196.524058 | BX119: 360.3582243 | BZ119: 0.01232876712
AJ120: 111 | AK120: 98186.00722 | AL120: 11.1 | AM120: 0.0005826991716 | AN120: 0.0003409052821 | AO120: 8.324906988e-05 | AP120: 3.274801166e-07 | AQ120: 273.3841147 | AR120: 1.075421766 | AS120: -1323.5308 | AT120: -0.2065566701 | AU120: -0.7578161208 | AV120: 8.363177136e-05 | AW120: 20.29833333 | AX120: 1.289139425 | AY120: 0.0007400683221 | AZ120: 0.003030582809 | BA120: 0.0251630131 | BB120: 0.0233742176 | BC120: 0.005707983938 | BD120: 806.7460681 | BE120: 911.4 | BF120: 11988.34928 | BG120: 118.960485 | BH120: 0 | BI120: 0.05607957558 | BJ120: 806.6323613 | BK120: 911.4 | BL120: 11988.34928 | BM120: 118.960485 | BN120: 0 | BO120: 0.05607957558 | BP120: 7.760734616 | BQ120: 56.18041824 | BR120: 4.30595937 | BS120: 118.960485 | BT120: 0.0008428427789 | BU120: 0 | BV120: 0.01244292237 | BW120: 7257.422159 | BX120: 360.2974221 | BZ120: 0.01244292237
AJ121: 112 | AK121: 98198.66005 | AL121: 11.2 | AM121: 0.0005774220905 | AN121: 0.0003378179517 | AO121: 8.249514381e-05 | AP121: 3.274801166e-07 | AQ121: 270.9431851 | AR121: 1.075560351 | AS121: -1311.71356 | AT121: -0.2065566701 | AU121: -0.7592592802 | AV121: 8.287097157e-05 | AW121: 20.26666667 | AX121: 1.294897532 | AY121: 0.000736727121 | AZ121: 0.003016900577 | BA121: 0.02509251811 | BB121: 0.02337213328 | BC121: 0.005707474946 | BD121: 806.7460681 | BE121: 911.4 | BF121: 11987.90829 | BG121: 118.960485 | BH121: 0 | BI121: 0.05667908844 | BJ121: 806.6311457 | BK121: 911.4 | BL121: 11987.90829 | BM121: 118.960485 | BN121: 0 | BO121: 0.05667908844 | BP121: 7.745963053 | BQ121: 56.07348601 | BR121: 4.299414122 | BS121: 118.960485 | BT121: 0.0008412366472 | BU121: 0 | BV121: 0.01255707763 | BW121: 5219.79052 | BX121: 360.234455 | BZ121: 0.01255707763
AJ122: 113 | AK122: 98211.19879 | AL122: 11.3 | AM122: 0.0005722390927 | AN122: 0.0003347856644 | AO122: 8.175465924e-05 | AP122: 3.274801166e-07 | AQ122: 268.5454578 | AR122: 1.075697687 | AS122: -1300.105476 | AT122: -0.2065566701 | AU122: -0.7606896113 | AV122: 8.21237964e-05 | AW122: 20.235 | AX122: 1.300629644 | AY122: 0.0007334306194 | AZ122: 0.00300340139 | BA122: 0.02502284705 | BB122: 0.02337007233 | BC122: 0.005706971663 | BD122: 806.7460681 | BE122: 911.4 | BF122: 11987.46258 | BG122: 118.960485 | BH122: 0 | BI122: 0.05728429252 | BJ122: 806.6299186 | BK122: 911.4 | BL122: 11987.46258 | BM122: 118.960485 | BN122: 0 | BO122: 0.05728429252 | BP122: 7.84583662 | BQ122: 56.7964767 | BR122: 4.292783929 | BS122: 118.960485 | BT122: 0.0008521542485 | BU122: 0 | BV122: 0.01267123288 | BW122: 237.3589478 | BX122: 360.1667749 | BZ122: 0.01267123288
AJ123: 114 | AK123: 98223.62548 | AL123: 11.4 | AM123: 0.0005671476901 | AN123: 0.0003318069644 | AO123: 8.10272607e-05 | AP123: 3.274801166e-07 | AQ123: 266.1897959 | AR123: 1.075833795 | AS123: -1288.701042 | AT123: -0.2065566701 | AU123: -0.7621073402 | AV123: 8.138988395e-05 | AW123: 20.20333333 | AX123: 1.306336106 | AY123: 0.0007301778294 | AZ123: 0.002990081202 | BA123: 0.0249539831 | BB123: 0.02336803427 | BC123: 0.005706473968 | BD123: 806.7460681 | BE123: 911.4 | BF123: 11987.01213 | BG123: 118.960485 | BH123: 0 | BI123: 0.05789523294 | BJ123: 806.6286799 | BK123: 911.4 | BL123: 11987.01213 | BM123: 118.960485 | BN123: 0 | BO123: 0.05789523294 | BP123: 7.832324008 | BQ123: 56.6986581 | BR123: 4.286165162 | BS123: 118.960485 | BT123: 0.0008506857267 | BU123: 0 | BV123: 0.01278538813 | BW123: 237.3065517 | BX123: 360.0875517 | BZ123: 0.01278538813
AJ124: 115 | AK124: 98235.94209 | AL124: 11.5 | AM124: 0.0005621454817 | AN124: 0.0003288804469 | AO124: 8.031260514e-05 | AP124: 3.274801166e-07 | AQ124: 263.875102 | AR124: 1.075968698 | AS124: -1277.494946 | AT124: -0.2065566701 | AU124: -0.7635126871 | AV124: 8.066888498e-05 | AW124: 20.17166667 | AX124: 1.31201726 | AY124: 0.0007269677937 | AZ124: 0.002976936092 | BA124: 0.0248859099 | BB124: 0.0233660186 | BC124: 0.005705981742 | BD124: 806.7460681 | BE124: 911.4 | BF124: 11986.55688 | BG124: 118.960485 | BH124: 0 | BI124: 0.05851195526 | BJ124: 806.6274294 | BK124: 911.4 | BL124: 11986.55688 | BM124: 118.960485 | BN124: 0 | BO124: 0.05851195526 | BP124: 7.81864925 | BQ124: 56.59966571 | BR124: 4.279557959 | BS124: 118.960485 | BT124: 0.000849199479 | BU124: 0 | BV124: 0.01289954338 | BW124: 237.2541672 | BX124: 360.0083459 | BZ124: 0.01289954338
AJ125: 116 | AK125: 98248.15054 | AL125: 11.6 | AM125: 0.0005572301492 | AN125: 0.0003260047559 | AO125: 7.961036138e-05 | AP125: 3.274801166e-07 | AQ125: 261.6003166 | AR125: 1.076102415 | AS125: -1266.482058 | AT125: -0.2065566701 | AU125: -0.7649058663 | AV125: 7.996046244e-05 | AW125: 20.14 | AX125: 1.317673439 | AY125: 0.0007237995838 | AZ125: 0.00296396226 | BA125: 0.02481861159 | BB125: 0.02336402487 | BC125: 0.005705494873 | BD125: 806.7460681 | BE125: 911.4 | BF125: 11986.09678 | BG125: 118.960485 | BH125: 0 | BI125: 0.05913450544 | BJ125: 806.6261671 | BK125: 911.4 | BL125: 11986.09678 | BM125: 118.960485 | BN125: 0 | BO125: 0.05913450544 | BP125: 7.804810579 | BQ125: 56.49948675 | BR125: 4.272962459 | BS125: 118.960485 | BT125: 0.0008476953124 | BU125: 0 | BV125: 0.01301369863 | BW125: 237.2017943 | BX125: 359.9291576 | BZ125: 0.01301369863
AJ126: 117 | AK126: 98260.25269 | AL126: 11.7 | AM126: 0.0005523994541 | AN126: 0.0003231785815 | AO126: 7.892020959e-05 | AP126: 3.274801166e-07 | AQ126: 259.3644165 | AR126: 1.076234969 | AS126: -1255.657425 | AT126: -0.2065566701 | AU126: -0.7662870867 | AV126: 7.926429086e-05 | AW126: 20.10833333 | AX126: 1.323304967 | AY126: 0.0007206722994 | AZ126: 0.002951156017 | BA126: 0.02475207274 | BB126: 0.02336205261 | BC126: 0.005705013248 | BD126: 806.7460681 | BE126: 911.4 | BF126: 11985.6318 | BG126: 118.960485 | BH126: 0 | BI126: 0.05976292986 | BJ126: 806.6248929 | BK126: 911.4 | BL126: 11985.6318 | BM126: 118.960485 | BN126: 0 | BO126: 0.05976292986 | BP126: 7.790806211 | BQ126: 56.3981083 | BR126: 4.266378803 | BS126: 118.960485 | BT126: 0.0008461730319 | BU126: 0 | BV126: 0.01312785388 | BW126: 237.149433 | BX126: 359.8499867 | BZ126: 0.01312785388
AJ127: 118 | AK127: 98272.25037 | AL127: 11.8 | AM127: 0.0005476512339 | AN127: 0.0003204006587 | AO127: 7.824184084e-05 | AP127: 3.274801166e-07 | AQ127: 257.1664129 | AR127: 1.076366379 | AS127: -1245.016261 | AT127: -0.2065566701 | AU127: -0.7676565519 | AV127: 7.858005589e-05 | AW127: =IF(AX127="","",AW128+dt/60) -> 20.07666667 | AX127: =IF(AX126="","",IF((AX126)>=$AY$3,"",AX126+AZ126*dt)) -> 1.328912164 | AY127: =IF(AX127="","",(Ka/(2*ua))*((Pw/(AX127*LN(rw/Rl)))*(1-(PROI/Pw)^2))/((1+(1-(PROI/Pw)^2)*(LN(AX127/rw)/LN(rw/Rl)))^0.5)) -> 0.0007175850671 | AZ127: =IF(AX127="","",AY127/n/Sa) -> 0.002938513788 | BA127: =10^-0.42*(Da*10000)^0.38*(AZ127*100)^0.62*(d_50*100)^0.44 -> 0.02468627836 | BB127: 0.0233601014 | BC127: 0.005704536762 | BD127: 806.7460681 | BE127: 911.4 | BF127: 11985.16187 | BG127: 118.960485 | BH127: 0 | BI127: 0.06039727532 | BJ127: 806.6236068 | BK127: 911.4 | BL127: 11985.16187 | BM127: 118.960485 | BN127: 0 | BO127: 0.06039727532 | BP127: 7.776634345 | BQ127: 56.29551732 | BR127: 4.259807134 | BS127: 118.960485 | BT127: 0.0008446324404 | BU127: 0 | BV127: 0.01324200913 | BW127: 237.0970831 | BX127: 359.7708332 | BZ127: 0.01324200913
AJ128: 119 | AK128: 98284.14536 | AL128: 11.9 | AM128: 0.0005429833994 | AN128: 0.000317669765 | AO128: 7.757495662e-05 | AP128: 3.274801166e-07 | AQ128: 255.0053507 | AR128: 1.076496663 | AS128: -1234.553939 | AT128: -0.2065566701 | AU128: -0.7690144604 | AV128: 7.790745386e-05 | AW128: 20.045 | AX128: 1.33449534 | AY128: 0.0007145370393 | AZ128: 0.002926032102 | BA128: 0.02462121389 | BB128: 0.0233581708 | BC128: 0.00570406531 | BD128: 806.7460681 | BE128: 911.4 | BF128: 11984.68697 | BG128: 118.960485 | BH128: 0 | BI128: 0.06103758904 | BJ128: 806.6223085 | BK128: 911.4 | BL128: 11984.68697 | BM128: 118.960485 | BN128: 0 | BO128: 0.06103758904 | BP128: 7.762293158 | BQ128: 56.19170062 | BR128: 4.253247595 | BS128: 118.960485 | BT128: 0.0008430733387 | BU128: 0 | BV128: 0.01335616438 | BW128: 237.0447449 | BX128: 359.6916971 | BZ128: 0.01335616438
AJ129: 120 | AK129: 98295.93939 | AL129: 12 | AM129: 0.0005383939308 | AN129: 0.000314984719 | AO129: 7.691926839e-05 | AP129: 3.274801166e-07 | AQ129: 252.8803061 | AR129: 1.076625842 | AS129: -1224.26599 | AT129: -0.2065566701 | AU129: -0.7703610054 | AV129: 7.724619127e-05 | AW129: 20.01333333 | AX129: 1.340054801 | AY129: 0.0007115273932 | AZ129: 0.002913707589 | BA129: 0.02455686517 | BB129: 0.02335626041 | BC129: 0.005703598791 | BD129: 806.7460681 | BE129: 911.4 | BF129: 11984.20704 | BG129: 118.960485 | BH129: 0 | BI129: 0.06168391866 | BJ129: 806.620998 | BK129: 911.4 | BL129: 11984.20704 | BM129: 118.960485 | BN129: 0 | BO129: 0.06168391866 | BP129: 7.873237754 | BQ129: 56.99483513 | BR129: 4.246593702 | BS129: 118.960485 | BT129: 0.000855200347 | BU129: 0 | BV129: 0.01347031963 | BW129: 236.9924182 | BX129: 359.6125784 | BZ129: 0.01347031963
AJ130: 121 | AK130: 98307.63414 | AL130: 12.1 | AM130: 0.0005338808758 | AN130: 0.0003123443784 | AO130: 7.62744972e-05 | AP130: 3.274801166e-07 | AQ130: 250.7903862 | AR130: 1.076753934 | AS130: -1214.148089 | AT130: -0.2065566701 | AU130: -0.7716963756 | AV130: 7.659598442e-05 | AW130: 19.98166667 | AX130: 1.345590845 | AY130: 0.0007085553303 | AZ130: 0.002901536979 | BA130: 0.02449321843 | BB130: 0.02335436981 | BC130: 0.005703137107 | BD130: 806.7460681 | BE130: 911.4 | BF130: 11983.72203 | BG130: 118.960485 | BH130: 0 | BI130: 0.06233631222 | BJ130: 806.6196752 | BK130: 911.4 | BL130: 11983.72203 | BM130: 118.960485 | BN130: 0 | BO130: 0.06233631222 | BP130: 7.860297363 | BQ130: 56.90115887 | BR130: 4.239950749 | BS130: 118.960485 | BT130: 0.0008537943613 | BU130: 0 | BV130: 0.01358447489 | BW130: 236.9401031 | BX130: 359.5334771 | BZ130: 0.01358447489
AJ131: 122 | AK131: 98319.23127 | AL131: 12.2 | AM131: 0.0005294423459 | AN131: 0.0003097476384 | AO131: 7.564037329e-05 | AP131: 3.274801166e-07 | AQ131: 248.7347273 | AR131: 1.076880956 | AS131: -1204.196055 | AT131: -0.2065566701 | AU131: -0.7730207551 | AV131: 7.595655898e-05 | AW131: 19.95 | AX131: 1.351103766 | AY131: 0.0007056200748 | AZ131: 0.002889517096 | BA131: 0.02443026027 | BB131: 0.02335249862 | BC131: 0.005702680163 | BD131: 806.7460681 | BE131: 911.4 | BF131: 11983.2319 | BG131: 118.960485 | BH131: 0 | BI131: 0.0629948182 | BJ131: 806.61834 | BK131: 911.4 | BL131: 11983.2319 | BM131: 118.960485 | BN131: 0 | BO131: 0.0629948182 | BP131: 7.847203288 | BQ131: 56.80637008 | BR131: 4.233318865 | BS131: 118.960485 | BT131: 0.0008523715747 | BU131: 0 | BV131: 0.01369863014 | BW131: 236.8877995 | BX131: 359.4543933 | BZ131: 0.01369863014
AJ132: 123 | AK132: 98330.73237 | AL132: 12.3 | AM132: 0.0005250765147 | AN132: 0.0003071934303 | AO132: 7.501663567e-05 | AP132: 3.274801166e-07 | AQ132: 246.7124937 | AR132: 1.077006926 | AS132: -1194.405843 | AT132: -0.2065566701 | AU132: -0.7743343231 | AV132: 7.53276496e-05 | AW132: 19.91833333 | AX132: 1.356593848 | AY132: 0.0007027208734 | AZ132: 0.002877644854 | BA132: 0.02436797766 | BB132: 0.02335064646 | BC132: 0.005702227866 | BD132: 806.7460681 | BE132: 911.4 | BF132: 11982.7366 | BG132: 118.960485 | BH132: 0 | BI132: 0.06365948551 | BJ132: 806.6169923 | BK132: 911.4 | BL132: 11982.7366 | BM132: 118.960485 | BN132: 0 | BO132: 0.06365948551 | BP132: 7.833953862 | BQ132: 56.7104567 | BR132: 4.226698183 | BS132: 118.960485 | BT132: 0.000850931805 | BU132: 0 | BV132: 0.01381278539 | BW132: 236.8355074 | BX132: 359.3753268 | BZ132: 0.01381278539
AJ133: 124 | AK133: 98342.13902 | AL133: 12.4 | AM133: 0.0005207816145 | AN133: 0.00030468072 | AO133: 7.440303184e-05 | AP133: 3.274801166e-07 | AQ133: 244.7228768 | AR133: 1.077131862 | AS133: -1184.773538 | AT133: -0.2065566701 | AU133: -0.7756372549 | AV133: 7.470899958e-05 | AW133: 19.88666667 | AX133: 1.362061373 | AY133: 0.0006998569942 | AZ133: 0.002865917257 | BA133: 0.02430635793 | BB133: 0.02334881297 | BC133: 0.005701780127 | BD133: 806.7460681 | BE133: 911.4 | BF133: 11982.23607 | BG133: 118.960485 | BH133: 0 | BI133: 0.06433036345 | BJ133: 806.615632 | BK133: 911.4 | BL133: 11982.23607 | BM133: 118.960485 | BN133: 0 | BO133: 0.06433036345 | BP133: 7.8205474 | BQ133: 56.61340653 | BR133: 4.220088838 | BS133: 118.960485 | BT133: 0.0008494748681 | BU133: 0 | BV133: 0.01392694064 | BW133: 236.7832269 | BX133: 359.2962777 | BZ133: 0.01392694064
AJ134: 125 | AK134: 98353.45274 | AL134: 12.5 | AM134: 0.0005165559347 | AN134: 0.0003022085069 | AO134: 7.379931738e-05 | AP134: 3.274801166e-07 | AQ134: 242.7650938 | AR134: 1.07725578 | AS134: -1175.29535 | AT134: -0.2065566701 | AU134: -0.7769297212 | AV134: 7.410036047e-05 | AW134: 19.855 | AX134: 1.367506616 | AY134: 0.0006970277258 | AZ134: 0.002854331391 | BA134: 0.02424538873 | BB134: 0.02334699778 | BC134: 0.005701336857 | BD134: 806.7460681 | BE134: 911.4 | BF134: 11981.73028 | BG134: 118.960485 | BH134: 0 | BI134: 0.06500750176 | BJ134: 806.6142591 | BK134: 911.4 | BL134: 11981.73028 | BM134: 118.960485 | BN134: 0 | BO134: 0.06500750176 | BP134: 7.8069822 | BQ134: 56.51520724 | BR134: 4.213490962 | BS134: 118.960485 | BT134: 0.0008480005778 | BU134: 0 | BV134: 0.01404109589 | BW134: 236.7309579 | BX134: 359.217246 | BZ134: 0.01404109589
AJ135: 126 | AK135: 98364.67502 | AL135: 12.6 | AM135: 0.000512397819 | AN135: 0.0002997758218 | AO135: 7.320525568e-05 | AP135: 3.274801166e-07 | AQ135: 240.8383867 | AR135: 1.077378697 | AS135: -1165.967609 | AT135: -0.2065566701 | AU135: -0.7782118889 | AV135: 7.350149179e-05 | AW135: 19.82333333 | AX135: 1.372929846 | AY135: 0.0006942323767 | AZ135: 0.002842884425 | BA135: 0.02418505804 | BB135: 0.02334520054 | BC135: 0.005700897973 | BD135: 806.7460681 | BE135: 911.4 | BF135: 11981.21917 | BG135: 118.960485 | BH135: 0 | BI135: 0.06569095062 | BJ135: 806.6128733 | BK135: 911.4 | BL135: 11981.21917 | BM135: 118.960485 | BN135: 0 | BO135: 0.06569095062 | BP135: 7.793256545 | BQ135: 56.41584641 | BR135: 4.206904695 | BS135: 118.960485 | BT135: 0.0008465087463 | BU135: 0 | BV135: 0.01415525114 | BW135: 236.6787005 | BX135: 359.1382316 | BZ135: 0.01415525114
AJ136: 127 | AK136: 98375.80732 | AL136: 12.7 | AM136: 0.0005083056636 | AN136: 0.0002973817264 | AO136: 7.262061759e-05 | AP136: 3.274801166e-07 | AQ136: 238.9420215 | AR136: 1.077500628 | AS136: -1156.786762 | AT136: -0.2065566701 | AU136: -0.7794839207 | AV136: 7.291216069e-05 | AW136: 19.79166667 | AX136: 1.378331326 | AY136: 0.0006914702747 | AZ136: 0.002831573606 | BA136: 0.02412535418 | BB136: 0.02334342093 | BC136: 0.005700463391 | BD136: 806.7460681 | BE136: 911.4 | BF136: 11980.7027 | BG136: 118.960485 | BH136: 0 | BI136: 0.0663807606 | BJ136: 806.6114746 | BK136: 911.4 | BL136: 11980.7027 | BM136: 118.960485 | BN136: 0 | BO136: 0.0663807606 | BP136: 7.779368695 | BQ136: 56.31531144 | BR136: 4.200330172 | BS136: 118.960485 | BT136: 0.0008449991836 | BU136: 0 | BV136: 0.01426940639 | BW136: 236.6264546 | BX136: 359.0592347 | BZ136: 0.01426940639
AJ137: 128 | AK137: 98386.85107 | AL137: 12.8 | AM137: 0.000504277915 | AN137: 0.0002950253119 | AO137: 7.204518117e-05 | AP137: 3.274801166e-07 | AQ137: 237.0752869 | AR137: 1.077621589 | AS137: -1147.749365 | AT137: -0.2065566701 | AU137: -0.7807459758 | AV137: 7.233214164e-05 | AW137: 19.76 | AX137: 1.383711316 | AY137: 0.0006887407661 | AZ137: 0.002820396257 | BA137: 0.02406626574 | BB137: 0.0233416586 | BC137: 0.005700033031 | BD137: 806.7460681 | BE137: 911.4 | BF137: 11980.1808 | BG137: 118.960485 | BH137: 0 | BI137: 0.06707698273 | BJ137: 806.610063 | BK137: 911.4 | BL137: 11980.1808 | BM137: 118.960485 | BN137: 0 | BO137: 0.06707698273 | BP137: 7.885840663 | BQ137: 57.08606833 | BR137: 4.193665096 | BS137: 118.960485 | BT137: 0.0008566376225 | BU137: 0 | BV137: 0.01438356164 | BW137: 236.5742203 | BX137: 358.9802551 | BZ137: 0.01438356164
AJ138: 129 | AK138: =(Pw^2+(PROI^2-Pw^2)*(LN(AL138/rw))/(LN(Rl/rw)))^0.5 -> 98397.80764 | AL138: 12.9 | AM138: =ta^0.5*AN138 -> 0.0005003130679 | AN138: =AO138/n/Sa -> 0.0002927056976 | AO138: 7.147873136e-05 | AP138: =Ka/(2*$S$11) -> 3.274801166e-07 | AQ138: 235.237494 | AR138: 1.077741595 | AS138: =Pw/(AL138*LN(rw/Rl)) -> -1138.852083 | AT138: =1-(PROI/Pw)^2 -> -0.2065566701 | AU138: =LN(AL138/rw)/LN(rw/Rl) -> -0.7819982093 | AV138: 7.176121616e-05 | AW138: 19.72833333 | AX138: 1.389070069 | AY138: 0.000686043215 | AZ138: 0.002809349775 | BA138: 0.02400778162 | BB138: 0.02333991325 | BC138: 0.005699606815 | BD138: 806.7460681 | BE138: 911.4 | BF138: 11979.65344 | BG138: 118.960485 | BH138: 0 | BI138: 0.06777966845 | BJ138: 806.6086382 | BK138: 911.4 | BL138: 11979.65344 | BM138: 118.960485 | BN138: 0 | BO138: 0.06777966845 | BP138: 7.87328001 | BQ138: 56.99514102 | BR138: 4.187010637 | BS138: 118.960485 | BT138: 0.0008552731318 | BU138: 0 | BV138: 0.01449771689 | BW138: 236.5219974 | BX138: 358.9012929 | BZ138: 0.01449771689
AJ139: 130 | AK139: 98408.67841 | AL139: 13 | AM139: 0.0004964096636 | AN139: 0.0002904220302 | AO139: =AP139*AQ139/AR139 -> 7.092105977e-05 | AP139: 3.274801166e-07 | AQ139: =AS139*AT139 -> 233.4279748 | AR139: =(1+AT139*AU139)^0.5 -> 1.077860662 | AS139: -1130.091683 | AT139: -0.2065566701 | AU139: -0.7832407729 | AV139: =(Ka/ua)*(AK139-AK138)/(AL139-AL138) -> 7.119917256e-05 | AW139: 19.69666667 | AX139: 1.394407833 | AY139: 0.0006833770027 | AZ139: 0.002798431624 | BA139: 0.02394989101 | BB139: 0.02333818455 | BC139: 0.005699184666 | BD139: =Ct -> 806.7460681 | BE139: 911.4 | BF139: 11979.12056 | BG139: 118.960485 | BH139: 0 | BI139: 0.06848886963 | BJ139: 806.6072003 | BK139: 911.4 | BL139: 11979.12056 | BM139: 118.960485 | BN139: 0 | BO139: 0.06848886963 | BP139: 7.860571786 | BQ139: 56.90314544 | BR139: 4.18036692 | BS139: 118.960485 | BT139: 0.0008538925086 | BU139: 0 | BV139: 0.01461187215 | BW139: 236.4697861 | BX139: 358.8223481 | BZ139: 0.01461187215
AJ140: 131 | AK140: 98419.46468 | AL140: 13.1 | AM140: 0.0004925662882 | AN140: 0.0002881734823 | AO140: 7.037196438e-05 | AP140: 3.274801166e-07 | AQ140: 231.6460819 | AR140: 1.077978803 | AS140: -1121.465029 | AT140: -0.2065566701 | AU140: -0.7844738149 | AV140: 7.064580564e-05 | AW140: 19.665 | AX140: 1.399724854 | AY140: 0.0006807415273 | AZ140: 0.002787639342 | BA140: 0.02389258337 | BB140: 0.0233364722 | BC140: 0.005698766512 | BD140: 806.7460681 | BE140: =IF((BD140*pb)/(Kd*pb+Theta_w+H*Theta_a)<=Lw,(BD140*pb)/(Kd*pb+Theta_w+H*Theta_a),Lw) -> 911.4 | BF140: =IF(BF141="","0",(BF141*Theta_a+(BI141+BH141)*dt)/Theta_a) -> 11978.58212 | BG140: =IF(BE140=0,0,Kd*BE140) -> 118.960485 | BH140: =IF(BD140<=Csat,Anteil_Schadstoff*Theta_a*Yaw*(H*BE140-BF140),0) -> 0 | BI140: =IF(BD140>Csat,Anteil_Schadstoff*Theta_a*$BA140*(Ca_sat-BF140),0) -> 0.06920463857 | BJ140: =IF(Csat>=BD140,IF(BD140-(BI140+BH140)*Zeitfaktor/pb>0,BD140-(BI140+BH140)*Zeitfaktor/pb,0),IF(BD140-(BI140+BH140)*Zeitfaktor/pb>Csat,BD140-(BI140+BH140)*Zeitfaktor/pb,Csat)) -> 806.605749 | BK140: =IF((BJ140*pb)/(Kd*pb+Theta_w+H*Theta_a)<=Lw,(BJ140*pb)/(Kd*pb+Theta_w+H*Theta_a),Lw) -> 911.4 | BL140: =IF(BL141="","0",(BL141*Theta_a+(BO141+BN141)*dt)/Theta_a) -> 11978.58212 | BM140: =IF(BK140=0,0,Kd*BK140) -> 118.960485 | BN140: =IF(BJ140<=Csat, Anteil_Schadstoff*Theta_a*Yaw*(H*BK140-BL140),0) -> 0 | BO140: =IF(BJ140>Csat,Anteil_Schadstoff*Theta_a*$BA140*(Ca_sat-BL140),0) -> 0.06920463857 | BP140: 7.8477144 | BQ140: 56.81007005 | BR140: 4.173734071 | BS140: 118.960485 | BT140: 0.0008524955786 | BU140: 0 | BV140: 0.0147260274 | BW140: 236.4175863 | BX140: 358.7434206 | BZ140: =IF(BV140="",#N/A,IF($C$9="LCKW",BV140*100,BV140)) -> 0.0147260274
AJ141: 132 | AK141: 98430.16776 | AL141: 13.2 | AM141: 0.0004887815706 | AN141: 0.0002859592519 | AO141: 6.983124931e-05 | AP141: 3.274801166e-07 | AQ141: 229.8911873 | AR141: 1.078096032 | AS141: -1112.969081 | AT141: -0.2065566701 | AU141: -0.7856974801 | AV141: 7.010091649e-05 | AW141: 19.63333333 | AX141: 1.405021368 | AY141: 0.0006781362028 | AZ141: 0.002776970527 | BA141: 0.02383584843 | BB141: =IF(AX141="","",PI()*(AX141^2-AX140^2)*F) -> 0.02333477592 | BC141: =IF(AX141="","",BB141*Theta_a) -> 0.005698352279 | BD141: 806.7460681 | BE141: 911.4 | BF141: 11978.03805 | BG141: 118.960485 | BH141: 0 | BI141: 0.06992702801 | BJ141: 806.6042842 | BK141: 911.4 | BL141: 11978.03805 | BM141: 118.960485 | BN141: 0 | BO141: 0.06992702801 | BP141: 7.834706241 | BQ141: 56.71590322 | BR141: 4.16711222 | BS141: 118.960485 | BT141: 0.0008510821658 | BU141: 0 | BV141: 0.01484018265 | BW141: 236.3653981 | BX141: 358.6645105 | BZ141: 0.01484018265
AJ142: 133 | AK142: 98440.78891 | AL142: 13.3 | AM142: 0.0004850541812 | AN142: 0.0002837785611 | AO142: 6.929872462e-05 | AP142: 3.274801166e-07 | AQ142: 228.1626822 | AR142: 1.078212365 | AS142: -1104.600893 | AT142: -0.2065566701 | AU142: -0.7869119099 | AV142: 6.95643122e-05 | AW142: 19.60166667 | AX142: 1.410297612 | AY142: 0.0006755604587 | AZ142: 0.002766422845 | BA142: 0.02377967616 | BB142: 0.0233330954 | BC142: 0.005697941898 | BD142: 806.7460681 | BE142: 911.4 | BF142: 11977.48831 | BG142: 118.960485 | BH142: 0 | BI142: 0.07065609112 | BJ142: 806.602806 | BK142: 911.4 | BL142: 11977.48831 | BM142: 118.960485 | BN142: 0 | BO142: 0.07065609112 | BP142: 7.821545683 | BQ142: 56.62063316 | BR142: 4.160501495 | BS142: 118.960485 | BT142: 0.0008496520926 | BU142: 0 | BV142: 0.0149543379 | BW142: 236.3132214 | BX142: 358.5856178 | BZ142: 0.0149543379
AJ143: 134 | AK143: 98451.32937 | AL143: 13.4 | AM143: 0.0004813828303 | AN143: 0.0002816306553 | AO143: 6.877420602e-05 | AP143: 3.274801166e-07 | AQ143: 226.4599756 | AR143: 1.078327813 | AS143: -1096.357603 | AT143: -0.2065566701 | AU143: -0.7881172429 | AV143: 6.903580568e-05 | AW143: 19.57 | AX143: 1.415553816 | AY143: 0.0006730137398 | AZ143: 0.00275599402 | BA143: 0.02372405681 | BB143: 0.02333143038 | BC143: 0.005697535299 | BD143: 806.7460681 | BE143: 911.4 | BF143: 11976.93284 | BG143: 118.960485 | BH143: 0 | BI143: 0.07139188151 | BJ143: 806.6013141 | BK143: 911.4 | BL143: 11976.93284 | BM143: 118.960485 | BN143: 0 | BO143: 0.07139188151 | BP143: 7.808231086 | BQ143: 56.524248 | BR143: 4.153902028 | BS143: 118.960485 | BT143: 0.0008482051795 | BU143: 0 | BV143: 0.01506849315 | BW143: 236.2610561 | BX143: 358.5067424 | BZ143: 0.01506849315
AJ144: 135 | AK144: 98461.79034 | AL144: 13.5 | AM144: 0.0004777662663 | AN144: 0.0002795148024 | AO144: 6.825751474e-05 | AP144: 3.274801166e-07 | AQ144: 224.7824943 | AR144: 1.078442391 | AS144: -1088.236435 | AT144: -0.2065566701 | AU144: -0.7893136141 | AV144: 6.851521541e-05 | AW144: 19.53833333 | AX144: 1.420790204 | AY144: 0.000670495505 | AZ144: 0.002745681839 | BA144: 0.02366898085 | BB144: 0.02332978058 | BC144: 0.005697132418 | BD144: 806.7460681 | BE144: 911.4 | BF144: 11976.3716 | BG144: 118.960485 | BH144: 0 | BI144: 0.07213445322 | BJ144: 806.5998085 | BK144: 911.4 | BL144: 11976.3716 | BM144: 118.960485 | BN144: 0 | BO144: 0.07213445322 | BP144: 7.794760789 | BQ144: 56.42673572 | BR144: 4.147313951 | BS144: 118.960485 | BT144: 0.000846741245 | BU144: 0 | BV144: 0.0151826484 | BW144: 236.2089024 | BX144: 358.4278843 | BZ144: 0.0151826484
AJ145: 136 | AK145: 98472.17301 | AL145: 13.6 | AM145: 0.000474203275 | AN145: 0.0002774302918 | AO145: 6.774847726e-05 | AP145: 3.274801166e-07 | AQ145: 223.1296818 | AR145: 1.078556112 | AS145: -1080.234697 | AT145: -0.2065566701 | AU145: -0.790501156 | AV145: 6.800236527e-05 | AW145: 19.50666667 | AX145: 1.426007 | AY145: 0.0006680052274 | AZ145: 0.002735484142 | BA145: 0.02361443898 | BB145: 0.02332814573 | BC145: 0.005696733188 | BD145: 806.7460681 | BE145: 911.4 | BF145: 11975.80453 | BG145: 118.960485 | BH145: 0 | BI145: 0.07288386073 | BJ145: 806.598289 | BK145: 911.4 | BL145: 11975.80453 | BM145: 118.960485 | BN145: 0 | BO145: 0.07288386073 | BP145: 7.89719185 | BQ145: 57.16824025 | BR145: 4.140638756 | BS145: 118.960485 | BT145: 0.0008579382739 | BU145: 0 | BV145: 0.01529680365 | BW145: 236.1567603 | BX145: 358.3490436 | BZ145: 0.01529680365
AJ146: 137 | AK146: 98482.47854 | AL146: 13.7 | AM146: 0.0004706926772 | AN146: 0.0002753764339 | AO146: 6.724692515e-05 | AP146: 3.274801166e-07 | AQ146: 221.500998 | AR146: 1.078668987 | AS146: -1072.349772 | AT146: -0.2065566701 | AU146: -0.7916799978 | AV146: 6.749708431e-05 | AW146: 19.475 | AX146: 1.43120442 | AY146: 0.0006655423938 | AZ146: 0.002725398828 | BA146: 0.02356042214 | BB146: 0.02332652558 | BC146: 0.005696337546 | BD146: 806.7460681 | BE146: 911.4 | BF146: 11975.23157 | BG146: 118.960485 | BH146: 0 | BI146: 0.07364015896 | BJ146: 806.5967555 | BK146: 911.4 | BL146: 11975.23157 | BM146: 118.960485 | BN146: 0 | BO146: 0.07364015896 | BP146: 7.884982584 | BQ146: 57.07985665 | BR146: 4.133973878 | BS146: 118.960485 | BT146: 0.0008566121801 | BU146: 0 | BV146: 0.0154109589 | BW146: 236.1046296 | BX146: 358.2702203 | BZ146: 0.0154109589
AJ147: 138 | AK147: 98492.70805 | AL147: 13.8 | AM147: 0.0004672333286 | AN147: 0.000273352559 | AO147: 6.67526949e-05 | AP147: 3.274801166e-07 | AQ147: 219.8959183 | AR147: 1.07878103 | AS147: -1064.579121 | AT147: -0.2065566701 | AU147: -0.7928502662 | AV147: 6.699920656e-05 | AW147: 19.44333333 | AX147: 1.436382677 | AY147: 0.0006631065037 | AZ147: 0.002715423848 | BA147: 0.02350692148 | BB147: 0.02332491987 | BC147: 0.005695945431 | BD147: 806.7460681 | BE147: 911.4 | BF147: 11974.65267 | BG147: 118.960485 | BH147: 0 | BI147: 0.07440340329 | BJ147: 806.595208 | BK147: 911.4 | BL147: 11974.65267 | BM147: 118.960485 | BN147: 0 | BO147: 0.07440340329 | BP147: 7.872631346 | BQ147: 56.9904453 | BR147: 4.127319439 | BS147: 118.960485 | BT147: 0.0008552705655 | BU147: 0 | BV147: 0.01552511416 | BW147: 236.0525104 | BX147: 358.1914142 | BZ147: 0.01552511416
AJ148: 139 | AK148: 98502.86264 | AL148: 13.9 | AM148: 0.0004638241175 | AN148: 0.0002713580168 | AO148: 6.62656277e-05 | AP148: 3.274801166e-07 | AQ148: 218.3139333 | AR148: 1.078892252 | AS148: -1056.920279 | AT148: -0.2065566701 | AU148: -0.7940120849 | AV148: 6.650857087e-05 | AW148: 19.41166667 | AX148: 1.441541983 | AY148: 0.0006606970696 | AZ148: 0.002705557205 | BA148: 0.02345392837 | BB148: 0.02332332835 | BC148: 0.005695556783 | BD148: 806.7460681 | BE148: 911.4 | BF148: 11974.06778 | BG148: 118.960485 | BH148: 0 | BI148: 0.07517364953 | BJ148: 806.5936462 | BK148: 911.4 | BL148: 11974.06778 | BM148: 118.960485 | BN148: 0 | BO148: 0.07517364953 | BP148: 7.86013661 | BQ148: 56.89999517 | BR148: 4.12067556 | BS148: 118.960485 | BT148: 0.0008539132634 | BU148: 0 | BV148: 0.01563926941 | BW148: 236.0004027 | BX148: 358.1126256 | BZ148: 0.01563926941
AJ149: 140 | AK149: 98512.94341 | AL149: 14 | AM149: 0.0004604639642 | AN149: 0.0002693921757 | AO149: 6.57855693e-05 | AP149: 3.274801166e-07 | AQ149: 216.7545481 | AR149: 1.079002666 | AS149: -1049.370848 | AT149: -0.2065566701 | AU149: -0.7951655751 | AV149: 6.602502074e-05 | AW149: 19.38 | AX149: 1.446682541 | AY149: 0.0006583136162 | AZ149: 0.002695796954 | BA149: 0.02340143437 | BB149: 0.02332175079 | BC149: 0.005695171543 | BD149: 806.7460681 | BE149: 911.4 | BF149: 11973.47685 | BG149: 118.960485 | BH149: 0 | BI149: 0.07595095394 | BJ149: 806.5920701 | BK149: 911.4 | BL149: 11973.47685 | BM149: 118.960485 | BN149: 0 | BO149: 0.07595095394 | BP149: 7.847496838 | BQ149: 56.80849511 | BR149: 4.114042365 | BS149: 118.960485 | BT149: 0.0008525401056 | BU149: 0 | BV149: 0.01575342466 | BW149: 235.9483066 | BX149: 358.0338542 | BZ149: 0.01575342466
AJ150: 141 | AK150: 98522.95141 | AL150: 14.1 | AM150: 0.00045715182 | AN150: 0.000267454422 | AO150: 6.531236985e-05 | AP150: 3.274801166e-07 | AQ150: 215.2172818 | AR150: 1.079112283 | AS150: -1041.928502 | AT150: -0.2065566701 | AU150: -0.7963108553 | AV150: 6.554840413e-05 | AW150: 19.34833333 | AX150: 1.451804556 | AY150: 0.00065595568 | AZ150: 0.002686141196 | BA150: 0.02334943126 | BB150: 0.02332018695 | BC150: 0.005694789653 | BD150: 806.7460681 | BE150: 911.4 | BF150: 11972.87981 | BG150: 118.960485 | BH150: 0 | BI150: 0.07673537323 | BJ150: 806.5904797 | BK150: 911.4 | BL150: 11972.87981 | BM150: 118.960485 | BN150: 0 | BO150: 0.07673537323 | BP150: 7.834710474 | BQ150: 56.71593386 | BR150: 4.107419979 | BS150: 118.960485 | BT150: 0.000851150922 | BU150: 0 | BV150: 0.01586757991 | BW150: 235.8962219 | BX150: 357.9551002 | BZ150: 0.01586757991
AJ151: 142 | AK151: 98532.88767 | AL151: 14.2 | AM151: 0.0004538866655 | AN151: 0.0002655441594 | AO151: 6.484588373e-05 | AP151: 3.274801166e-07 | AQ151: 213.7016671 | AR151: 1.079221114 | AS151: -1034.590977 | AT151: -0.2065566701 | AU151: -0.7974480416 | AV151: 6.507857331e-05 | AW151: 19.31666667 | AX151: 1.456908224 | AY151: 0.0006536228091 | AZ151: 0.00267658808 | BA151: 0.023297911 | BB151: 0.0233186366 | BC151: 0.005694411058 | BD151: 806.7460681 | BE151: 911.4 | BF151: 11972.27661 | BG151: 118.960485 | BH151: 0 | BI151: 0.07752696457 | BJ151: 806.5888746 | BK151: 911.4 | BL151: 11972.27661 | BM151: 118.960485 | BN151: 0 | BO151: 0.07752696457 | BP151: 7.821775946 | BQ151: 56.62230005 | BR151: 4.100808527 | BS151: 118.960485 | BT151: 0.0008497455407 | BU151: 0 | BV151: 0.01598173516 | BW151: 235.8441488 | BX151: 357.8763635 | BZ151: 0.01598173516
AJ152: 143 | AK152: 98542.75321 | AL152: 14.3 | AM152: 0.0004506675101 | AN152: 0.0002636608084 | AO152: 6.438596941e-05 | AP152: 3.274801166e-07 | AQ152: 212.2072498 | AR152: 1.07932917 | AS152: -1027.356075 | AT152: -0.2065566701 | AU152: -0.7985772476 | AV152: 6.461538471e-05 | AW152: 19.285 | AX152: 1.461993741 | AY152: 0.0006513145627 | AZ152: 0.002667135801 | BA152: 0.02324686574 | BB152: 0.02331709953 | BC152: 0.005694035704 | BD152: 806.7460681 | BE152: 911.4 | BF152: 11971.66719 | BG152: 118.960485 | BH152: 0 | BI152: 0.07832578556 | BJ152: 806.5872549 | BK152: 911.4 | BL152: 11971.66719 | BM152: 118.960485 | BN152: 0 | BO152: 0.07832578556 | BP152: 7.80869167 | BQ152: 56.52758219 | BR152: 4.094208137 | BS152: 118.960485 | BT152: 0.0008483237885 | BU152: 0 | BV152: 0.01609589041 | BW152: 235.7920871 | BX152: 357.7976441 | BZ152: 0.01609589041
AJ153: 144 | AK153: 98552.54903 | AL153: 14.4 | AM153: 0.0004474933907 | AN153: 0.0002618038055 | AO153: 6.39324893e-05 | AP153: 3.274801166e-07 | AQ153: 210.7335884 | AR153: 1.079436463 | AS153: -1020.221658 | AT153: -0.2065566701 | AU153: -0.7996985845 | AV153: 6.41586988e-05 | AW153: 19.25333333 | AX153: 1.467061299 | AY153: 0.0006490305106 | AZ153: 0.002657782599 | BA153: 0.02319628781 | BB153: 0.0233155755 | BC153: 0.005693663538 | BD153: 806.7460681 | BE153: 911.4 | BF153: 11971.05151 | BG153: 118.960485 | BH153: 0 | BI153: 0.0791318943 | BJ153: 806.5856205 | BK153: 911.4 | BL153: 11971.05151 | BM153: 118.960485 | BN153: 0 | BO153: 0.0791318943 | BP153: 7.894089611 | BQ153: 57.14578295 | BR153: 4.087535106 | BS153: 118.960485 | BT153: 0.0008576601464 | BU153: 0 | BV153: 0.01621004566 | BW153: 235.7400369 | BX153: 357.718942 | BZ153: 0.01621004566
AJ154: 145 | AK154: 98562.27609 | AL154: 14.5 | AM154: 0.0004443633711 | AN154: 0.0002599726029 | AO154: 6.348530963e-05 | AP154: 3.274801166e-07 | AQ154: 209.2802533 | AR154: 1.079543002 | AS154: -1013.185647 | AT154: -0.2065566701 | AU154: -0.8008121612 | AV154: 6.37083799e-05 | AW154: 19.22166667 | AX154: 1.472111086 | AY154: 0.0006467702333 | AZ154: 0.002648526754 | BA154: 0.02314616972 | BB154: 0.02331406432 | BC154: 0.005693294507 | BD154: 806.7460681 | BE154: 911.4 | BF154: 11970.42949 | BG154: 118.960485 | BH154: 0 | BI154: 0.0799453493 | BJ154: 806.5839711 | BK154: 911.4 | BL154: 11970.42949 | BM154: 118.960485 | BN154: 0 | BO154: 0.0799453493 | BP154: 7.882029967 | BQ154: 57.05848248 | BR154: 4.080872265 | BS154: 118.960485 | BT154: 0.0008563503948 | BU154: 0 | BV154: 0.01632420091 | BW154: 235.6879982 | BX154: 357.6402572 | BZ154: 0.01632420091
AJ155: 146 | AK155: 98571.93535 | AL155: 14.6 | AM155: 0.0004412765405 | AN155: 0.0002581666679 | AO155: 6.30443003e-05 | AP155: 3.274801166e-07 | AQ155: 207.8468269 | AR155: 1.079648799 | AS155: -1006.246019 | AT155: -0.2065566701 | AU155: -0.8019180844 | AV155: 6.32642961e-05 | AW155: 19.19 | AX155: 1.477143287 | AY155: 0.0006445333214 | AZ155: 0.00263936659 | BA155: 0.02309650415 | BB155: 0.02331256577 | BC155: 0.005692928561 | BD155: 806.7460681 | BE155: 911.4 | BF155: 11969.80109 | BG155: 118.960485 | BH155: 0 | BI155: 0.08076620957 | BJ155: 806.5823067 | BK155: 911.4 | BL155: 11969.80109 | BM155: 118.960485 | BN155: 0 | BO155: 0.08076620957 | BP155: 7.869831416 | BQ155: 56.97017644 | BR155: 4.074219732 | BS155: 118.960485 | BT155: 0.0008550254573 | BU155: 0 | BV155: 0.01643835616 | BW155: 235.635971 | BX155: 357.5615898 | BZ155: 0.01643835616
AJ156: 147 | AK156: 98581.52774 | AL156: 14.7 | AM156: 0.0004382320134 | AN156: 0.0002563854823 | AO156: 6.260933477e-05 | AP156: 3.274801166e-07 | AQ156: 206.4329029 | AR156: 1.079753863 | AS156: -999.4008078 | AT156: -0.2065566701 | AU156: -0.8030164586 | AV156: 6.282631907e-05 | AW156: 19.15833333 | AX156: 1.482158084 | AY156: 0.000642319375 | AZ156: 0.002630300471 | BA156: 0.02304728394 | BB156: 0.02331107965 | BC156: 0.005692565651 | BD156: 806.7460681 | BE156: 911.4 | BF156: 11969.16624 | BG156: 118.960485 | BH156: 0 | BI156: 0.08159453457 | BJ156: 806.5806272 | BK156: 911.4 | BL156: 11969.16624 | BM156: 118.960485 | BN156: 0 | BO156: 0.08159453457 | BP156: 7.857492473 | BQ156: 56.8808541 | BR156: 4.067577628 | BS156: 118.960485 | BT156: 0.0008536851717 | BU156: 0 | BV156: 0.01655251142 | BW156: 235.5839553 | BX156: 357.4829396 | BZ156: 0.01655251142
AJ157: 148 | AK157: 98591.05416 | AL157: 14.8 | AM157: 0.0004352289279 | AN157: 0.0002546285419 | AO157: 6.218028993e-05 | AP157: 3.274801166e-07 | AQ157: 205.038086 | AR157: 1.079858206 | AS157: -992.6480996 | AT157: -0.2065566701 | AU157: -0.8041073861 | AV157: 6.2394324e-05 | AW157: 19.12666667 | AX157: 1.487155655 | AY157: 0.0006401280041 | AZ157: 0.002621326798 | BA157: 0.0229985021 | BB157: 0.02330960576 | BC157: 0.005692205727 | BD157: 806.7460681 | BE157: 911.4 | BF157: 11968.52489 | BG157: 118.960485 | BH157: 0 | BI157: 0.08243038422 | BJ157: 806.5789325 | BK157: 911.4 | BL157: 11968.52489 | BM157: 118.960485 | BN157: 0 | BO157: 0.08243038422 | BP157: 7.84501164 | BQ157: 56.79050462 | BR157: 4.060946073 | BS157: 118.960485 | BT157: 0.0008523293743 | BU157: 0 | BV157: 0.01666666667 | BW157: 235.5319511 | BX157: 357.4043068 | BZ157: 0.01666666667
AJ158: 149 | AK158: 98600.51553 | AL158: 14.9 | AM158: 0.0004322664456 | AN158: 0.0002528953562 | AO158: 6.175704599e-05 | AP158: 3.274801166e-07 | AQ158: 203.6619915 | AR158: 1.079961835 | AS158: -985.9860319 | AT158: -0.2065566701 | AU158: -0.8051909673 | AV158: 6.196818946e-05 | AW158: 19.095 | AX158: 1.492136175 | AY158: 0.0006379588276 | AZ158: 0.002612444011 | BA158: 0.02295015179 | BB158: 0.02330814392 | BC158: 0.005691848744 | BD158: 806.7460681 | BE158: 911.4 | BF158: 11967.87698 | BG158: 118.960485 | BH158: 0 | BI158: 0.0832738189 | BJ158: 806.5772223 | BK158: 911.4 | BL158: 11967.87698 | BM158: 118.960485 | BN158: 0 | BO158: 0.0832738189 | BP158: 7.832387405 | BQ158: 56.69911703 | BR158: 4.054325188 | BS158: 118.960485 | BT158: 0.0008509578996 | BU158: 0 | BV158: 0.01678082192 | BW158: 235.4799583 | BX158: 357.3256912 | BZ158: 0.01678082192
AJ159: 150 | AK159: 98609.91271 | AL159: 15 | AM159: 0.0004293437504 | AN159: 0.0002511854478 | AO159: 6.133948635e-05 | AP159: 3.274801166e-07 | AQ159: 202.3042449 | AR159: 1.080064761 | AS159: -979.4127916 | AT159: -0.2065566701 | AU159: -0.8062673003 | AV159: 6.154779725e-05 | AW159: 19.06333333 | AX159: 1.497099819 | AY159: 0.0006358114736 | AZ159: 0.002603650588 | BA159: 0.02290222632 | BB159: 0.02330669392 | BC159: 0.005691494655 | BD159: 806.7460681 | BE159: 911.4 | BF159: 11967.22245 | BG159: 118.960485 | BH159: 0 | BI159: 0.0841248995 | BJ159: 806.5754967 | BK159: 911.4 | BL159: 11967.22245 | BM159: 118.960485 | BN159: 0 | BO159: 0.0841248995 | BP159: 7.81961824 | BQ159: 56.60668029 | BR159: 4.047715098 | BS159: 118.960485 | BT159: 0.0008495705807 | BU159: 0 | BV159: 0.01689497717 | BW159: 235.427977 | BX159: 357.2470929 | BZ159: 0.01689497717
AJ160: 151 | AK160: 98619.24657 | AL160: 15.1 | AM160: 0.0004264600481 | AN160: 0.0002494983519 | AO160: 6.092749754e-05 | AP160: 3.274801166e-07 | AQ160: 200.9644816 | AR160: 1.080166994 | AS160: -972.9266142 | AT160: -0.2065566701 | AU160: -0.8073364816 | AV160: 6.113303236e-05 | AW160: 19.03166667 | AX160: 1.502046755 | AY160: 0.0006336855787 | AZ160: 0.00259494504 | BA160: 0.02285471916 | BB160: 0.02330525559 | BC160: 0.005691143415 | BD160: 806.7460681 | BE160: 911.4 | BF160: 11966.56123 | BG160: 118.960485 | BH160: 0 | BI160: 0.08498368735 | BJ160: 806.5737554 | BK160: 911.4 | BL160: 11966.56123 | BM160: 118.960485 | BN160: 0 | BO160: 0.08498368735 | BP160: 7.915421621 | BQ160: 57.30020665 | BR160: 4.041023522 | BS160: 118.960485 | BT160: 0.0008600436321 | BU160: 0 | BV160: 0.01700913242 | BW160: 235.3760072 | BX160: 357.168512 | BZ160: 0.01700913242
AJ161: 152 | AK161: 98628.51794 | AL161: 15.2 | AM161: 0.0004236145651 | AN161: 0.0002478336161 | AO161: 6.052096905e-05 | AP161: 3.274801166e-07 | AQ161: 199.6423469 | AR161: 1.080268543 | AS161: -966.5257812 | AT161: -0.2065566701 | AU161: -0.8083986056 | AV161: 6.072378279e-05 | AW161: 19 | AX161: 1.506977151 | AY161: 0.000631580788 | AZ161: 0.002586325913 | BA161: 0.02280762392 | BB161: 0.02330382875 | BC161: 0.00569079498 | BD161: 806.7460681 | BE161: 911.4 | BF161: 11965.89327 | BG161: 118.960485 | BH161: 0 | BI161: 0.08585024427 | BJ161: 806.5719984 | BK161: 911.4 | BL161: 11965.89327 | BM161: 118.960485 | BN161: 0 | BO161: 0.08585024427 | BP161: 7.903805881 | BQ161: 57.21611961 | BR161: 4.034341759 | BS161: 118.960485 | BT161: 0.0008587823933 | BU161: 0 | BV161: 0.01712328767 | BW161: 235.3240489 | BX161: 357.0899483 | BZ161: 0.01712328767
AJ162: 153 | AK162: 98637.72765 | AL162: 15.3 | AM162: 0.0004208065485 | AN162: 0.0002461907998 | AO162: 6.011979331e-05 | AP162: 3.274801166e-07 | AQ162: 198.337495 | AR162: 1.080369416 | AS162: -960.2086193 | AT162: -0.2065566701 | AU162: -0.8094537647 | AV162: 6.031993953e-05 | AW162: 18.96833333 | AX162: 1.51189117 | AY162: 0.0006294967547 | AZ162: 0.002577791788 | BA162: 0.02276093432 | BB162: 0.02330241322 | BC162: 0.005690449307 | BD162: 806.7460681 | BE162: 911.4 | BF162: 11965.21851 | BG162: 118.960485 | BH162: 0 | BI162: 0.08672463255 | BJ162: 806.5702255 | BK162: 911.4 | BL162: 11965.21851 | BM162: 118.960485 | BN162: 0 | BO162: 0.08672463255 | BP162: 7.892057505 | BQ162: 57.13107242 | BR162: 4.027669921 | BS162: 118.960485 | BT162: 0.0008575066543 | BU162: 0 | BV162: 0.01723744292 | BW162: 235.272102 | BX162: 357.0114019 | BZ162: 0.01723744292
AJ163: 154 | AK163: 98646.87651 | AL163: 15.4 | AM163: 0.0004180352648 | AN163: 0.0002445694739 | AO163: 5.972386553e-05 | AP163: 3.274801166e-07 | AQ163: 197.0495891 | AR163: 1.080469622 | AS163: -953.9734984 | AT163: -0.2065566701 | AU163: -0.8105020498 | AV163: 5.992139638e-05 | AW163: 18.93666667 | AX163: 1.516788974 | AY163: 0.00062743314 | AZ163: 0.002569341278 | BA163: 0.02271464427 | BB163: 0.02330100882 | BC163: 0.005690106354 | BD163: 806.7460681 | BE163: 911.4 | BF163: 11964.53688 | BG163: 118.960485 | BH163: 0 | BI163: 0.08760691497 | BJ163: 806.5684365 | BK163: 911.4 | BL163: 11964.53688 | BM163: 118.960485 | BN163: 0 | BO163: 0.08760691497 | BP163: 7.880175084 | BQ163: 57.04505487 | BR163: 4.021008124 | BS163: 118.960485 | BT163: 0.000856216261 | BU163: 0 | BV163: 0.01735159817 | BW163: 235.2201667 | BX163: 356.9328727 | BZ163: 0.01735159817
AJ164: 155 | AK164: 98655.96531 | AL164: 15.5 | AM164: 0.0004152999995 | AN164: 0.0002429692204 | AO164: 5.933308363e-05 | AP164: 3.274801166e-07 | AQ164: 195.7783015 | AR164: 1.080569171 | AS164: -947.8188306 | AT164: -0.2065566701 | AU164: -0.8115435498 | AV164: 5.952804994e-05 | AW164: 18.905 | AX164: 1.521670723 | AY164: 0.0006253896128 | AZ164: 0.002560973025 | BA164: 0.02266874775 | BB164: 0.0232996154 | BC164: 0.00568976608 | BD164: 806.7460681 | BE164: 911.4 | BF164: 11963.84833 | BG164: 118.960485 | BH164: 0 | BI164: 0.0884971548 | BJ164: 806.5666315 | BK164: 911.4 | BL164: 11963.84833 | BM164: 118.960485 | BN164: 0 | BO164: 0.0884971548 | BP164: 7.868157196 | BQ164: 56.95805667 | BR164: 4.014356482 | BS164: 118.960485 | BT164: 0.0008549110578 | BU164: 0 | BV164: 0.01746575342 | BW164: 235.1682427 | BX164: 356.8543609 | BZ164: 0.01746575342
AJ165: 156 | AK165: 98664.99483 | AL165: 15.6 | AM165: 0.0004126000566 | AN165: 0.0002413896321 | AO165: 5.894734817e-05 | AP165: 3.274801166e-07 | AQ165: 194.5233124 | AR165: 1.08066807 | AS165: -941.7430689 | AT165: -0.2065566701 | AU165: -0.812578352 | AV165: 5.913979944e-05 | AW165: 18.87333333 | AX165: 1.526536572 | AY165: 0.0006233658492 | AZ165: 0.002552685705 | BA165: 0.02262323893 | BB165: 0.02329823278 | BC165: 0.005689428444 | BD165: 806.7460681 | BE165: 911.4 | BF165: 11963.15279 | BG165: 118.960485 | BH165: 0 | BI165: 0.08939541579 | BJ165: 806.5648102 | BK165: 911.4 | BL165: 11963.15279 | BM165: 118.960485 | BN165: 0 | BO165: 0.08939541579 | BP165: 7.856002403 | BQ165: 56.8700674 | BR165: 4.007715111 | BS165: 118.960485 | BT165: 0.0008535908876 | BU165: 0 | BV165: 0.01757990868 | BW165: 235.1163303 | BX165: 356.7758663 | BZ165: 0.01757990868
AJ166: 157 | AK166: 98673.96584 | AL166: 15.7 | AM166: 0.0004099347579 | AN166: 0.0002398303122 | AO166: 5.856656225e-05 | AP166: 3.274801166e-07 | AQ166: 193.2843104 | AR166: 1.080766329 | AS166: -935.7447054 | AT166: -0.2065566701 | AU166: -0.8136065421 | AV166: 5.875654672e-05 | AW166: 18.84166667 | AX166: 1.531386674 | AY166: 0.0006213615331 | AZ166: 0.002544478022 | BA166: 0.02257811204 | BB166: 0.0232968608 | BC166: 0.005689093408 | BD166: 806.7460681 | BE166: 911.4 | BF166: 11962.4502 | BG166: 118.960485 | BH166: 0 | BI166: 0.09030176217 | BJ166: 806.5629725 | BK166: 911.4 | BL166: 11962.4502 | BM166: 118.960485 | BN166: 0 | BO166: 0.09030176217 | BP166: 7.843709255 | BQ166: 56.78107657 | BR166: 4.00108413 | BS166: 118.960485 | BT166: 0.0008522555918 | BU166: 0 | BV166: 0.01769406393 | BW166: 235.0644292 | BX166: 356.6973889 | BZ166: 0.01769406393
AJ167: 158 | AK167: 98682.87909 | AL167: 15.8 | AM167: 0.0004073034423 | AN167: 0.000238290874 | AO167: 5.819063143e-05 | AP167: 3.274801166e-07 | AQ167: 192.0609919 | AR167: 1.080863955 | AS167: -929.8222706 | AT167: -0.2065566701 | AU167: -0.8146282039 | AV167: 5.837819612e-05 | AW167: 18.81 | AX167: 1.536221183 | AY167: 0.0006193763548 | AZ167: 0.002536348709 | BA167: 0.02253336149 | BB167: 0.02329549931 | BC167: 0.005688760932 | BD167: 806.7460681 | BE167: 911.4 | BF167: 11961.74049 | BG167: 118.960485 | BH167: 0 | BI167: 0.0912162587 | BJ167: 806.5611182 | BK167: 911.4 | BL167: 11961.74049 | BM167: 118.960485 | BN167: 0 | BO167: 0.0912162587 | BP167: 7.831276285 | BQ167: 56.69107356 | BR167: 3.994463657 | BS167: 118.960485 | BT167: 0.0008509050102 | BU167: 0 | BV167: 0.01780821918 | BW167: 235.0125397 | BX167: 356.6189289 | BZ167: 0.01780821918
AJ168: 159 | AK168: 98691.7353 | AL168: 15.9 | AM168: 0.0004047054655 | AN168: 0.0002367709405 | AO168: 5.781946366e-05 | AP168: 3.274801166e-07 | AQ168: 190.8530612 | AR168: 1.080960956 | AS168: -923.9743317 | AT168: -0.2065566701 | AU168: -0.8156434198 | AV168: 5.80046544e-05 | AW168: 18.77833333 | AX168: 1.541040245 | AY168: 0.0006174100121 | AZ168: 0.002528296528 | BA168: 0.02248898177 | BB168: 0.02329414816 | BC168: 0.00568843098 | BD168: 806.7460681 | BE168: 911.4 | BF168: 11961.0236 | BG168: 118.960485 | BH168: 0 | BI168: 0.0921389706 | BJ168: 806.5592474 | BK168: 911.4 | BL168: 11961.0236 | BM168: 118.960485 | BN168: 0 | BO168: 0.0921389706 | BP168: 7.923966438 | BQ168: 57.36206308 | BR168: 3.987764344 | BS168: 118.960485 | BT168: 0.0008610379868 | BU168: 0 | BV168: 0.01792237443 | BW168: 234.9606616 | BX168: 356.5404861 | BZ168: 0.01792237443
AJ169: 160 | AK169: 98700.5352 | AL169: 16 | AM169: 0.0004021401993 | AN169: 0.0002352701441 | AO169: 5.745296919e-05 | AP169: 3.274801166e-07 | AQ169: 189.6602295 | AR169: 1.081057341 | AS169: -918.1994922 | AT169: -0.2065566701 | AU169: -0.8166522707 | AV169: 5.763583066e-05 | AW169: 18.74666667 | AX169: 1.545844009 | AY169: 0.0006154622088 | AZ169: 0.002520320265 | BA169: 0.0224449675 | BB169: 0.02329280718 | BC169: 0.005688103514 | BD169: 806.7460681 | BE169: 911.4 | BF169: 11960.29947 | BG169: 118.960485 | BH169: 0 | BI169: 0.0930699636 | BJ169: 806.5573597 | BK169: 911.4 | BL169: 11960.29947 | BM169: 118.960485 | BN169: 0 | BO169: 0.0930699636 | BP169: 7.912636819 | BQ169: 57.28004729 | BR169: 3.981074601 | BS169: 118.960485 | BT169: 0.0008598080125 | BU169: 0 | BV169: 0.01803652968 | BW169: 234.908795 | BX169: 356.4620605 | BZ169: 0.01803652968
AJ170: 161 | AK170: 98709.27949 | AL170: 16.1 | AM170: 0.0003996070312 | AN170: 0.0002337881266 | AO170: 5.709106051e-05 | AP170: 3.274801166e-07 | AQ170: 188.4822157 | AR170: 1.081153116 | AS170: -912.4963897 | AT170: -0.2065566701 | AU170: -0.8176548359 | AV170: 5.727163629e-05 | AW170: 18.715 | AX170: 1.550632617 | AY170: 0.0006135326557 | AZ170: 0.002512418738 | BA170: 0.02240131341 | BB170: 0.02329147624 | BC170: 0.005687778498 | BD170: 806.7460681 | BE170: 911.4 | BF170: 11959.56803 | BG170: 118.960485 | BH170: 0 | BI170: 0.09400930394 | BJ170: 806.5554551 | BK170: 911.4 | BL170: 11959.56803 | BM170: 118.960485 | BN170: 0 | BO170: 0.09400930394 | BP170: 7.901179017 | BQ170: 57.19710358 | BR170: 3.974394537 | BS170: 118.960485 | BT170: 0.0008585640247 | BU170: 0 | BV170: 0.01815068493 | BW170: 234.8569398 | BX170: 356.3836522 | BZ170: 0.01815068493
AJ171: 162 | AK171: 98717.96887 | AL171: 16.2 | AM171: 0.000397105364 | AN171: 0.0002323245385 | AO171: 5.67336523e-05 | AP171: 3.274801166e-07 | AQ171: 187.3187452 | AR171: 1.08124829 | AS171: -906.863696 | AT171: -0.2065566701 | AU171: -0.8186511932 | AV171: 5.691198487e-05 | AW171: 18.68333333 | AX171: 1.555406213 | AY171: 0.0006116210697 | AZ171: 0.002504590785 | BA171: 0.02235801432 | BB171: 0.02329015519 | BC171: 0.005687455898 | BD171: 806.7460681 | BE171: 911.4 | BF171: 11958.82921 | BG171: 118.960485 | BH171: 0 | BI171: 0.09495705837 | BJ171: 806.5535334 | BK171: 911.4 | BL171: 11958.82921 | BM171: 118.960485 | BN171: 0 | BO171: 0.09495705837 | BP171: 7.889591678 | BQ171: 57.11322215 | BR171: 3.967724262 | BS171: 118.960485 | BT171: 0.0008573058753 | BU171: 0 | BV171: 0.01826484018 | BW171: 234.805096 | BX171: 356.3052611 | BZ171: 0.01826484018
AJ172: 163 | AK172: 98726.60402 | AL172: 16.3 | AM172: 0.0003946346149 | AN172: 0.0002308790389 | AO172: 5.63806613e-05 | AP172: 3.274801166e-07 | AQ172: 186.1695505 | AR172: 1.08134287 | AS172: -901.300115 | AT172: -0.2065566701 | AU172: -0.8196414191 | AV172: 5.655679211e-05 | AW172: 18.65166667 | AX172: 1.560164935 | AY172: 0.0006097271737 | AZ172: 0.002496835273 | BA172: 0.02231506519 | BB172: 0.02328884389 | BC172: 0.005687135678 | BD172: 806.7460681 | BE172: 911.4 | BF172: 11958.08296 | BG172: 118.960485 | BH172: 0 | BI172: 0.09591329413 | BJ172: 806.5515945 | BK172: 911.4 | BL172: 11958.08296 | BM172: 118.960485 | BN172: 0 | BO172: 0.09591329413 | BP172: 7.877873436 | BQ172: 57.02839311 | BR172: 3.961063888 | BS172: 118.960485 | BT172: 0.000856033415 | BU172: 0 | BV172: 0.01837899543 | BW172: 234.7532637 | BX172: 356.2268873 | BZ172: 0.01837899543
AJ173: 164 | AK173: 98735.1856 | AL173: 16.4 | AM173: 0.0003921942157 | AN173: 0.0002294512953 | AO173: 5.603200632e-05 | AP173: 3.274801166e-07 | AQ173: 185.0343703 | AR173: 1.081436863 | AS173: -895.8043826 | AT173: -0.2065566701 | AU173: -0.8206255885 | AV173: 5.620597581e-05 | AW173: 18.62 | AX173: 1.564908922 | AY173: 0.0006078506966 | AZ173: 0.002489151092 | BA173: 0.02227246105 | BB173: 0.0232875422 | BC173: 0.005686817804 | BD173: 806.7460681 | BE173: 911.4 | BF173: 11957.3292 | BG173: 118.960485 | BH173: 0 | BI173: 0.09687807898 | BJ173: 806.5496384 | BK173: 911.4 | BL173: 11957.3292 | BM173: 118.960485 | BN173: 0 | BO173: 0.09687807898 | BP173: 7.866022911 | BQ173: 56.94260645 | BR173: 3.954413526 | BS173: 118.960485 | BT173: 0.0008547464927 | BU173: 0 | BV173: 0.01849315068 | BW173: 234.7014428 | BX173: 356.1485308 | BZ173: 0.01849315068
AJ174: 165 | AK174: 98743.71428 | AL174: 16.5 | AM174: 0.0003897836118 | AN174: 0.0002280409834 | AO174: 5.568760815e-05 | AP174: 3.274801166e-07 | AQ174: 183.9129499 | AR174: 1.081530277 | AS174: -890.3752651 | AT174: -0.2065566701 | AU174: -0.821603775 | AV174: 5.585945575e-05 | AW174: 18.58833333 | AX174: 1.569638309 | AY174: 0.0006059913732 | AZ174: 0.002481537155 | BA174: 0.02223019705 | BB174: 0.02328624998 | BC174: 0.005686502245 | BD174: 806.7460681 | BE174: 911.4 | BF174: 11956.56786 | BG174: 118.960485 | BH174: 0 | BI174: 0.0978514812 | BJ174: 806.5476647 | BK174: 911.4 | BL174: 11956.56786 | BM174: 118.960485 | BN174: 0 | BO174: 0.0978514812 | BP174: 7.854038707 | BQ174: 56.85585209 | BR174: 3.947773291 | BS174: 118.960485 | BT174: 0.0008534449562 | BU174: 0 | BV174: 0.01860730594 | BW174: 234.6496334 | BX174: 356.0701914 | BZ174: 0.01860730594
AJ175: 166 | AK175: 98752.1907 | AL175: 16.6 | AM175: 0.0003874022621 | AN175: 0.0002266477865 | AO175: 5.534738947e-05 | AP175: 3.274801166e-07 | AQ175: 182.8050405 | AR175: 1.081623118 | AS175: -885.0115587 | AT175: -0.2065566701 | AU175: -0.822576051 | AV175: 5.551715369e-05 | AW175: 18.55666667 | AX175: 1.57435323 | AY175: 0.0006041489438 | AZ175: 0.002473992399 | BA175: 0.02218826842 | BB175: 0.0232849671 | BC175: 0.005686188966 | BD175: 806.7460681 | BE175: 911.4 | BF175: 11955.79889 | BG175: 118.960485 | BH175: 0 | BI175: 0.09883356959 | BJ175: 806.5456734 | BK175: 911.4 | BL175: 11955.79889 | BM175: 118.960485 | BN175: 0 | BO175: 0.09883356959 | BP175: 7.841919418 | BQ175: 56.76811984 | BR175: 3.941143297 | BS175: 118.960485 | BT175: 0.0008521286514 | BU175: 0 | BV175: 0.01872146119 | BW175: 234.5978354 | BX175: 355.9918693 | BZ175: 0.01872146119
AJ176: 167 | AK176: 98760.61548 | AL176: 16.7 | AM176: 0.0003850496386 | AN176: 0.0002252713957 | AO176: 5.501127483e-05 | AP176: 3.274801166e-07 | AQ176: 181.7103996 | AR176: 1.081715394 | AS176: -879.7120883 | AT176: -0.2065566701 | AU176: -0.8235424875 | AV176: 5.517899324e-05 | AW176: 18.525 | AX176: 1.579053815 | AY176: 0.0006023231542 | AZ176: 0.002466515783 | BA176: 0.02214667052 | BB176: 0.02328369344 | BC176: 0.005685877937 | BD176: 806.7460681 | BE176: 911.4 | BF176: 11955.0222 | BG176: 118.960485 | BH176: 0 | BI176: 0.09982441346 | BJ176: 806.5436644 | BK176: 911.4 | BL176: 11955.0222 | BM176: 118.960485 | BN176: 0 | BO176: 0.09982441346 | BP176: 7.919502058 | BQ176: 57.32974517 | BR176: 3.934447304 | BS176: 118.960485 | BT176: 0.0008606113055 | BU176: 0 | BV176: 0.01883561644 | BW176: 234.5460489 | BX176: 355.9135644 | BZ176: 0.01883561644
AJ177: 168 | AK177: 98768.98926 | AL177: 16.8 | AM177: 0.0003827252257 | AN177: 0.0002239115094 | AO177: 5.467919059e-05 | AP177: 3.274801166e-07 | AQ177: 180.62879 | AR177: 1.081807111 | AS177: -874.4757068 | AT177: -0.2065566701 | AU177: -0.8245031542 | AV177: 5.484489987e-05 | AW177: 18.49333333 | AX177: 1.583740195 | AY177: 0.0006005137555 | AZ177: 0.002459106288 | BA177: 0.02210539876 | BB177: 0.02328242885 | BC177: 0.005685569126 | BD177: 806.7460681 | BE177: 911.4 | BF177: 11954.23774 | BG177: 118.960485 | BH177: 0 | BI177: 0.1008240827 | BJ177: 806.5416374 | BK177: 911.4 | BL177: 11954.23774 | BM177: 118.960485 | BN177: 0 | BO177: 0.1008240827 | BP177: 7.908283516 | BQ177: 57.24853348 | BR177: 3.927760787 | BS177: 118.960485 | BT177: 0.0008593934614 | BU177: 0 | BV177: 0.01894977169 | BW177: 234.4942738 | BX177: 355.8352768 | BZ177: 0.01894977169
AJ178: 169 | AK178: 98777.31263 | AL178: 16.9 | AM178: 0.0003804285203 | AN178: 0.0002225678332 | AO178: 5.435106486e-05 | AP178: 3.274801166e-07 | AQ178: 179.5599806 | AR178: 1.081898276 | AS178: -869.3012944 | AT178: -0.2065566701 | AU178: -0.8254581196 | AV178: 5.45148008e-05 | AW178: 18.46166667 | AX178: 1.588412497 | AY178: 0.000598720504 | AZ178: 0.002451762916 | BA178: 0.02206444866 | BB178: 0.02328117323 | BC178: 0.005685262503 | BD178: 806.7460681 | BE178: 911.4 | BF178: 11953.44543 | BG178: 118.960485 | BH178: 0 | BI178: 0.1018326476 | BJ178: 806.5395925 | BK178: 911.4 | BL178: 11953.44543 | BM178: 118.960485 | BN178: 0 | BO178: 0.1018326476 | BP178: 7.896939126 | BQ178: 57.16641076 | BR178: 3.921083852 | BS178: 118.960485 | BT178: 0.000858161859 | BU178: 0 | BV178: 0.01906392694 | BW178: 234.4425101 | BX178: 355.7570063 | BZ178: 0.01906392694
AJ179: 170 | AK179: 98785.58621 | AL179: 17 | AM179: 0.0003781590309 | AN179: 0.0002212400796 | AO179: 5.402682743e-05 | AP179: 3.274801166e-07 | AQ179: 178.5037455 | AR179: 1.081988896 | AS179: -864.1877573 | AT179: -0.2065566701 | AU179: -0.8264074509 | AV179: 5.4188625e-05 | AW179: 18.43 | AX179: 1.593070847 | AY179: 0.0005969431612 | AZ179: 0.002444484689 | BA179: 0.02202381583 | BB179: 0.02327992644 | BC179: 0.005684958037 | BD179: 806.7460681 | BE179: 911.4 | BF179: 11952.6452 | BG179: 118.960485 | BH179: 0 | BI179: 0.102850179 | BJ179: 806.5375293 | BK179: 911.4 | BL179: 11952.6452 | BM179: 118.960485 | BN179: 0 | BO179: 0.102850179 | BP179: 7.885467566 | BQ179: 57.08336747 | BR179: 3.914416607 | BS179: 118.960485 | BT179: 0.0008569163537 | BU179: 0 | BV179: 0.01917808219 | BW179: 234.3907578 | BX179: 355.6787531 | BZ179: 0.01917808219
AJ180: 171 | AK180: 98793.81057 | AL180: 17.1 | AM180: 0.0003759162778 | AN180: 0.0002199279679 | AO180: 5.370640976e-05 | AP180: 3.274801166e-07 | AQ180: 177.4598639 | AR180: 1.082078977 | AS180: -859.1340278 | AT180: -0.2065566701 | AU180: -0.8273512143 | AV180: 5.38663031e-05 | AW180: 18.39833333 | AX180: 1.597715368 | AY180: 0.0005951814931 | AZ180: 0.002437270652 | BA180: 0.02198349596 | BB180: 0.02327868837 | BC180: 0.005684655701 | BD180: 806.7460681 | BE180: 911.4 | BF180: 11951.83699 | BG180: 118.960485 | BH180: 0 | BI180: 0.1038767486 | BJ180: 806.5354479 | BK180: 911.4 | BL180: 11951.83699 | BM180: 118.960485 | BN180: 0 | BO180: 0.1038767486 | BP180: 7.873867504 | BQ180: 56.99939392 | BR180: 3.907759163 | BS180: 118.960485 | BT180: 0.0008556567997 | BU180: 0 | BV180: 0.01929223744 | BW180: 234.339017 | BX180: 355.6005171 | BZ180: 0.01929223744
AJ181: 172 | AK181: 98801.9863 | AL181: 17.2 | AM181: 0.0003736997923 | AN181: 0.000218631224 | AO181: 5.33897449e-05 | AP181: 3.274801166e-07 | AQ181: 176.4281205 | AR181: 1.082168525 | AS181: -854.1390625 | AT181: -0.2065566701 | AU181: -0.8282894746 | AV181: 5.354776735e-05 | AW181: 18.36666667 | AX181: 1.602346182 | AY181: 0.000593435271 | AZ181: 0.002430119865 | BA181: 0.02194348482 | BB181: 0.0232774589 | BC181: 0.005684355464 | BD181: 806.7460681 | BE181: 911.4 | BF181: 11951.02072 | BG181: 118.960485 | BH181: 0 | BI181: 0.1049124281 | BJ181: 806.5333479 | BK181: 911.4 | BL181: 11951.02072 | BM181: 118.960485 | BN181: 0 | BO181: 0.1049124281 | BP181: 7.86213759 | BQ181: 56.91448038 | BR181: 3.901111629 | BS181: 118.960485 | BT181: 0.0008543830496 | BU181: 0 | BV181: 0.01940639269 | BW181: 234.2872875 | BX181: 355.5222983 | BZ181: 0.01940639269
AJ182: 173 | AK182: 98810.11396 | AL182: 17.3 | AM182: 0.0003715091168 | AN182: 0.0002173495801 | AO182: 5.307676745e-05 | AP182: 3.274801166e-07 | AQ182: 175.4083048 | AR182: 1.082257546 | AS182: -849.2018425 | AT182: -0.2065566701 | AU182: -0.8292222957 | AV182: 5.323295158e-05 | AW182: 18.335 | AX182: 1.60696341 | AY182: 0.0005917042704 | AZ182: 0.00242303141 | BA182: 0.02190377828 | BB182: 0.02327623792 | BC182: 0.005684057299 | BD182: 806.7460681 | BE182: 911.4 | BF182: 11950.19632 | BG182: 118.960485 | BH182: 0 | BI182: 0.1059572901 | BJ182: 806.5312294 | BK182: 911.4 | BL182: 11950.19632 | BM182: 118.960485 | BN182: 0 | BO182: 0.1059572901 | BP182: 7.850276465 | BQ182: 56.828617 | BR182: 3.894474117 | BS182: 118.960485 | BT182: 0.0008530949548 | BU182: 0 | BV182: 0.01952054795 | BW182: 234.2355695 | BX182: 355.4440967 | BZ182: 0.01952054795
AJ183: 174 | AK183: 98818.19411 | AL183: 17.4 | AM183: 0.000369343804 | AN183: 0.0002160827745 | AO183: 5.276741353e-05 | AP183: 3.274801166e-07 | AQ183: 174.4002111 | AR183: 1.082346047 | AS183: -844.3213721 | AT183: -0.2065566701 | AU183: -0.8301497403 | AV183: 5.292179115e-05 | AW183: 18.30333333 | AX183: 1.61156717 | AY183: 0.0005899882717 | AZ183: 0.002416004388 | BA183: 0.02186437226 | BB183: 0.0232750253 | BC183: 0.005683761179 | BD183: 806.7460681 | BE183: 911.4 | BF183: 11949.36371 | BG183: 118.960485 | BH183: 0 | BI183: 0.1070114078 | BJ183: 806.529092 | BK183: 911.4 | BL183: 11949.36371 | BM183: 118.960485 | BN183: 0 | BO183: 0.1070114078 | BP183: 7.937761861 | BQ183: 57.46192896 | BR183: 3.887762189 | BS183: 118.960485 | BT183: 0.0008626593872 | BU183: 0 | BV183: 0.0196347032 | BW183: 234.183863 | BX183: 355.3659123 | BZ183: 0.0196347032
AJ184: 175 | AK184: 98826.22731 | AL184: 17.5 | AM184: 0.000367203417 | AN184: 0.0002148305516 | AO184: 5.24616207e-05 | AP184: 3.274801166e-07 | AQ184: 173.4036384 | AR184: 1.082434034 | AS184: -839.4966786 | AT184: -0.2065566701 | AU184: -0.83107187 | AV184: 5.261422292e-05 | AW184: 18.27166667 | AX184: 1.616157578 | AY184: 0.0005882870593 | AZ184: 0.002409037917 | BA184: 0.02182526278 | BB184: 0.02327382095 | BC184: 0.005683467075 | BD184: 806.7460681 | BE184: 911.4 | BF184: 11948.52284 | BG184: 118.960485 | BH184: 0 | BI184: 0.1080748546 | BJ184: 806.5269358 | BK184: 911.4 | BL184: 11948.52284 | BM184: 118.960485 | BN184: 0 | BO184: 0.1080748546 | BP184: 7.926921202 | BQ184: 57.38345279 | BR184: 3.881059415 | BS184: 118.960485 | BT184: 0.000861482841 | BU184: 0 | BV184: 0.01974885845 | BW184: 234.1321678 | BX184: 355.2877451 | BZ184: 0.01974885845
AJ185: 176 | AK185: 98834.21408 | AL185: 17.6 | AM185: 0.000365087529 | AN185: 0.0002135926617 | AO185: 5.215932799e-05 | AP185: 3.274801166e-07 | AQ185: 172.4183905 | AR185: 1.082521512 | AS185: -834.7268111 | AT185: -0.2065566701 | AU185: -0.8319887454 | AV185: 5.231018518e-05 | AW185: 18.24 | AX185: 1.62073475 | AY185: 0.0005866004224 | AZ185: 0.002402131132 | BA185: 0.02178644593 | BB185: 0.02327262474 | BC185: 0.005683174962 | BD185: 806.7460681 | BE185: 911.4 | BF185: 11947.67361 | BG185: 118.960485 | BH185: 0 | BI185: 0.1091477048 | BJ185: 806.5247605 | BK185: 911.4 | BL185: 11947.67361 | BM185: 118.960485 | BN185: 0 | BO185: 0.1091477048 | BP185: 7.9159599 | BQ185: 57.30410328 | BR185: 3.874365898 | BS185: 118.960485 | BT185: 0.0008602931054 | BU185: 0 | BV185: 0.0198630137 | BW185: 234.080484 | BX185: 355.2095951 | BZ185: 0.0198630137
AJ186: 177 | AK186: 98842.15496 | AL186: 17.7 | AM186: 0.0003629957225 | AN186: 0.0002123688606 | AO186: 5.186047577e-05 | AP186: 3.274801166e-07 | AQ186: 171.4442753 | AR186: 1.082608488 | AS186: -830.0108404 | AT186: -0.2065566701 | AU186: -0.832900426 | AV186: 5.200961762e-05 | AW186: 18.20833333 | AX186: 1.625298799 | AY186: 0.000584928154 | AZ186: 0.002395283186 | BA186: 0.02174791787 | BB186: 0.02327143659 | BC186: 0.005682884814 | BD186: 806.7460681 | BE186: 911.4 | BF186: 11946.81597 | BG186: 118.960485 | BH186: 0 | BI186: 0.110230033 | BJ186: 806.522566 | BK186: 911.4 | BL186: 11946.81597 | BM186: 118.960485 | BN186: 0 | BO186: 0.110230033 | BP186: 7.904876694 | BQ186: 57.22387129 | BR186: 3.867681741 | BS186: 118.960485 | BT186: 0.0008590900424 | BU186: 0 | BV186: 0.01997716895 | BW186: 234.0288117 | BX186: 355.1314623 | BZ186: 0.01997716895
AJ187: 178 | AK187: 98850.05047 | AL187: 17.8 | AM187: 0.0003609275898 | AN187: 0.0002111589098 | AO187: 5.156500577e-05 | AP187: 3.274801166e-07 | AQ187: 170.4811052 | AR187: 1.082694967 | AS187: -825.3478581 | AT187: -0.2065566701 | AU187: -0.8338069703 | AV187: 5.171246131e-05 | AW187: 18.17666667 | AX187: 1.629849837 | AY187: 0.0005832700514 | AZ187: 0.002388493249 | BA187: 0.02170967483 | BB187: 0.02327025637 | BC187: 0.005682596605 | BD187: 806.7460681 | BE187: 911.4 | BF187: 11945.94983 | BG187: 118.960485 | BH187: 0 | BI187: 0.1113219146 | BJ187: 806.5203521 | BK187: 911.4 | BL187: 11945.94983 | BM187: 118.960485 | BN187: 0 | BO187: 0.1113219146 | BP187: 7.893670312 | BQ187: 57.14274763 | BR187: 3.86100705 | BS187: 118.960485 | BT187: 0.0008578735131 | BU187: 0 | BV187: 0.0200913242 | BW187: 233.9771507 | BX187: 355.0533467 | BZ187: 0.0200913242
AJ188: 179 | AK188: 98857.90113 | AL188: 17.9 | AM188: 0.0003588827321 | AN188: 0.0002099625759 | AO188: 5.127286103e-05 | AP188: 3.274801166e-07 | AQ188: 169.5286968 | AR188: 1.082780954 | AS188: -820.7369762 | AT188: -0.2065566701 | AU188: -0.8347084359 | AV188: 5.141865863e-05 | AW188: 18.145 | AX188: 1.634387974 | AY188: 0.0005816259157 | AZ188: 0.002381760507 | BA188: 0.02167171312 | BB188: 0.02326908399 | BC188: 0.00568231031 | BD188: 806.7460681 | BE188: 911.4 | BF188: 11945.07511 | BG188: 118.960485 | BH188: 0 | BI188: 0.1124234254 | BJ188: 806.5181186 | BK188: 911.4 | BL188: 11945.07511 | BM188: 118.960485 | BN188: 0 | BO188: 0.1124234254 | BP188: 7.882339469 | BQ188: 57.06072298 | BR188: 3.854341929 | BS188: 118.960485 | BT188: 0.000856643377 | BU188: 0 | BV188: 0.02020547945 | BW188: 233.9255012 | BX188: 354.9752482 | BZ188: 0.02020547945
AJ189: 180 | AK189: 98865.70743 | AL189: 18 | AM189: 0.0003568607597 | AN189: 0.0002087796309 | AO189: 5.098398586e-05 | AP189: 3.274801166e-07 | AQ189: 168.5868707 | AR189: 1.082866456 | AS189: -816.1773264 | AT189: -0.2065566701 | AU189: -0.8356048794 | AV189: 5.112815326e-05 | AW189: 18.11333333 | AX189: 1.638913319 | AY189: 0.0005799955521 | AZ189: 0.002375084161 | BA189: 0.0216340291 | BB189: 0.02326791935 | BC189: 0.005682025905 | BD189: 806.7460681 | BE189: 911.4 | BF189: 11944.19176 | BG189: 118.960485 | BH189: 0 | BI189: 0.1135346417 | BJ189: 806.5158655 | BK189: 911.4 | BL189: 11944.19176 | BM189: 118.960485 | BN189: 0 | BO189: 0.1135346417 | BP189: 7.870882867 | BQ189: 56.97778796 | BR189: 3.847686487 | BS189: 118.960485 | BT189: 0.0008553994922 | BU189: 0 | BV189: 0.0203196347 | BW189: 233.8738631 | BX189: 354.8971669 | BZ189: 0.0203196347
AJ190: 181 | AK190: 98873.46987 | AL190: 18.1 | AM190: 0.0003548612914 | AN190: 0.0002076098517 | AO190: 5.06983258e-05 | AP190: 3.274801166e-07 | AQ190: 167.6554515 | AR190: 1.082951477 | AS190: -811.6680594 | AT190: -0.2065566701 | AU190: -0.8364963565 | AV190: 5.084089014e-05 | AW190: 18.08166667 | AX190: 1.643425979 | AY190: 0.0005783787694 | AZ190: 0.002368463429 | BA190: 0.02159661922 | BB190: 0.02326676235 | BC190: 0.005681743365 | BD190: 806.7460681 | BE190: 911.4 | BF190: 11943.29968 | BG190: 118.960485 | BH190: 0 | BI190: 0.1146556406 | BJ190: 806.5135926 | BK190: 911.4 | BL190: 11943.29968 | BM190: 118.960485 | BN190: 0 | BO190: 0.1146556406 | BP190: 7.859299198 | BQ190: 56.89393309 | BR190: 3.84104083 | BS190: 118.960485 | BT190: 0.0008541417154 | BU190: 0 | BV190: 0.02043378995 | BW190: 233.8222363 | BX190: 354.8191028 | BZ190: 0.02043378995
AJ191: 182 | AK191: 98881.18893 | AL191: 18.2 | AM191: 0.0003528839544 | AN191: 0.0002064530205 | AO191: 5.04158276e-05 | AP191: 3.274801166e-07 | AQ191: 166.7342677 | AR191: 1.083036023 | AS191: -807.2083448 | AT191: -0.2065566701 | AU191: -0.8373829218 | AV191: 5.05568154e-05 | AW191: =IF(AX191="","",AW192+dt/60) -> 18.05 | AX191: =IF(AX190="","",IF((AX190)>=$AY$3,"",AX190+AZ190*dt)) -> 1.64792606 | AY191: =IF(AX191="","",(Ka/(2*ua))*((Pw/(AX191*LN(rw/Rl)))*(1-(PROI/Pw)^2))/((1+(1-(PROI/Pw)^2)*(LN(AX191/rw)/LN(rw/Rl)))^0.5)) -> 0.0005767753803 | AZ191: =IF(AX191="","",AY191/n/Sa) -> 0.002361897544 | BA191: =10^-0.42*(Da*10000)^0.38*(AZ191*100)^0.62*(d_50*100)^0.44 -> 0.02155947997 | BB191: 0.02326561289 | BC191: 0.005681462667 | BD191: 806.7460681 | BE191: 911.4 | BF191: 11942.3988 | BG191: 118.960485 | BH191: 0 | BI191: 0.1157864996 | BJ191: 806.5112997 | BK191: 911.4 | BL191: 11942.3988 | BM191: 118.960485 | BN191: 0 | BO191: 0.1157864996 | BP191: 7.944297819 | BQ191: 57.50924315 | BR191: 3.834322872 | BS191: 118.960485 | BT191: 0.0008634345037 | BU191: 0 | BV191: 0.02054794521 | BW191: 233.770621 | BX191: 354.7410559 | BZ191: 0.02054794521
AJ192: 183 | AK192: 98888.8651 | AL192: 18.3 | AM192: 0.0003509283841 | AN192: 0.0002053089237 | AO192: 5.013643917e-05 | AP192: 3.274801166e-07 | AQ192: 165.8231515 | AR192: 1.0831201 | AS192: -802.7973702 | AT192: -0.2065566701 | AU192: -0.8382646291 | AV192: 5.027587637e-05 | AW192: 18.01833333 | AX192: 1.652413665 | AY192: 0.0005751852009 | AZ192: 0.002355385753 | BA192: 0.02152260794 | BB192: 0.02326447087 | BC192: 0.005681183788 | BD192: 806.7460681 | BE192: 911.4 | BF192: 11941.48905 | BG192: 118.960485 | BH192: 0 | BI192: 0.1169272969 | BJ192: 806.5089866 | BK192: 911.4 | BL192: 11941.48905 | BM192: 118.960485 | BN192: 0 | BO192: 0.1169272969 | BP192: 7.933695418 | BQ192: 57.43249174 | BR192: 3.827613864 | BS192: 118.960485 | BT192: 0.0008622839915 | BU192: 0 | BV192: 0.02066210046 | BW192: 233.719017 | BX192: 354.6630262 | BZ192: 0.02066210046
AJ193: 184 | AK193: 98896.49885 | AL193: 18.4 | AM193: 0.0003489942239 | AN193: 0.0002041773528 | AO193: 4.986010956e-05 | AP193: 3.274801166e-07 | AQ193: 164.9219387 | AR193: 1.083203711 | AS193: -798.434341 | AT193: -0.2065566701 | AU193: -0.8391415315 | AV193: 4.999802155e-05 | AW193: 17.98666667 | AX193: 1.656888898 | AY193: 0.0005736080508 | AZ193: 0.002348927317 | BA193: 0.02148599974 | BB193: 0.02326333622 | BC193: 0.005680906704 | BD193: 806.7460681 | BE193: 911.4 | BF193: 11940.57034 | BG193: 118.960485 | BH193: 0 | BI193: 0.1180781111 | BJ193: 806.5066532 | BK193: 911.4 | BL193: 11940.57034 | BM193: 118.960485 | BN193: 0 | BO193: 0.1180781111 | BP193: 7.922976016 | BQ193: 57.35489335 | BR193: 3.820913908 | BS193: 118.960485 | BT193: 0.000861120688 | BU193: 0 | BV193: 0.02077625571 | BW193: 233.6674245 | BX193: 354.5850136 | BZ193: 0.02077625571
AJ194: 185 | AK194: 98904.09064 | AL194: 18.5 | AM194: 0.000347081125 | AN194: 0.0002030581037 | AO194: 4.958678892e-05 | AP194: 3.274801166e-07 | AQ194: 164.0304688 | AR194: 1.083286864 | AS194: -794.1184797 | AT194: -0.2065566701 | AU194: -0.8400136811 | AV194: 4.972320054e-05 | AW194: 17.955 | AX194: 1.66135186 | AY194: 0.0005720437533 | AZ194: 0.002342521512 | BA194: 0.02144965206 | BB194: 0.02326220882 | BC194: 0.005680631394 | BD194: 806.7460681 | BE194: 911.4 | BF194: 11939.6426 | BG194: 118.960485 | BH194: 0 | BI194: 0.1192390215 | BJ194: 806.5042994 | BK194: 911.4 | BL194: 11939.6426 | BM194: 118.960485 | BN194: 0 | BO194: 0.1192390215 | BP194: 7.912138397 | BQ194: 57.27643919 | BR194: 3.814223104 | BS194: 118.960485 | BT194: 0.0008599444603 | BU194: 0 | BV194: 0.02089041096 | BW194: 233.6158433 | BX194: 354.5070181 | BZ194: 0.02089041096
AJ195: 186 | AK195: 98911.64093 | AL195: 18.6 | AM195: 0.0003451887459 | AN195: 0.0002019509766 | AO195: 4.931642849e-05 | AP195: 3.274801166e-07 | AQ195: 163.1485846 | AR195: 1.083369561 | AS195: -789.8490255 | AT195: -0.2065566701 | AU195: -0.8408811289 | AV195: 4.945136403e-05 | AW195: 17.92333333 | AX195: 1.665802651 | AY195: 0.0005704921347 | AZ195: 0.002336167628 | BA195: 0.02141356166 | BB195: 0.0232610886 | BC195: 0.005680357836 | BD195: 806.7460681 | BE195: 911.4 | BF195: 11938.70575 | BG195: 118.960485 | BH195: 0 | BI195: 0.120410108 | BJ195: 806.5019249 | BK195: 911.4 | BL195: 11938.70575 | BM195: 118.960485 | BN195: 0 | BO195: 0.120410108 | BP195: 7.901181336 | BQ195: 57.19712038 | BR195: 3.807541552 | BS195: 118.960485 | BT195: 0.0008587551742 | BU195: 0 | BV195: 0.02100456621 | BW195: 233.5642735 | BX195: 354.4290399 | BZ195: 0.02100456621
AJ196: 187 | AK196: 98919.15016 | AL196: 18.7 | AM196: 0.0003433167527 | AN196: 0.0002008557762 | AO196: 4.904898055e-05 | AP196: 3.274801166e-07 | AQ196: 162.2761322 | AR196: 1.083451809 | AS196: -785.6252339 | AT196: -0.2065566701 | AU196: -0.8417439256 | AV196: 4.918246377e-05 | AW196: 17.89166667 | AX196: 1.670241369 | AY196: 0.0005689530248 | AZ196: 0.002329864966 | BA196: 0.02137772534 | BB196: 0.02325997546 | BC196: 0.005680086007 | BD196: 806.7460681 | BE196: 911.4 | BF196: 11937.7597 | BG196: 118.960485 | BH196: 0 | BI196: 0.1215914511 | BJ196: 806.4995296 | BK196: 911.4 | BL196: 11937.7597 | BM196: 118.960485 | BN196: 0 | BO196: 0.1215914511 | BP196: 7.890103594 | BQ196: 57.11692794 | BR196: 3.800869357 | BS196: 118.960485 | BT196: 0.0008575526945 | BU196: 0 | BV196: 0.02111872146 | BW196: 233.5127151 | BX196: 354.3510787 | BZ196: 0.02111872146
AJ197: 188 | AK197: 98926.61877 | AL197: 18.8 | AM197: 0.0003414648184 | AN197: 0.0001997723112 | AO197: 4.878439838e-05 | AP197: 3.274801166e-07 | AQ197: 161.4129613 | AR197: 1.083533612 | AS197: -781.4463763 | AT197: -0.2065566701 | AU197: -0.8426021207 | AV197: 4.891645257e-05 | AW197: 17.86 | AX197: 1.674668113 | AY197: 0.0005674262564 | AZ197: 0.002323612844 | BA197: 0.02134213997 | BB197: 0.02325886932 | BC197: 0.005679815888 | BD197: 806.7460681 | BE197: 911.4 | BF197: 11936.80439 | BG197: 118.960485 | BH197: 0 | BI197: 0.1227831318 | BJ197: 806.4971133 | BK197: 911.4 | BL197: 11936.80439 | BM197: 118.960485 | BN197: 0 | BO197: 0.1227831318 | BP197: 7.87890392 | BQ197: 57.03585284 | BR197: 3.794206621 | BS197: 118.960485 | BT197: 0.0008563368843 | BU197: 0 | BV197: 0.02123287671 | BW197: 233.4611681 | BX197: 354.2731348 | BZ197: 0.02123287671
AJ198: 189 | AK198: 98934.0472 | AL198: 18.9 | AM198: 0.0003396326231 | AN198: 0.0001987003943 | AO198: 4.852263629e-05 | AP198: 3.274801166e-07 | AQ198: 160.5589245 | AR198: 1.083614975 | AS198: -777.3117394 | AT198: -0.2065566701 | AU198: -0.8434557629 | AV198: 4.865328421e-05 | AW198: 17.82833333 | AX198: 1.679082977 | AY198: 0.0005659116657 | AZ198: 0.002317410588 | BA198: 0.02130680245 | BB198: 0.02325777009 | BC198: 0.005679547457 | BD198: 806.7460681 | BE198: 911.4 | BF198: 11935.83972 | BG198: 118.960485 | BH198: 0 | BI198: 0.1239852319 | BJ198: 806.4946759 | BK198: 911.4 | BL198: 11935.83972 | BM198: 118.960485 | BN198: 0 | BO198: 0.1239852319 | BP198: 7.867581051 | BQ198: 56.95388592 | BR198: 3.78755345 | BS198: 118.960485 | BT198: 0.0008551076056 | BU198: 0 | BV198: 0.02134703196 | BW198: 233.4096325 | BX198: 354.1952079 | BZ198: 0.02134703196
AJ199: 190 | AK199: 98941.43588 | AL199: 19 | AM199: 0.0003378198536 | AN199: 0.0001976398425 | AO199: 4.826364953e-05 | AP199: 3.274801166e-07 | AQ199: 159.7138775 | AR199: 1.083695902 | AS199: -773.220625 | AT199: -0.2065566701 | AU199: -0.8443049005 | AV199: 4.839291347e-05 | AW199: 17.79666667 | AX199: 1.683486057 | AY199: 0.0005644090916 | AZ199: 0.002311257541 | BA199: 0.02127170977 | BB199: 0.02325667769 | BC199: 0.005679280693 | BD199: 806.7460681 | BE199: 911.4 | BF199: 11934.86562 | BG199: 118.960485 | BH199: 0 | BI199: 0.1251978335 | BJ199: 806.4922173 | BK199: 911.4 | BL199: 11934.86562 | BM199: 118.960485 | BN199: 0 | BO199: 0.1251978335 | BP199: 7.938929863 | BQ199: 57.4703842 | BR199: 3.780839577 | BS199: 118.960485 | BT199: 0.0008629093076 | BU199: 0 | BV199: 0.02146118721 | BW199: 233.3581082 | BX199: 354.1172982 | BZ199: 0.02146118721
AJ200: 191 | AK200: 98948.78523 | AL200: 19.1 | AM200: 0.0003360262033 | AN200: 0.0001965904762 | AO200: 4.800739429e-05 | AP200: 3.274801166e-07 | AQ200: 158.8776792 | AR200: 1.083776399 | AS200: -769.1723495 | AT200: -0.2065566701 | AU200: -0.8451495806 | AV200: 4.813529608e-05 | AW200: 17.765 | AX200: 1.687877446 | AY200: 0.0005629183762 | AZ200: 0.002305153056 | BA200: 0.02123685895 | BB200: 0.02325559204 | BC200: 0.005679015577 | BD200: 806.7460681 | BE200: 911.4 | BF200: 11933.882 | BG200: 118.960485 | BH200: 0 | BI200: 0.1264210196 | BJ200: 806.4897371 | BK200: 911.4 | BL200: 11933.882 | BM200: 118.960485 | BN200: 0 | BO200: 0.1264210196 | BP200: 7.928410955 | BQ200: 57.3942372 | BR200: 3.774134585 | BS200: 118.960485 | BT200: 0.0008617679115 | BU200: 0 | BV200: 0.02157534247 | BW200: 233.3065953 | BX200: 354.0394057 | BZ200: 0.02157534247
... 581 more rows

Sheet Sanierungsdauer (hidden)
B1: Ergebnisparameter | C1: Einheit | D1: Wert
A2: Sanierungserfolg
B3: Gesamtdauer der Sanierung | C3: a | D3: =Ergebnisse!S3 -> 2.008675799
B4: Sanierungszielwert | C4: mg/m3 | D4: =Ergebnisse!D4 -> 5
A5: Dimensionierung Brunnen
B6: Anzahl benötigter Brunnen | C6: - | D6: =Anzahl_Brunnen -> 2
B7: Volumenstrom | C7: m3/h | D7: =Ergebnisse!D8 -> 11.23915251
B8: Betrachteter Schadstoff | C8: =Ergebnisse!C9 -> n-Alkane

Sheet Heterogenität (hidden)
F1: Sondierung | G1: Gini-Koeffizient
F2: CPT-MIP-18 | G2: 0.12289923
F3: CPT-MIP-19 | G3: 0.3373571906
F4: CPT-MIP-19A | G4: 0.3076899858
F5: CPT-MIP-20 | G5: 0.1763628297
F6: CPT-MIP-21 | G6: 0.2028411125
F7: CPT-MIP-22 | G7: 0.102898713
F8: CPT-MIP-23 | G8: 0.08640925819
F9: CPT-MIP-23A | G9: 0.3202231681
F10: DP-12 | G10: 0.02652046256
F11: DP-13 | G11: 0.2039791647
F12: DP-14 | G12: 0.0798057939
F13: DP-15 | G13: 0.1424691092
A15: Heterogenität (Gini - Koeffizient) | C15: Berechnet | D15: 0.1757880015
A16: Korrekturfaktor | D16: =1/(1-GINI+(2.451*(Sanierungsfläche^-0.458))*GINI) -> 1.143318699
D20: =Bodencharakterisierung!F3 -> 0
D21: =IF(Bodencharakterisierung!H5>1,Bodencharakterisierung!H5,1/Bodencharakterisierung!H5) -> 1
